{"text_format":"1","workbook":"xlsx","n_sheets":5,"sheets":["Справочники","Сотрудники на открытие счетов","Информация","dictionary_city","dictionary_branches_1"],"not_rendered":{"charts":0,"images":0,"macros":1,"external_links":1,"defined_names":9,"comments":0,"pivot_tables":0},"unopened":[],"bounds":{"document_bytes":16777216,"sheet_cells":100000,"rows_first":2000,"rows_last":500,"rows_between":2000,"halvings":0,"cell_chars":16384,"cell_head_chars":4096},"cells_cut":0,"cells_raw":0,"read":"whole","date_system":"1900"}

{"sheet":"Справочники","index":0,"n_rows":542,"n_cols":16,"rows_kept":542,"cut":false,"hidden":false,"merged":[[5,0,5,1],[14,0,14,1],[0,12,0,13],[0,14,0,15],[0,6,0,7],[0,9,0,10],[0,0,0,1],[0,3,0,4]]}
["Тип Документа (удостоверяющий личность)",null,null,"Код страны гражданства",null,null,"Код страны регистраци адреса",null,null,"Код региона (для адреса на территории РФ)",null,null,"Мнемоника "]
["Наименование","Код",null,"Наименование","Код",null,"Наименование","Код",null,"Наименование","Код",null,"Код","Наименование","Адрес","Город"]
["Иностранный паспорт","10",null,"АБХАЗИЯ(ГРУЗИЯ)","AB",null,"АБХАЗИЯ(ГРУЗИЯ)","AB",null,"ТЕРРИТОРИЯ НЕ ОПРЕДЕЛЕНА","00",null,"0739","ДО \"Абакан-Черногорский парк\"  ","655017, Республика Хакасия, г. Абакан, ул. Щетинкина, д. 63","Абакан"]
[null,null,null,"АВСТРАЛИЯ","AU",null,"АВСТРАЛИЯ","AU",null,"РЕСПУБЛИКА АДЫГЕЯ","01",null,"1821","ДО \"Азов-Центральный\"  ","346787, Ростовская область, г. Азов, ул. Мира, д. 45/64","Азов"]
[null,null,null,"АВСТРИЯ","AT",null,"АВСТРИЯ","AT",null,"РЕСПУБЛИКА БАШКОРТОСТАН","02",null,"1791","ДО \"Аксай-проспект Ленина\"  ","346720, Ростовская область, г. Аксай, пр-кт Ленина, д. 26","Аксай"]
["Код ДУП (для нерезидентов, Документ, Удостоверяющий право Пребывания)",null,null,"АЗЕРБАЙДЖАН","AZ",null,"АЗЕРБАЙДЖАН","AZ",null,"РЕСПУБЛИКА БУРЯТИЯ","03",null,"1666","ДО \"Алексин-улица Мира\"  ","301361, Тульская область, г. Алексин, ул. Мира, 20","Алексин"]
["Название документа","Код",null,"АЛБАНИЯ","AL",null,"АЛБАНИЯ","AL",null,"РЕСПУБЛИКА АЛТАЙ","04",null,"0953","ДО \"Альметьевск-улица Ленина\"  ","423452, Республика Татарстан, г. Альметьевск, ул. Ленина, 29","Альметьевск"]
["Вид на жительство","01",null,"АЛЖИР","DZ",null,"АЛЖИР","DZ",null,"РЕСПУБЛИКА ДАГЕСТАН","05",null,"1186","ДО \"Анапа-улица Крымская\"  ","353440, Краснодарский край, г.Анапа, ул. Крымская, д. 172","Анапа"]
["Разрешение на временное проживание","02",null,"АНГИЛЬЯ","AI",null,"АНГИЛЬЯ","AI",null,"ИНГУШСКАЯ РЕСПУБЛИКА","06",null,"0886","ДО \"Ангарск-Ленинградский проспект\" ","665824, Российская Федерация, Иркутская область, г. Ангарск, квартал 212, д. 15","Ангарск"]
["Виза","03",null,"АНГОЛА","AO",null,"АНГОЛА","AO",null,"КАБАРДИНО - БАЛКАРСКАЯ РЕСПУБЛИКА","07",null,"1656","ДО \"Анжеро-Судженск-ул. Ленина\"  ","652470, Кемеровская область, г. Анжеро-Судженск, ул. Ленина, д. 22","Анжеро-Судженск"]
["Участник ЭПР","04",null,"АНДОРРА","AD",null,"АНДОРРА","AD",null,"РЕСПУБЛИКА КАЛМЫКИЯ","08",null,"1811","ДО \"Апатиты-улица Ленина\"  ","184209, Мурманская область, г. Апатиты, ул. Ленина, д. 4","Апатиты"]
["Уведомление о прибытии","05",null,"АНТАРКТИДА","AQ",null,"АНТАРКТИДА","AQ",null,"КАРАЧАЕВО - ЧЕРКЕССКАЯ РЕСПУБЛИКА","09",null,"1817","ДО \"Арзамас-проспект Ленина\"  ","607228, Нижегородская область, г. Арзамас, пр-кт Ленина, д. 198","Арзамас"]
["Патент","14",null,"АНТИГУАИБАРБУДА","AG",null,"АНТИГУАИБАРБУДА","AG",null,"РЕСПУБЛИКА КАРЕЛИЯ","10",null,"1151","ДО \"Армавир-улица Ленина\"  ","352900, Краснодарский край, г. Армавир, ул. Ленина, д. 101а","Армавир"]
["Разрешение на работу","15",null,"АНТИЛЬСКИЕОСТРОВА","AN",null,"АНТИЛЬСКИЕОСТРОВА","AN",null,"РЕСПУБЛИКА КОМИ","11",null,"1812","ДО \"Арсеньев-улица Калининская\"  ","692342, Приморский край, г.Арсеньев, ул. Калининская, д. 24","Арсеньев"]
["Тип МК (для нерезидентов)",null,null,"АОМЫНЬ(МАКАО)","MO",null,"АОМЫНЬ(МАКАО)","MO",null,"РЕСПУБЛИКА МАРИЙ ЭЛ","12",null,"1700","ДО \"Артем-улица Фрунзе\"  ","692760, Приморский край, г. Артем,ул. Фрунзе, д. 65","Артем"]
["Наименование","Код",null,"АРГЕНТИНА","AR",null,"АРГЕНТИНА","AR",null,"РЕСПУБЛИКА МОРДОВИЯ","13",null,"0876","ДО \"Архангельск-Воскресенский\"  ","163060 , г. Архангельск, ул.Воскресенская, д. 108","Архангельск"]
["Миграционная карта","01",null,"АРМЕНИЯ","AM",null,"АРМЕНИЯ","AM",null,"РЕСПУБЛИКА САХА (ЯКУТИЯ)","14",null,"1058","ДО \"Архангельск-Поморский\"  ","163000, Архангельская область, г. Архангельск, ул. Воскресенская, д. 6","Архангельск"]
[null,null,null,"АРУБА","AW",null,"АРУБА","AW",null,"РЕСПУБЛИКА СЕВЕРНАЯ ОСЕТИЯ","15",null,"1617","ДО \"Асбест-проспект Ленина\"  ","624272, Свердловская область, г. Асбест, пр-кт имени В.И. Ленина, д. 15","Асбест"]
[null,null,null,"АФГАНИСТАН","AF",null,"АФГАНИСТАН","AF",null,"РЕСПУБЛИКА ТАТАРСТАН (ТАТАРСТАН)","16",null,"1534","ДО \"Астрахань-Каспийский\"  ","414000, Астраханская область, г. Астрахань, ул. Кирова, д. 12/2","Астрахань"]
[null,null,null,"БАГАМСКИЕОСТРОВА","BS",null,"БАГАМСКИЕОСТРОВА","BS",null,"РЕСПУБЛИКА ТЫВА","17",null,"0686","ДО \"Ачинск-Чулым\"  ","662153, Красноярский край, гАчинск, ул. 28 квартал, дом 5,пом.30","Ачинск"]
[null,null,null,"БАНГЛАДЕШ","BD",null,"БАНГЛАДЕШ","BD",null,"УДМУРТСКАЯ РЕСПУБЛИКА","18",null,"1539","ДО \"Балаково-улица Трнавская\"  ","413860, Саратовская область, г.Балаково, ул. Трнавская, д. 23","Балаково"]
[null,null,null,"БАРБАДОС","BB",null,"БАРБАДОС","BB",null,"РЕСПУБЛИКА ХАКАСИЯ","19",null,"0620","ДО \"БАЛАШИХА\"  ","143912, Московская обл. г. Балашиха, ш. Энтузиастов, д.7/1","БАЛАШИХА"]
[null,null,null,"БАХРЕЙН","BH",null,"БАХРЕЙН","BH",null,"ЧЕЧЕНСКАЯ РЕСПУБЛИКА","20",null,"1181","ДО \"БАЛАШИХА-ЖЕЛЕЗНОДОРОЖНЫЙ\"  ","143980, Московская область, г. Балашиха, ул. Пролетарская, д. 2А","БАЛАШИХА"]
[null,null,null,"БЕЛИЗ","BZ",null,"БЕЛИЗ","BZ",null,"ЧУВАШСКАЯ РЕСПУБ. - ЧАВАШ РЕСПУБ.","21",null,"1608","ДО \"Балашов-улица Ленина\"  ","412309, Саратовская область, г. Балашов, ул. Ленина, д. 21Б","Балашов"]
[null,null,null,"БЕЛОРУССИЯ","BY",null,"БЕЛОРУССИЯ","BY",null,"АЛТАЙСКИЙ КРАЙ","22",null,"0692","ДО \"Барнаул-проспект Ленина\"  ","656011, Россия, Алтайский край, г.Барнаул, пр-кт Ленина, д. 106","Барнаул"]
[null,null,null,"БЕЛЬГИЯ","BE",null,"БЕЛЬГИЯ","BE",null,"КРАСНОДАРСКИЙ КРАЙ","23",null,"0859","ДО \"Барнаул-площадь Победы\"  ","656015 г. Барнаул, пр-тСоциалистический, д. 130","Барнаул"]
[null,null,null,"БЕНИН","BJ",null,"БЕНИН","BJ",null,"КРАСНОЯРСКИЙ КРАЙ","24",null,"0896","ДО \"Барнаул-площадь Советов\"  ","656038, г. Барнаул, пр-т Ленина, д.58","Барнаул"]
[null,null,null,"БЕРМУДСКИЕОСТРОВА(БРИТАНИЯ)","BM",null,"БЕРМУДСКИЕОСТРОВА(БРИТАНИЯ)","BM",null,"ПРИМОРСКИЙ КРАЙ","25",null,"1120","ДО \"Барнаул-Огни\"  ","656039, Алтайский край, г. Барнаул,ул. Антона Петрова, д. 219 Б","Барнаул"]
[null,null,null,"БОЛГАРИЯ","BG",null,"БОЛГАРИЯ","BG",null,"СТАВРОПОЛЬСКИЙ КРАЙ","26",null,"1155","ДО \"Барнаул-Лето\"  ","656057, Алтайский край, г. Барнаул,тракт Павловский, д. 251А","Барнаул"]
[null,null,null,"БОЛИВИЯ","BO",null,"БОЛИВИЯ","BO",null,"ХАБАРОВСКИЙ КРАЙ","27",null,"1173","ДО \"Батайск-улица Энгельса\"  ","346880, Ростовская область, г. Батайск, ул. Энгельса, д. 182","Батайск"]
[null,null,null,"БОСНИЯИГЕРЦЕГОВИНА","BA",null,"БОСНИЯИГЕРЦЕГОВИНА","BA",null,"АМУРСКАЯ ОБЛАСТЬ","28",null,"0957","ДО \"Белгород-проспект Славы\"  ","308000, г.Белгород, пр.Славы, д.68","Белгород"]
[null,null,null,"БОТСВАНА","BW",null,"БОТСВАНА","BW",null,"АРХАНГЕЛЬСКАЯ ОБЛАСТЬ","29",null,"1061","ДО \"Белгород-проспект Ватутина\"  ","308000, Российская Федерация. г.Белгород, проспект Ватутина, д. 9б","Белгород"]
[null,null,null,"БРАЗИЛИЯ","BR",null,"БРАЗИЛИЯ","BR",null,"АСТРАХАНСКАЯ ОБЛАСТЬ","30",null,"1123","ДО \"Белгород-улица Щорса\"  ","308027, Белгородская область г. Белгород, ул. Щорса, 8","Белгород"]
[null,null,null,"БРИТАНСКАЯТЕР-ЯВИНДИЙСКОМОКЕАНЕ","IO",null,"БРИТАНСКАЯТЕР-ЯВИНДИЙСКОМОКЕАНЕ","IO",null,"БЕЛГОРОДСКАЯ ОБЛАСТЬ","31",null,"1716","ДО \"Белебей-ул. Красная\"  ","452005, Республика Башкортостан, г.Белебей, ул. Красная, д. 134","Белебей"]
[null,null,null,"БРУНЕЙ","BN",null,"БРУНЕЙ","BN",null,"БРЯНСКАЯ ОБЛАСТЬ","32",null,"1734","ДО \"Белово-улица Юбилейная\"  ","652600, Кемеровская область, г. Белово, ул. Юбилейная, д. 8","Белово"]
[null,null,null,"БУВЕ","BV",null,"БУВЕ","BV",null,"ВЛАДИМИРСКАЯ ОБЛАСТЬ","33",null,"1744","ДО \"Белогорск-улица Кирова\"  ","676805, Амурская область, г. Белогорск, ул. Кирова, д. 119","Белогорск"]
[null,null,null,"БУРКИНА-ФАСО","BF",null,"БУРКИНА-ФАСО","BF",null,"ВОЛГОГРАДСКАЯ ОБЛАСТЬ","34",null,"1745","ДО \"Белорецк-улица Карла Маркса\"  ","453509, Республика Башкортостан, г.Белорецк, ул. Карла Маркса, д. 75","Белорецк"]
[null,null,null,"БУРУНДИ","BI",null,"БУРУНДИ","BI",null,"ВОЛОГОДСКАЯ ОБЛАСТЬ","35",null,"1615","ДО \"Белореченск-улица Ленина\"  ","352630, Краснодарский край, г. Белореченск, ул. Ленина, д. 145","Белореченск"]
[null,null,null,"БУТАН","BT",null,"БУТАН","BT",null,"ВОРОНЕЖСКАЯ ОБЛАСТЬ","36",null,"0722","ДО \"Бердск-Парковый\"  ","633010, Новосибирская область, г. Бердск, улица Ленина, 42","Бердск"]
[null,null,null,"ВАНУАТУ","VU",null,"ВАНУАТУ","VU",null,"ИВАНОВСКАЯ ОБЛАСТЬ","37",null,"1170","ДО \"Березники-ул. Пятилетки\"  ","618419, Пермский край, г. Березники, ул. Пятилетки, д. 50","Березники"]
[null,null,null,"ВАТИКАН","VA",null,"ВАТИКАН","VA",null,"ИРКУТСКАЯ ОБЛАСТЬ","38",null,"1713","ДО \"Березовский-улица Восточная\"  ","623700, Свердловская область, г. Березовский, ул. Восточная, д. 11а","Березовский"]
[null,null,null,"ВЕЛИКОБРИТАНИЯ","GB",null,"ВЕЛИКОБРИТАНИЯ","GB",null,"КАЛИНИНГРАДСКАЯ ОБЛАСТЬ","39",null,"0777","ДО \"Бийск-улица Васильева\"  ","659305, Алтайский край г.Бийск ул.Васильева дом, 57","Бийск"]
[null,null,null,"ВЕНГРИЯ","HU",null,"ВЕНГРИЯ","HU",null,"КАЛУЖСКАЯ ОБЛАСТЬ","40",null,"1606","ДО \"Биробиджан-Сквер Победы\"  ","679016, Еврейская автономная область, г. Биробиджан, ул. Шолом-Алейхема, зд. 8","Биробиджан"]
[null,null,null,"ВЕНЕСУЭЛА","VE",null,"ВЕНЕСУЭЛА","VE",null,"КАМЧАТСКАЯ ОБЛАСТЬ","41",null,"1178","ДО \"Благовещенск-Островского\"  ","675004, Амурская область, г. Благовещенск, ул. Островского, д. 12","Благовещенск"]
[null,null,null,"ВИРГИНСКИЕОСТРОВА(БРИТАНИЯ)","VG",null,"ВИРГИНСКИЕОСТРОВА(БРИТАНИЯ)","VG",null,"КЕМЕРОВСКАЯ ОБЛАСТЬ","42",null,"1671","ДО \"Большой Камень-Звезда\"  ","692806, Приморский край, г. БольшойКамень, ул. Карла Маркса, д. 13","Большой Камень"]
[null,null,null,"ВИРГИНСКИЕОСТРОВА(США)","VI",null,"ВИРГИНСКИЕОСТРОВА(США)","VI",null,"КИРОВСКАЯ ОБЛАСТЬ","43",null,"1631","ДО \"Бор-улица Ленина\"  ","606440, Нижегородская область, г. Бор, ул. Ленина, д. 129","Бор"]
[null,null,null,"ВОСТОЧНОЕСАМОА(США)","AS",null,"ВОСТОЧНОЕСАМОА(США)","AS",null,"КОСТРОМСКАЯ ОБЛАСТЬ","44",null,"1680","ДО \"Борисоглебск-улица Свободы\"  ","397160, Воронежская область, г. Борисоглебск, ул. Свободы, зд. 213/ул.Советская, д. 8","Борисоглебск"]
[null,null,null,"ВОСТОЧНЫЙТИМОР","TP",null,"ВОСТОЧНЫЙТИМОР","TP",null,"КУРГАНСКАЯ ОБЛАСТЬ","45",null,"1652","ДО \"Боровичи-улица Подбельского\"  ","174411, Новгородская область, г. Боровичи, ул. Подбельского, д. 36","Боровичи"]
[null,null,null,"ВЬЕТНАМ","VN",null,"ВЬЕТНАМ","VN",null,"КУРСКАЯ ОБЛАСТЬ","46",null,"1831","ДО \"Братск-улица Кирова\"  ","665708, Иркутская область, г. Братск, ул. Кирова, д. 18","Братск"]
[null,null,null,"ГАБОН","GA",null,"ГАБОН","GA",null,"ЛЕНИНГРАДСКАЯ ОБЛАСТЬ","47",null,"8003","ДО \"Нерюнгри-проспект Ленина\"  ","678967, Республика Саха (Якутия), г. Нерюнгри, пр-кт Ленина, д. 6","Братск"]
[null,null,null,"ГАИТИ","HT",null,"ГАИТИ","HT",null,"ЛИПЕЦКАЯ ОБЛАСТЬ","48",null,"1154","ДО \"Брянск-улица Красноармейская\"  ","241050, Брянская область, г. Брянск, ул. Красноармейская, д. 41","Брянск"]
[null,null,null,"ГАЙАНА","GY",null,"ГАЙАНА","GY",null,"МАГАДАНСКАЯ ОБЛАСТЬ","49",null,"1825","ДО \"Бугульма-Дом техники\"  ","423236, Республика Татарстан, г.Бугульма, ул. Газинура Гафиатуллина, д. 31","Бугульма"]
[null,null,null,"ГАМБИЯ","GM",null,"ГАМБИЯ","GM",null,"МОСКОВСКАЯ ОБЛАСТЬ","50",null,"1662","ДО \"Буденновск-улица Октябрьская\"  ","356800, Ставропольский край, г. Буденновск, ул. Октябрьская, д. 79","Буденновск"]
[null,null,null,"ГАНА","GH",null,"ГАНА","GH",null,"МУРМАНСКАЯ ОБЛАСТЬ","51",null,"0958","ДО \"Бузулук-ул. Комсомольская\"  ","461040, Оренбургская область, г. Бузулук, ул. Комсомольская, зд. 81","Бузулук"]
[null,null,null,"ГВАДЕЛУПА","GP",null,"ГВАДЕЛУПА","GP",null,"НИЖЕГОРОДСКАЯ ОБЛАСТЬ","52",null,"1175","ДО \"Великие Луки\"  ","182113, Псковская область, г. Великие Луки, проспект Ленина, д. 39","Великие Луки"]
[null,null,null,"ГВАТЕМАЛА","GT",null,"ГВАТЕМАЛА","GT",null,"НОВГОРОДСКАЯ ОБЛАСТЬ","53",null,"1157","ДО \"Великий Новгород-Волхов\"  ","173001, Новгородская область, г. Великий Новгород, ул. Большая Санкт-Петербургская, 13","Великий Новгород"]
[null,null,null,"ГВИАНА","GF",null,"ГВИАНА","GF",null,"НОВОСИБИРСКАЯ ОБЛАСТЬ","54",null,"1194","ДО \"Верхняя Пышма-Успенский пр-кт\" ","624090, Свердловская область, г. Верхняя Пышма, пр-кт Успенский, д. 20","Верхняя Пышма"]
[null,null,null,"ГВИНЕЯ","GN",null,"ГВИНЕЯ","GN",null,"ОМСКАЯ ОБЛАСТЬ","55",null,"1171","ДО \"ВИДНОЕ\"  ","142703, Московская область, г. Видное, ул. Школьная, 23","Видное"]
[null,null,null,"ГВИНЕЯ-БИСАУ","GW",null,"ГВИНЕЯ-БИСАУ","GW",null,"ОРЕНБУРГСКАЯ ОБЛАСТЬ","56",null,"0685","ДО \"Владивосток-Тихоокеанский\"  ","690002, Россия, Приморский край, г.Владивосток, пр-т Острякова, д. 5Г","Владивосток"]
[null,null,null,"ГЕРМАНИЯ","DE",null,"ГЕРМАНИЯ","DE",null,"ОРЛОВСКАЯ ОБЛАСТЬ","57",null,"0860","ДО \"Владивосток-Приморский\"  ","690091 г. Владивосток, ул АдмиралаФокина, д. 19","Владивосток"]
[null,null,null,"ГИБРАЛТАР","GI",null,"ГИБРАЛТАР","GI",null,"ПЕНЗЕНСКАЯ ОБЛАСТЬ","58",null,"0893","ДО \"Владивосток-пр-кт Столетия\"  ","690048 , Владивосток ,пр-кт 100 летВладивостока, 51","Владивосток"]
[null,null,null,"ГОНДУРАС","HN",null,"ГОНДУРАС","HN",null,"ПЕРМСКАЯ ОБЛАСТЬ","59",null,"1128","ДО \"Владивосток-Золотой Рог\"  ","690035, Приморский край, г. Владивосток, ул. Харьковская, д. 8","Владивосток"]
[null,null,null,"ГРЕНАДА","GD",null,"ГРЕНАДА","GD",null,"ПСКОВСКАЯ ОБЛАСТЬ","60",null,"1830","ДО \"Владикавказ-Центральный\"  ","362008, Республика Северная Осетия-Алания, г. Владикавказ, ул. Генерала Плиева, д. 10","Владикавказ"]
[null,null,null,"ГРЕНЛАНДИЯ","GL",null,"ГРЕНЛАНДИЯ","GL",null,"РОСТОВСКАЯ ОБЛАСТЬ","61",null,"0792","ДО \"Владимир-Золотые ворота\"  ","600015, Владимирская обл.,г. Владимир, ул. Ленина, д. 26, 26А","Владимир"]
[null,null,null,"ГРЕЦИЯ","GR",null,"ГРЕЦИЯ","GR",null,"РЯЗАНСКАЯ ОБЛАСТЬ","62",null,"0805","ДО \"Волгоград-Царицынский\"  ","400066, Россия, Волгоградскаяобласть, г. Волгоград, пр-кт им.В.И. Ленина, 2а","Волгоград"]
[null,null,null,"ГРУЗИЯ","GE",null,"ГРУЗИЯ","GE",null,"САМАРСКАЯ ОБЛАСТЬ","63",null,"0824","ДО \"Волгоград-Красноармейский\"  ","400112, Волгоградская обл., г. Волгоград, проспект им. Героев Сталинграда, д. 49","Волгоград"]
[null,null,null,"ГУАМ","GU",null,"ГУАМ","GU",null,"САРАТОВСКАЯ ОБЛАСТЬ","64",null,"0861","ДО \"Волгоград-Комсомольский\"  ","400066, Россия, Волгоградскаяобласть, г.Волгоград, ул.Комсомольская, 10","Волгоград"]
[null,null,null,"ДАНИЯ","DK",null,"ДАНИЯ","DK",null,"САХАЛИНСКАЯ ОБЛАСТЬ","65",null,"0864","ДО \"Волгоград-Спартановка\"  ","400121 Волгоградская область, г.Волгоград, ул. Николая Отрады, д. 6","Волгоград"]
[null,null,null,"ДЖИБУТИ","DJ",null,"ДЖИБУТИ","DJ",null,"СВЕРДЛОВСКАЯ ОБЛАСТЬ","66",null,"1121","ДО \"Волгоград-Семь Ветров\"  ","400117, Волгоградская область, г. Волгоград, ул. 8-й Воздушной Армии,д. 47а","Волгоград"]
[null,null,null,"ДОМИНИКА","DM",null,"ДОМИНИКА","DM",null,"СМОЛЕНСКАЯ ОБЛАСТЬ","67",null,"1196","ДО \"Волгодонск-пр-кт Строителей\"  ","347382, Ростовская область, г. Волгодонск, пр-кт Строителей, д. 21","Волгодонск"]
[null,null,null,"ДОМИНИКАНСКАЯРЕСПУБЛИКА","DO",null,"ДОМИНИКАНСКАЯРЕСПУБЛИКА","DO",null,"ТАМБОВСКАЯ ОБЛАСТЬ","68",null,"1702","ДО \"Волжск-улица Ленина\"  ","425000, Республика Марий Эл, г. Волжск, ул. Ленина, д. 56б","Волжск"]
[null,null,null,"ДУБАИ(ОБЪЕДИН.АРАБСКИЕЭМИРАТЫ)","XD",null,"ДУБАИ(ОБЪЕДИН.АРАБСКИЕЭМИРАТЫ)","XD",null,"ТВЕРСКАЯ ОБЛАСТЬ","69",null,"0863","ДО \"Волжский-улица Мира\"  ","404105 Волгоградская область, г.Волжский, ул. Мира, д. 74 А","Волжский"]
[null,null,null,"ДУБЛИН(ИРЛАНДИЯ)","XI",null,"ДУБЛИН(ИРЛАНДИЯ)","XI",null,"ТОМСКАЯ ОБЛАСТЬ","70",null,"1162","ДО \"Вологда-площадь Возрождения\"  ","160000, Россия, Вологодская область, г. Вологда, ул. Ленина, д. 5","Вологда"]
[null,null,null,"ЕГИПЕТ","EG",null,"ЕГИПЕТ","EG",null,"ТУЛЬСКАЯ ОБЛАСТЬ","71",null,"8001","ДО \"ВОЛОКОЛАМСК\"  ","143600, Московская область, г. Волоколамск, ул. Советская, д. 1/1","Волоколамск"]
[null,null,null,"ЗАИР","ZR",null,"ЗАИР","ZR",null,"ТЮМЕНСКАЯ ОБЛАСТЬ","72",null,"1642","ДО \"Вольск-пл. 10-летия Октября\"  ","412906, Саратовская область, г. Вольск, пл. 10-летия Октября, д. 4/1","Вольск"]
[null,null,null,"ЗАМБИЯ","ZM",null,"ЗАМБИЯ","ZM",null,"УЛЬЯНОВСКАЯ ОБЛАСТЬ","73",null,"0452","ДО \"Воронеж-улица Кольцовская\"  ","394030, Воронежская область, г. Воронеж, ул. Кольцовская, д. 31","Воронеж"]
[null,null,null,"ЗАПАДНАЯСАХАРА","EH",null,"ЗАПАДНАЯСАХАРА","EH",null,"ЧЕЛЯБИНСКАЯ ОБЛАСТЬ","74",null,"0733","ДО \"Воронеж-улица Кирова\"  ","394006, г. Воронеж, ул. Кирова, д.11","Воронеж"]
[null,null,null,"ЗАПАДНОЕСАМОА","WS",null,"ЗАПАДНОЕСАМОА","WS",null,"ЗАБАЙКАЛЬСКИЙ КРАЙ","75",null,"1050","ДО \"Воронеж-улица Лизюкова\"  ","394088, Россия, Воронежская область, г. Воронеж, ул. Генерала Лизюкова, д. 50","Воронеж"]
[null,null,null,"ЗИМБАБВЕ","ZW",null,"ЗИМБАБВЕ","ZW",null,"ЯРОСЛАВСКАЯ ОБЛАСТЬ","76",null,"1147","ДО \"Воронеж-Олимпийский квартал\"  ","394053, Воронежская область, г. Воронеж, ул. Загоровского, д. 1","Воронеж"]
[null,null,null,"ИЗРАИЛЬ","IL",null,"ИЗРАИЛЬ","IL",null,"Г. МОСКВА","77",null,"1169","Дополнительный офис \"Воронеж-Димитрова\"  ","394007, Воронежская область. г. Воронеж, Ленинский проспект, д. 116А","Воронеж"]
[null,null,null,"ИНДИЯ","IN",null,"ИНДИЯ","IN",null,"Г. САНКТ - ПЕТЕРБУРГ","78",null,"1806","ДО \"ВОСКРЕСЕНСК\"  ","140200, Московская область, г. Воскресенск, ул. Октябрьская, д. 2","Воскресенск"]
[null,null,null,"ИНДОНЕЗИЯ","ID",null,"ИНДОНЕЗИЯ","ID",null,"ЕВРЕЙСКАЯ АВТОНОМНАЯ ОБЛАСТЬ","79",null,"1728","ДО \"Воткинск-улица 1 мая\"  ","27433, Удмуртская Республика, г. Воткинск, ул. 1 Мая, д. 102","Воткинск"]
[null,null,null,"ИОРДАНИЯ","JO",null,"ИОРДАНИЯ","JO",null,"АГИНСКИЙ БУРЯТСКИЙ АВТОНОМНЫЙ ОКР.","80",null,"1804","ДО \"Всеволожск-Всеволожский пр-кт\" ","188640, Ленинградская область, г. Всеволожск, Всеволожский пр-кт, д. 29","Всеволожск"]
[null,null,null,"ИРАК","IQ",null,"ИРАК","IQ",null,"КОМИ - ПЕРМЯЦКИЙ АВТОНОМНЫЙ ОКРУГ","81",null,"1768","ДО \"Выборг-улица Вокзальная\"  ","188800, Ленинградская область, г. Выборг, ул. Вокзальная, д. 7","Выборг"]
[null,null,null,"ИРЛАНДИЯ","IE",null,"ИРЛАНДИЯ","IE",null,"КОРЯКСКИЙ АВТОНОМНЫЙ ОКРУГ","82",null,"1658","ДО \"Выкса-улица Островского\"  ","607061, Нижегородская область, г. Выкса, ул. Островского, зд. 33","Выкса"]
[null,null,null,"ИСЛАНДИЯ","IS",null,"ИСЛАНДИЯ","IS",null,"НЕНЕЦКИЙ АВТОНОМНЫЙ ОКРУГ","83",null,"1813","ДО \"В.Волочек-Казанский проспект\"  ","171163, Тверская область, г. ВышнийВолочек, пр-кт Казанский, д. 44","Вышний Волочек"]
[null,null,null,"ИСПАНИЯ","ES",null,"ИСПАНИЯ","ES",null,"ТАЙМЫР.(ДОЛГАН-НЕНЕЦК.) АВТ. ОКРУГ","84",null,"1654","ДО \"Вязьма-улица 25 Октября\"  ","215110, Смоленская область, г. Вязьма, ул. 25 Октября, д. 4","Вязьма"]
[null,null,null,"ИТАЛИЯ","IT",null,"ИТАЛИЯ","IT",null,"УСТЬ - ОРДЫНСКИЙ БУРЯТСКИЙ АВТ. ОКР.","85",null,"1754","ДО \"Гатчина-проспект 25 Октября\"  ","188300, Ленинградская область, г. Гатчина, пр-кт 25 Октября, д. 11/13","Гатчина"]
[null,null,null,"ЙЕМЕН","YE",null,"ЙЕМЕН","YE",null,"ХАНТЫ - МАНСИЙСКИЙ АВТ. ОКР.","86",null,"8034","ДО \"Геленджик-улица Херсонская\"  ","353460, Краснодарский край, г. Геленджик, ул. Херсонская, д. 23","Геленджик"]
[null,null,null,"КАБО-ВЕРДЕ","CV",null,"КАБО-ВЕРДЕ","CV",null,"ЧУКОТСКИЙ АВТОНОМНЫЙ ОКРУГ","87",null,"8028","ДО \"Георгиевск-улица Салогубова\"  ","357821, Ставропольский край, г. Георгиевск, ул. Салогубова, д. 16","Георгиевск"]
[null,null,null,"КАЗАХСТАН","KZ",null,"КАЗАХСТАН","KZ",null,"ЭВЕНКИЙСКИЙ АВТОНОМНЫЙ ОКРУГ","88",null,"0874","ДО \"Глазов-Чепецкий\"  ","427620 Удмуртская респ., г. Глазов,ул. Кирова, д. 13","Глазов"]
[null,null,null,"КАЙМАН","KY",null,"КАЙМАН","KY",null,"ЯМАЛО - НЕНЕЦКИЙ АВТОНОМНЫЙ ОКРУГ","89",null,"1616","ДО \"Горно-Алтайск-Родник\"  ","649000, Республика Алтай, г. Горно-Алтайск, пр-кт Коммунистический, д.27","Горно-Алтайск"]
[null,null,null,"КАМБОДЖА","KH",null,"КАМБОДЖА","KH",null,"ГОРОД И КОСМОДРОМ БАЙКОНУР","99",null,"1725","ДО \"Губкин-улица Кирова\"  ","309181, Белгородская область, г. Губкин, ул. Кирова, д. 53","Губкин"]
[null,null,null,"КАМЕРУН","CM",null,"КАМЕРУН","CM",null,"РЕСПУБЛИКА КРЫМ","91",null,"1762","ДО \"Гусь-Хрустальный-ул. Калинина\" ","601501, Владимирская область, г.Гусь-Хрустальный, ул. Калинина, д.30","Гусь-Хрустальный"]
[null,null,null,"КАНАДА","CA",null,"КАНАДА","CA",null,"Г.СЕВАСТОПОЛЬ","92",null,"0753","ДО \"Дзержинск-улица Гайдара\"  ","606029, Нижегородская область, г. Дзержинск, ул. Гайдара, д. 61","Дзержинск"]
[null,null,null,"КАНТОНЖЕНЕВА(ШВЕЙЦАРИЯ)","XJ",null,"КАНТОНЖЕНЕВА(ШВЕЙЦАРИЯ)","XJ",null,null,null,null,"1177","ДО \"Димитровград-Черемшан\"  ","433512, Ульяновская область, г. Димитровград, пр-кт. Ленина, зд. 39д","Димитровград"]
[null,null,null,"КАНТОННЕШЕТАЛЬ(НЕВШАТЕЛЬ)(ШВЕЙЦ)","XN",null,"КАНТОННЕШЕТАЛЬ(НЕВШАТЕЛЬ)(ШВЕЙЦ)","XN",null,null,null,null,"1739","ДО \"ДМИТРОВ\"  ","141800, Московская область, г. Дмитров, ул. Загорская, д. 24","Дмитров"]
[null,null,null,"КАНТОНФРИБУРГ(ШВЕЙЦАРИЯ)","XF",null,"КАНТОНФРИБУРГ(ШВЕЙЦАРИЯ)","XF",null,null,null,null,"1525","ДО \"ДОЛГОПРУДНЫЙ\"  ","141700, Московская область, г. Долгопрудный, Новый бульвар, д. 2","Долгопрудный"]
[null,null,null,"КАНТОНЦУГ(ШВЕЙЦАРИЯ)","XC",null,"КАНТОНЦУГ(ШВЕЙЦАРИЯ)","XC",null,null,null,null,"1527","ДО \"ДОМОДЕДОВО\"  ","142000, Московская область, г. Домодедово, Каширское шоссе, д. 51","Домодедово"]
[null,null,null,"КАТАР","QA",null,"КАТАР","QA",null,null,null,null,"8067","ДО \"Донецк-улица Горького\"  ","346330, Ростовская область, г. Донецк, ул. Максима Горького, д. 67","Донецк"]
[null,null,null,"КЕНИЯ","KE",null,"КЕНИЯ","KE",null,null,null,null,"1727","ДО \"Донской-улица Октябрьская\"  ","301764, Тульская область, г. Донской, ул. Октябрьская, д. 59а","Донской"]
[null,null,null,"КИПР","CY",null,"КИПР","CY",null,null,null,null,"1818","ДО \"ДУБНА\"  ","141986, Московская область, г. Дубна, пр-кт Боголюбова, д. 14А","Дубна"]
[null,null,null,"КИРГИЗИЯ","KG",null,"КИРГИЗИЯ","KG",null,null,null,null,"1669","ДО \"ЕГОРЬЕВСК\"  ","140301, Московская область, г. Егорьевск, ул. Советская, д. 82А","Егорьевск"]
[null,null,null,"КИРИБАТИ","KI",null,"КИРИБАТИ","KI",null,null,null,null,"0482","ДО \"Екатеринбург-улица 8 Марта\"  ","620014, г. Екатеринбург, ул. 8 Марта, д. 10/ ул. Малышева, д. 42 (литер А)","Екатеринбург"]
[null,null,null,"КИТАЙ","CN",null,"КИТАЙ","CN",null,null,null,null,"0684","ДО \"Екатеринбург-улица Уральская\"  ","620041, г. Екатеринбург ,ул.Уральская д 75","Екатеринбург"]
[null,null,null,"КОКОСОВЫЕОСТРОВА","CC",null,"КОКОСОВЫЕОСТРОВА","CC",null,null,null,null,"0818","ДО \"Екатеринбург-улица Южная\"  ","620144 г. Екатеринбург, ул. 8 марта, 194","Екатеринбург"]
[null,null,null,"КОЛУМБИЯ","CO",null,"КОЛУМБИЯ","CO",null,null,null,null,"0978","ДО \"Екатеринбург-ул. Белореченская\" ","620086, г. Екатеринбург ул. Белореченская  дом, 12а","Екатеринбург"]
[null,null,null,"КОМОРСКИЕОСТРОВА","KM",null,"КОМОРСКИЕОСТРОВА","KM",null,null,null,null,"0981","ДО \"Екатеринбург-улица Кузнецова\"  ","620000 , г. Екатеринбург, ул. Кузнецова , д. 2","Екатеринбург"]
[null,null,null,"КОНГО","CG",null,"КОНГО","CG",null,null,null,null,"0982","ДО \"Екатеринбург-проспект Ленина\"  ","620062, г. Екатеринбург, проспект Ленина, д. 60","Екатеринбург"]
[null,null,null,"КОНГО,ДЕМОКРАТИЧЕСКАЯРЕСПУБЛИКА","CD",null,"КОНГО,ДЕМОКРАТИЧЕСКАЯРЕСПУБЛИКА","CD",null,null,null,null,"0983","ДО \"Екатеринбург-Уралмаш\"  ","620012 Свердловская обл.,г.Екатеринбург, ул.Машиностроителей, д. 19","Екатеринбург"]
[null,null,null,"КОРЕЯ(РЕСПУБЛИКА)","KR",null,"КОРЕЯ(РЕСПУБЛИКА)","KR",null,null,null,null,"0984","ДО \"Екатеринбург-улица Родонитовая\" ","620089, Российская Федерация, г. Екатеринбург, ул. Родонитовая, д. 4","Екатеринбург"]
[null,null,null,"КОСТА-РИКА","CR",null,"КОСТА-РИКА","CR",null,null,null,null,"0986","ДО \"Екатеринбург-Морозовский\"  ","620000, г. Екатеринбург ул. Сони Морозовой  дом, 190","Екатеринбург"]
[null,null,null,"КОТ-Д'ИВУАР","CI",null,"КОТ-Д'ИВУАР","CI",null,null,null,null,"0998","ДО \"Екатеринбург-улица Горького\"  ","620000, Свердловская область, г. Екатеринбург, ул. Горького, стр. 7-а","Екатеринбург"]
[null,null,null,"КОТ-Д'ИВУАР","IC",null,"КОТ-Д'ИВУАР","IC",null,null,null,null,"1097","ДО \"Екатеринбург-улица Крауля\"  ","620109, г. Екатеринбург, ул. Крауля, 44","Екатеринбург"]
[null,null,null,"КУБА","CU",null,"КУБА","CU",null,null,null,null,"1163","ДО \"Екатеринбург-Академический\"  ","620105, Свердловская область, г.Екатеринбург, ул. Вильгельма деГеннина, д. 31","Екатеринбург"]
[null,null,null,"КУВЕЙТ","KW",null,"КУВЕЙТ","KW",null,null,null,null,"1682","ДО \"Елабуга-пр-кт Нефтяников\"  ","423603, Республика Татарстан, г. Елабуга, пр-кт Нефтяников, д. 17","Елабуга"]
[null,null,null,"ЛАОС","LA",null,"ЛАОС","LA",null,null,null,null,"1192","ДО \"Елец-улица Мира\"  ","399770, Липецкая область, г. Елец,улица Мира, д. 133","Елец"]
[null,null,null,"ЛАТВИЯ","LV",null,"ЛАТВИЯ","LV",null,null,null,null,"1624","ДО \"Ессентуки-Привокзальная площадь\"  ","357601, Ставропольский край, г. Ессентуки, Привокзальная пл.","Ессентуки"]
[null,null,null,"ЛЕСОТО","LS",null,"ЛЕСОТО","LS",null,null,null,null,"0880","ДО \"Железногорск-Саяны\"  ","662971, Красноярский край, ЗАТО Железногорск, г. Железногорск, ул. Свердлова, дом 21","Железногорск"]
[null,null,null,"ЛИТВА","LT",null,"ЛИТВА","LT",null,null,null,null,"1672","ДО \"Железногорск-Юность\"  ","307179, Курская область, г. Железногорск, ул. Воинов-интернационалистов, д. 6","Железногорск"]
[null,null,null,"ЛИХТЕНШТЕЙН","LI",null,"ЛИХТЕНШТЕЙН","LI",null,null,null,null,"1529","ДО \"ЖУКОВСКИЙ\"  ","140184, Московская область, г. Жуковский, ул. Гагарина, д. 24","Жуковский"]
[null,null,null,"ЛЮКСЕМБУРГ","LU",null,"ЛЮКСЕМБУРГ","LU",null,null,null,null,"8015","ДО \"Заречный-улица Ленина\"  ","442963, Пензенская область, г. Заречный, ул. Ленина, д. 20А","Заречный"]
[null,null,null,"МАВРИКИЙ","MU",null,"МАВРИКИЙ","MU",null,null,null,null,"1696","ДО \"Зеленодольск-улица Ленина\"  ","422550, Республика Татарстан, г.Зеленодольск, ул. Ленина, д. 25","Зеленодольск"]
[null,null,null,"МАВРИТАНИЯ","MR",null,"МАВРИТАНИЯ","MR",null,null,null,null,"1005","ДО \"Златоуст-проспект Гагарина\"  ","456228, Челябинская область, г. Златоуст, пр. им. Ю.А. Гагарина, 3 м/р-н, д. 14-в","Златоуст"]
[null,null,null,"МАДАГАСКАР","MG",null,"МАДАГАСКАР","MG",null,null,null,null,"1146","ДО \"Иваново-Центральный\"  ","153000, г. Иваново, проспект Ленина, 11","Иваново"]
[null,null,null,"МАЙОТТА","YT",null,"МАЙОТТА","YT",null,null,null,null,"0736","ДО \"Ижевск-улица Пушкинская\"  ","426008, Удмуртская республика, г. Ижевск, ул. Пушкинская д. 216","Ижевск"]
[null,null,null,"МАКЕДОНИЯ","MK",null,"МАКЕДОНИЯ","MK",null,null,null,null,"0804","ДО \"Ижевск-Центральный\"  ","426004, Удмуртская республика, г. Ижевск, ул. Ленина, 21","Ижевск"]
[null,null,null,"МАЛАВИ","MW",null,"МАЛАВИ","MW",null,null,null,null,"0869","ДО \"Ижевск-Устиновский\"  ","426073 г. Ижевск, ул. Молодежная,д. 87","Ижевск"]
[null,null,null,"МАЛАЙЗИЯ","MY",null,"МАЛАЙЗИЯ","MY",null,null,null,null,"0741","ДО \"Иркутск-Лермонтовский\"  ","664074, Иркутская область, г. Иркутск ул. Лермонтова, д. 63","Иркутск"]
[null,null,null,"МАЛИ","ML",null,"МАЛИ","ML",null,null,null,null,"0865","ДО \"Иркутск-Амурские ворота\"  ","664003, г. Иркутск ул. Ленина дом,25","Иркутск"]
[null,null,null,"МАЛЫЕТИХООКЕАНСКИЕОСТРОВА","UM",null,"МАЛЫЕТИХООКЕАНСКИЕОСТРОВА","UM",null,null,null,null,"0891","ДО \"Иркутск-Байкал\"  ","664003,Иркутская область, г. Иркутск, ул. Литвинова д. 2","Иркутск"]
[null,null,null,"МАЛЬДИВЫ","MV",null,"МАЛЬДИВЫ","MV",null,null,null,null,"0991","ДО \"Иркутск-Ангара\"  ","664022, Иркутская область, г. Иркутск, ул. Кожова, д. 20","Иркутск"]
[null,null,null,"МАЛЬТА","MT",null,"МАЛЬТА","MT",null,null,null,null,"1633","ДО \"Искитим-улица Пушкина\"  ","633209, Новосибирская область, г. Искитим, ул. Пушкина, д. 40А","Искитим"]
[null,null,null,"МАРОККО","MA",null,"МАРОККО","MA",null,null,null,null,"8047","ДО \"ИСТРА\"  ","143500, Московская область, г. Истра, ул. Ленина, д. 75","Истра"]
[null,null,null,"МАРТИНИКА","MQ",null,"МАРТИНИКА","MQ",null,null,null,null,"1703","ДО \"Ишим-улица Карла Маркса\"  ","627754, Тюменская область, г. Ишим,ул. Карла Маркса, д. 77А","Ишим"]
[null,null,null,"МАРШАЛЛОВЫОСТРОВА","MH",null,"МАРШАЛЛОВЫОСТРОВА","MH",null,null,null,null,"1006","ДО \"Йошкар-Ола-Новопокровская\"  ","424008, Республика Марий Эл, г. Йошкар-Ола, ул. Первомайская, д. 164","Йошкар-Ола"]
[null,null,null,"МЕКСИКА","MX",null,"МЕКСИКА","MX",null,null,null,null,"0705","ДО \"Казань-улица Ершова\"  ","420061, Российская Федерация, Республика Татарстан, г. Казань, ул. Николая Ершова, д. 29 \"Б\"","Казань"]
[null,null,null,"МИКРОНЕЗИЯ","FM",null,"МИКРОНЕЗИЯ","FM",null,null,null,null,"0825","ДО \"Казань-улица Островского\"  ","420107, Республика Татарстан, г. Казань, ул. Островского, д. 103","Казань"]
[null,null,null,"МОЗАМБИК","MZ",null,"МОЗАМБИК","MZ",null,null,null,null,"0843","ДО \"Казань-Савиново\"  ","420126, Республика Татарстан, г. Казань, пр-т Ямашева, д. 82","Казань"]
[null,null,null,"МОЛДАВИЯ","MD",null,"МОЛДАВИЯ","MD",null,null,null,null,"0848","ДО \"Казань-улица Зорге\"  ","420110, Российская Федерация,Республика Татарстан, г. Казань,ул. Рихарда Зорге, д. 75","Казань"]
[null,null,null,"МОНАКО","MC",null,"МОНАКО","MC",null,null,null,null,"0885","ДО \"Казань-улица Декабристов\"  ","420080 г. Казань, ул. Декабристовд.129","Казань"]
[null,null,null,"МОНГОЛИЯ","MN",null,"МОНГОЛИЯ","MN",null,null,null,null,"1115","ДО \"Казань-улица Закиева\"  ","420100, Республика Татарстан, г. Казань, ул. Закиева, д. 1","Казань"]
[null,null,null,"МОНТСЕРРАТ","MS",null,"МОНТСЕРРАТ","MS",null,null,null,null,"0455","ДО \"Калининград-Янтарь\"  ","236022, Россия, Калининградская область, г. Калининград, площадь Победы, д. 4","Калининград"]
[null,null,null,"НАМИБИЯ","NA",null,"НАМИБИЯ","NA",null,null,null,null,"0732","ДО \"Калининград-Южный\"  ","236044, Калининградская обл., г. Калининград, б-р Л.Шевцовой, д. 1А","Калининград"]
[null,null,null,"НАУРУ","NR",null,"НАУРУ","NR",null,null,null,null,"0836","ДО \"Калининград-Плаза\"  ","236006, Калининградская обл, г Калининград, ул Шевченко, д. 11а","Калининград"]
[null,null,null,"НЕПАЛ","NP",null,"НЕПАЛ","NP",null,null,null,null,"1533","ДО \"Калининград-Академический\"  ","236041, Калининградская область, г.Калининград , ул. Куйбышева, д. 2","Калининград"]
[null,null,null,"НИГЕР","NE",null,"НИГЕР","NE",null,null,null,null,"0672","ДО \"Калуга-улица Кирова\"  ","248008, Российская Федерация, Калужская область, г. Калуга, ул. Кирова, д. 57","Калуга"]
[null,null,null,"НИГЕРИЯ","NG",null,"НИГЕРИЯ","NG",null,null,null,null,"1140","ДО \"Калуга-улица Плеханова\"  ","248001, Калужская область, г. Калуга, ул. Кирова, д. 14","Калуга"]
[null,null,null,"НИДЕРЛАНДЫ","NL",null,"НИДЕРЛАНДЫ","NL",null,null,null,null,"0990","ДО \"Каменск-Уральский-пр.Победы\"  ","623400, Свердловская обл., г. Каменск-Уральский, пр-кт Победы, д. 39а","Каменск-Уральский"]
[null,null,null,"НИКАРАГУА","NI",null,"НИКАРАГУА","NI",null,null,null,null,"1667","ДО Каменск-Шахтинский-пр-кт Марксав Каменск-Шахтинский ","347810, Ростовская область, г. Каменск-Шахтинский, пр-кт Карла Маркса,д. 73","Каменск-Шахтинский"]
[null,null,null,"НИУЭ","NU",null,"НИУЭ","NU",null,null,null,null,"1657","ДО \"Камышин-улица Пролетарская\"  ","403873, Волгоградская область, г. Камышин, ул. Пролетарская, д. 101","Камышин"]
[null,null,null,"НОВАЯЗЕЛАНДИЯ","NZ",null,"НОВАЯЗЕЛАНДИЯ","NZ",null,null,null,null,"1802","ДО \"Канск-ул. 40 лет Октября\"  ","663604, Красноярский край, г. Канск, ул. 40 лет Октября, зд. 62, стр.4","Канск"]
[null,null,null,"НОВАЯКАЛЕДОНИЯ","NC",null,"НОВАЯКАЛЕДОНИЯ","NC",null,null,null,null,"0838","ДО \"Кемерово-Кузбасс\"  ","650991, Кемеровская обл., г.Кемерово, пр-кт Советский, д. 32","Кемерово"]
[null,null,null,"НОРВЕГИЯ","NO",null,"НОРВЕГИЯ","NO",null,null,null,null,"0960","ДО \"Кемерово-Бульвар Строителей\"  ","650003, Российская Федерация,Кемеровская область, г. Кемерово,Ленинский район, бр. Строителей,","Кемерово"]
[null,null,null,"НОРМАНДСКИЕО-ВАГЕРНСИ,ДЖЕРСИ,САРК","XG",null,"НОРМАНДСКИЕО-ВАГЕРНСИ,ДЖЕРСИ,САРК","XG",null,null,null,null,"0999","ДО \"Кемерово-Центральный\"  ","650066, Кемеровская область - Кузбасс, г. Кемерово, пр-кт Ленина, д. 64а","Кемерово"]
[null,null,null,"НОРФОЛК","NF",null,"НОРФОЛК","NF",null,null,null,null,"1665","ДО \"Кинешма-улица Ленина\"  ","155800, Ивановская область, г. Кинешма, ул. им. Ленина, д. 6","Кинешма"]
[null,null,null,"О.КЕРГЕЛЕН(ФРАНЦИЯ)","XK",null,"О.КЕРГЕЛЕН(ФРАНЦИЯ)","XK",null,null,null,null,"8074","ДО \"Кириши-проспект Героев\"  ","187112, Ленинградская область, г. Кириши, пр-кт Героев, д. 2","Кириши"]
[null,null,null,"О.ЛАБУАН(МАЛАЙЗИЯ)","XL",null,"О.ЛАБУАН(МАЛАЙЗИЯ)","XL",null,null,null,null,"0763","ДО \"Киров-улица Карла Маркса\"  ","610027, Кировская обл., г. Киров,ул. Карла Маркса, д. 99","Киров"]
[null,null,null,"О.МАДЕЙРА(ПОРТУГАЛИЯ)","XM",null,"О.МАДЕЙРА(ПОРТУГАЛИЯ)","XM",null,null,null,null,"1635","ДО \"Кирово-Чепецк-проспект Мира\"  ","613050, Кировская область, г. Кирово-Чепецк, пр-кт Мира, д. 74","Кирово-Чепецк"]
[null,null,null,"О.МЭН(ВЕЛИКОБРИТАНИЯ)","IM",null,"О.МЭН(ВЕЛИКОБРИТАНИЯ)","IM",null,null,null,null,"1692","ДО \"Киселевск-улица Ленина\"  ","652700, Кемеровская область, г. Киселевск, ул. Ленина, д. 38","Киселевск"]
[null,null,null,"ОБЪЕДИНЕННЫЕАРАБСКИЕЭМИРАТЫ","AE",null,"ОБЪЕДИНЕННЫЕАРАБСКИЕЭМИРАТЫ","AE",null,null,null,null,"1612","ДО \"Кисловодск-улица Горького\"  ","357700, Ставропольский край, г. Кисловодск, ул. Горького, д. 17Б","Кисловодск"]
[null,null,null,"ОМАН","OM",null,"ОМАН","OM",null,null,null,null,"1659","ДО \"КЛИН\"  ","141607, Московская область, г. Клин, ул. К. Маркса, д. 4","Клин"]
[null,null,null,"ОСТРОВАКУКА","CK",null,"ОСТРОВАКУКА","CK",null,null,null,null,"1197","ДО \"Клинцы-проспект Ленина\"  ","243140, Брянская область, г. Клинцы, пр-кт Ленина, д. 21","Клинцы"]
[null,null,null,"ОСТРОВРОЖДЕСТВА","CX",null,"ОСТРОВРОЖДЕСТВА","CX",null,null,null,null,"1542","ДО \"Ковров-Дегтяревский\"  ","601900, Владимирская область, г. Ковров, проспект Ленина, д. 38","Ковров"]
[null,null,null,"ОСТРОВСВЯТОЙЕЛЕНЫ","SH",null,"ОСТРОВСВЯТОЙЕЛЕНЫ","SH",null,null,null,null,"1826","ДО \"Когалым-улица Ленинградская\"  ","628484, Ханты-Мансийский автономныйокруг-Югра, г. Когалым, ул. Ленинградская, д. 17","Когалым"]
[null,null,null,"ПАКИСТАН","PK",null,"ПАКИСТАН","PK",null,null,null,null,"1622","ДО \"КОЛОМНА\"  ","140408, Московская область, г. Коломна, пл. Восстания, д. 7","Коломна"]
[null,null,null,"ПАЛАУ","PW",null,"ПАЛАУ","PW",null,null,null,null,"1820","ДО \"Колпино-улица Тверская\"  ","96655, г. Санкт-Петербург, г. Колпино, ул. Тверская, д. 34, лит. А","Колпино"]
[null,null,null,"ПАНАМА","PA",null,"ПАНАМА","PA",null,null,null,null,"1729","ДО \"КОММУНАРКА\"  ","108801, г. Москва, пос. Коммунарка,ул. Липовый парк, д. 11","Коммунарка"]
[null,null,null,"ПАПУА-НОВАЯГВИНЕЯ","PG",null,"ПАПУА-НОВАЯГВИНЕЯ","PG",null,null,null,null,"0690","ДО \"Комсомольск нА-пр-т Ленина\"  ","681013, Хабаровский край, г. Комсомольск-на-Амуре, проспект. Ленина, д. 13, пом. 1002","Комсомольск-на-Амуре"]
[null,null,null,"ПАРАГВАЙ","PY",null,"ПАРАГВАЙ","PY",null,null,null,null,"1621","ДО \"Копейск-пр-кт Победы\"  ","456618, Челябинская область, г. Копейск, пр-кт Коммунистический, д. 28","Копейск"]
[null,null,null,"ПЕРУ","PE",null,"ПЕРУ","PE",null,null,null,null,"0613","ДО \"КОРОЛЕВ\"  ","141080, Московская обл., г. Королев, пр. Космонавтов, д. 27б","Королев"]
[null,null,null,"ПИТКЭРН","PN",null,"ПИТКЭРН","PN",null,null,null,null,"1165","ДО \"Кострома-Романовский\"  ","156000, Костромская область, г. Кострома, ул. Советская, д. 30","Кострома"]
[null,null,null,"ПОЛЬША","PL",null,"ПОЛЬША","PL",null,null,null,null,"8018","ДО \"КОТЕЛЬНИКИ\"  ","140056, Московская область, г. Котельники, ул. Сосновая, д. 2, корп. 4","Котельники"]
[null,null,null,"ПОРТУГАЛИЯ","PT",null,"ПОРТУГАЛИЯ","PT",null,null,null,null,"1634","ДО \"Котлас-улица Невского\"  ","165313, Архангельская область, г. Котлас, ул. Невского, д. 20","Котлас"]
[null,null,null,"ПРИДНЕСТРОВЬЕ(МОЛДАВИЯ)","RP",null,"ПРИДНЕСТРОВЬЕ(МОЛДАВИЯ)","RP",null,null,null,null,"0626","ДО \"КРАСНОГОРСК\"  ","143409, Московская обл., г. Красногорск, ул. Ленина д. 38Б","Красногорск"]
[null,null,null,"ПУЭРТО-РИКО","PR",null,"ПУЭРТО-РИКО","PR",null,null,null,null,"0480","ДО \"Краснодар-Театральная пл\"  ","350000, г. Краснодар, ул Красная, д. 124, литер `Б`","Краснодар"]
[null,null,null,"РЕСПУБЛИКА СЕРБИЯ","RS",null,"РЕСПУБЛИКА СЕРБИЯ","RS",null,null,null,null,"0688","ДО \"Краснодар-улица Селезнева\"  ","350075, Краснодарский край, г.Краснодар, ул.Селезнева, д.134","Краснодар"]
[null,null,null,"РЕСПУБЛИКА ЧЕРНОГОРИЯ","ME",null,"РЕСПУБЛИКА ЧЕРНОГОРИЯ","ME",null,null,null,null,"0725","ДО \"Краснодар-Центр города\"  ","350015, Россия, Краснодарский край,г. Краснодар, ул. Красная, д. 176/1","Краснодар"]
[null,null,null,"РЕЮНЬОН","RE",null,"РЕЮНЬОН","RE",null,null,null,null,"0807","ДО \"Краснодар-улица Тургенева\"  ","350049 г. Краснодар, Прикубанскийокруг, ул. Тургенева, 107 лит А","Краснодар"]
[null,null,null,"РУАНДА","RW",null,"РОССИЯ","RU",null,null,null,null,"0808","ДО \"Краснодар-Вешняки\"  ","350001, Российская Федерация, Краснодарскийкрай, г. Краснодар, Центральный округ, ул. Ставропольская, дом","Краснодар"]
[null,null,null,"РУМЫНИЯ","RO",null,"РУАНДА","RW",null,null,null,null,"1052","ДО \"Краснодар-улица 1 Мая\"  ","350901,Краснодарский край, г. Краснодар, ул. 1 Мая, д. 158","Краснодар"]
[null,null,null,"САЛЬВАДОР","SV",null,"РУМЫНИЯ","RO",null,null,null,null,"1080","ДО \"Краснодар-улица Красных Партизан\"  ","350051, Российская Федерация,Краснодарский край, г. Краснодар,ул. Красных Партизан, д. 525","Краснодар"]
[null,null,null,"САН-МАРИНО","SM",null,"САЛЬВАДОР","SV",null,null,null,null,"1705","ДО \"Краснокаменск-пр-кт Шахтеров\"  ","674676, Забайкальский край, г. Краснокаменск, пр-кт Шахтеров, д. 4а","Краснокаменск"]
[null,null,null,"САН-ТОМЕИПРИНСИПИ","ST",null,"САН-МАРИНО","SM",null,null,null,null,"1623","ДО \"Краснокамск-пр-кт Мира\"  ","617060, Пермский край, г. Краснокамск, пр-кт Мира, д. 6","Краснокамск"]
[null,null,null,"САУДОВСКАЯАРАВИЯ","SA",null,"САН-ТОМЕИПРИНСИПИ","ST",null,null,null,null,"1792","ДО \"Краснотурьинск-улица Ленина\"  ","624440, Свердловская область, г. Краснотурьинск, ул. Ленина, д. 37","Краснотурьинск"]
[null,null,null,"СВАЗИЛЕНД","SZ",null,"САУДОВСКАЯАРАВИЯ","SA",null,null,null,null,"0456","ДО \"Красноярск-Енисей\"  ","660017, Красноярский край, г. Красноярск, ул. Горького, д. 10","Красноярск"]
[null,null,null,"СЕВЕРНЫЕМАРИАНСКИЕОСТРОВА","MP",null,"СВАЗИЛЕНД","SZ",null,null,null,null,"0776","ДО \"Красноярск-Красный Яр\"  ","660049, г. Красноярск, ул. Мира,дом 10","Красноярск"]
[null,null,null,"СЕЙШЕЛЬСКИЕОСТРОВА","SC",null,"СЕВЕРНЫЕМАРИАНСКИЕОСТРОВА","MP",null,null,null,null,"0862","ДО \"Красноярск-Бирюса\"  ","660037, Красноярск, проспект именигазеты \"Красноярский рабочий\", д.35","Красноярск"]
[null,null,null,"СЕНЕГАЛ","SN",null,"СЕЙШЕЛЬСКИЕОСТРОВА","SC",null,null,null,null,"0882","ДО \"Красноярск-Октябрьский\"  ","660041, Красноярский край, г. Красноярск ул. Высотная, д.1","Красноярск"]
[null,null,null,"СЕН-ПЬЕРИМИКЕЛОН","PM",null,"СЕНЕГАЛ","SN",null,null,null,null,"0887","ДО \"Красноярск-Монолит\"  ","г. Красноярск, ул. Взлётная, 18","Красноярск"]
[null,null,null,"СЕНТ-ВИНСЕНТИГРЕНАДИНЫ","VC",null,"СЕН-ПЬЕРИМИКЕЛОН","PM",null,null,null,null,"0889","ДО \"Красноярск-Правобережный\"  ","660077 г. Красноярск, пр.Красноярский рабочий дом,199","Красноярск"]
[null,null,null,"СЕНТ-КИТСИНЕВИС","KN",null,"СЕНТ-ВИНСЕНТИГРЕНАДИНЫ","VC",null,null,null,null,"1139","ДО \"Красноярск-Западный\"  ","660001, Красноярский край, г. Красноярск, ул. Копылова, д. 66","Красноярск"]
[null,null,null,"СЕНТ-ЛЮСИЯ","LC",null,"СЕНТ-КИТСИНЕВИС","KN",null,null,null,null,"1540","ДО \"Кронштадт-проспект Ленина\"  ","197760, г. Санкт-Петербург, г. Кронштадт, пр-кт Ленина, д. 16, лит. А","Кронштадт"]
[null,null,null,"СИНГАПУР","SG",null,"СЕНТ-ЛЮСИЯ","LC",null,null,null,null,"1714","ДО \"Кропоткин-улица Красная\"  ","352380, Краснодарский край, г. Кропоткин, ул. Красная, д. 96","Кропоткин"]
[null,null,null,"СЛОВАКИЯ","SK",null,"СИНГАПУР","SG",null,null,null,null,"1723","ДО \"Крымск-улица Синева\"  ","353380, Краснодарский край, г. Крымск, ул. Синева, д. 9Б","Крымск"]
[null,null,null,"СЛОВЕНИЯ","SI",null,"СЛОВАКИЯ","SK",null,null,null,null,"1602","ДО \"Кстово-ул. 40 лет Октября\"  ","607651, Нижегородская область, г. Кстово, ул. 40 лет Октября, д. 4","Кстово"]
[null,null,null,"СОЕДИНЕННЫЕШТАТЫАМЕРИКИ","US",null,"СЛОВЕНИЯ","SI",null,null,null,null,"8022","ДО \"Кудрово-проспект Европейский\"  ","188693, Ленинградская область, г. Кудрово, Европейский пр-кт, д. 8","Кудрово"]
[null,null,null,"СОЛОМОНОВЫОСТРОВА","SB",null,"СОЕДИНЕННЫЕШТАТЫАМЕРИКИ","US",null,null,null,null,"1613","ДО \"Кузнецк-улица Белинского\"  ","442530, Пензенская область, г. Кузнецк, ул. Белинского, д. 127/1","Кузнецк"]
[null,null,null,"СУРИНАМ","SR",null,"СОЛОМОНОВЫОСТРОВА","SB",null,null,null,null,"1670","ДО \"Куйбышев-улица Краскома\"  ","632382, Новосибирская область, г. Куйбышев, 11 кв-л, д. 9","Куйбышев"]
[null,null,null,"СЬЕРРА-ЛЕОНЕ","SL",null,"СУРИНАМ","SR",null,null,null,null,"1685","ДО \"Кумертау-пл. Советов\"  ","453300, Республика Башкортостан, г.Кумертау, ул. Карла Маркса, д. 11","Кумертау"]
[null,null,null,"СЯНГАН(ГОНКОНГ)","HK",null,"СЬЕРРА-ЛЕОНЕ","SL",null,null,null,null,"1676","ДО \"Кунгур-улица Пугачева\"  ","617470, Пермский край, г. Кунгур, ул. Пугачева, д. 25","Кунгур"]
[null,null,null,"ТАДЖИКИСТАН","TJ",null,"СЯНГАН(ГОНКОНГ)","HK",null,null,null,null,"0694","ДО \"Курган-Выставочный центр\"  ","640002, г.Курган, ул. Гоголя, д.17/1","Курган"]
[null,null,null,"ТАИЛАНД","TH",null,"ТАДЖИКИСТАН","TJ",null,null,null,null,"0851","ДО \"Курган-Зауралье\"  ","640002, Российская Федерация, Курганская область, г. Курган, ул. Гоголя, дом №60, помещение 60/2","Курган"]
[null,null,null,"ТАЙВАНЬ","TW",null,"ТАИЛАНД","TH",null,null,null,null,"1042","ДО \"Курск-улица Никитская\"  ","305029, Россия, Курская область, г.Курск, ул. Никитская, д. 1-в","Курск"]
[null,null,null,"ТАНЗАНИЯ","TZ",null,"ТАЙВАНЬ","TW",null,null,null,null,"1130","ДО \"Курск-улица Ленина\"  ","305000, Курская область, г. Курск,ул. Ленина, д. 31, пом. 1б","Курск"]
[null,null,null,"ТЕРКСИКАЙКОС","TC",null,"ТАНЗАНИЯ","TZ",null,null,null,null,"1793","ДО \"Курчатов-улица Садовая\"  ","307250, Курская область, г. Курчатов, ул. Садовая, д. 11А","Курчатов"]
[null,null,null,"ТОГО","TG",null,"ТЕРКСИКАЙКОС","TC",null,null,null,null,"1794","ДО \"Лабинск-улица Халтурина\"  ","352500, Краснодарский край, г. Лабинск, ул. Халтурина, д. 18","Лабинск"]
[null,null,null,"ТОКЕЛАУ(ЮНИОН)","TK",null,"ТОГО","TG",null,null,null,null,"1822","ДО \"Лениногорск-пр-кт 50 лет Победы\"  ","423250, Республика Татарстан, г. Лениногорск, пр-кт 50 лет Победы, зд.11А","Лениногорск"]
[null,null,null,"ТОНГА","TO",null,"ТОКЕЛАУ(ЮНИОН)","TK",null,null,null,null,"1188","ДО \"Ленинск-Кузнецкий\"  ","652500, Кемеровская область, г. Ленинск-Кузнецкий, проспект Кирова, д.49","Ленинск-Кузнецкий"]
[null,null,null,"ТРИНИДАДИТОБАГО","TT",null,"ТОНГА","TO",null,null,null,null,"1810","ДО \"Лесосибирск-улица Мира\"  ","662547, Красноярский край, г. Лесосибирск, 5-й микрорайон, д. 26","Лесосибирск"]
[null,null,null,"ТУВАЛУ","TV",null,"ТРИНИДАДИТОБАГО","TT",null,null,null,null,"1619","ДО \"Ливны-улица Горького\"  ","303850, Орловская область, г. Ливны, ул. Максима Горького, д. 2","Ливны"]
[null,null,null,"ТУНИС","TN",null,"ТУВАЛУ","TV",null,null,null,null,"0798","ДО \"Липецк-Петровский\"  ","398059, г.Липецк, ул. Барышева д. 7","Липецк"]
[null,null,null,"ТУРКМЕНИЯ","TM",null,"ТУНИС","TN",null,null,null,null,"0841","ДО \"Липецк-проспект Победы\"  ","398024, г. Липецк, проспект Победы,д. 20","Липецк"]
[null,null,null,"ТУРЦИЯ","TR",null,"ТУРКМЕНИЯ","TM",null,null,null,null,"1127","ДО \"Липецк-Октябрьский\"  ","398046, Липецкая область, г. Липецк, ул. Им. Генерала Меркулова, д. 10А, пом.1","Липецк"]
[null,null,null,"УГАНДА","UG",null,"ТУРЦИЯ","TR",null,null,null,null,"8019","ДО \"Лиски-улица Коммунистическая\"  ","397901, Воронежская область, г. Лиски, ул. Коммунистическая, д. 36","Лиски"]
[null,null,null,"УЗБЕКИСТАН","UZ",null,"УГАНДА","UG",null,null,null,null,"1639","ДО \"ЛОБНЯ-УЛИЦА ЛЕНИНА\"  ","141730, Московская область, г. Лобня, ул. Ленина, д. 16","Лобня"]
[null,null,null,"УКРАИНА","UA",null,"УЗБЕКИСТАН","UZ",null,null,null,null,"1715","ДО \"Лысьва-улица Мира\"  ","618900, Пермский край, г. Лысьва, ул. Мира, д. 11","Лысьва"]
[null,null,null,"УОЛЛИСИФУТУНА","WF",null,"УКРАИНА","UA",null,null,null,null,"0639","ДО \"ЛЮБЕРЦЫ\"  ","140000, Московская обл., г. Люберцы, Октябрьский проспект, д.151/9","Люберцы"]
[null,null,null,"УРУГВАЙ","UY",null,"УОЛЛИСИФУТУНА","WF",null,null,null,null,"1638","ДО \"Магадан-сквер Победы\"  ","685000, Магаданская область, г. Магадан, пр-кт Карла Маркса, д. 36/20","Магадан"]
[null,null,null,"ФАРЕРСКИЕОСТРОВА","FO",null,"УРУГВАЙ","UY",null,null,null,null,"0961","ДО \"Магнитогорск-Металлург\"  ","455000, г. Магнитогорск, пр-ктЛенина, д. 51","Магнитогорск"]
[null,null,null,"ФИДЖИ","FJ",null,"ФАРЕРСКИЕОСТРОВА","FO",null,null,null,null,"0989","ДО \"Магнитогорск-Центральный\"  ","455037 Челябинская область, г. Магнитогорск, пр-т Ленина, д. 90","Магнитогорск"]
[null,null,null,"ФИЛИППИНЫ","PH",null,"ФИДЖИ","FJ",null,null,null,null,"1132","ДО \"Магнитогорск-проспект Маркса\"  ","455045, Челябинская область, г. Магнитогорск, пр. Карла Маркса, д.179а","Магнитогорск"]
[null,null,null,"ФИНЛЯНДИЯ","FI",null,"ФИЛИППИНЫ","PH",null,null,null,null,"1814","ДО \"Майкоп-улица Жуковского\"  ","385000, Республика Адыгея, г. Майкоп, ул. Жуковского, д. 20А/ ул. Советская, д. 199","Майкоп"]
[null,null,null,"ФОЛКЛЕНДСКИЕОСТРОВА","FK",null,"ФИНЛЯНДИЯ","FI",null,null,null,null,"1808","ДО \"Махачкала-Центральный\"  ","367026, Республика Дагестан, г. Махачкала, пр-кт Имама Шамиля, д. 36К","Махачкала"]
[null,null,null,"ФРАНЦИЯ","FR",null,"ФОЛКЛЕНДСКИЕОСТРОВА","FK",null,null,null,null,"0884","ДО \"Мегион-улица Нефтеразведочная\" ","628681, ХМАО, г. Мегион, ул.Нефтеразведочная, дом 2","Мегион"]
[null,null,null,"ФРАНЦУЗСКАЯПОЛИНЕЗИЯ","PF",null,"ФРАНЦИЯ","FR",null,null,null,null,"1636","ДО \"Междуреченск-улица Комарова\"  ","652870, Кемеровская область, г. Междуреченск, Коммунистический пр-кт,д. 18","Междуреченск"]
[null,null,null,"ФРАНЦУЗСКИЕЮЖНЫЕТЕРРИТОРИИ","TF",null,"ФРАНЦУЗСКАЯПОЛИНЕЗИЯ","PF",null,null,null,null,"0696","ДО \"Миасс-пр-кт Автозаводцев\"  ","456300, Челябинская область, г. Миасс, пр. Автозаводцев, дом 61 Б","Миасс"]
[null,null,null,"ХЕРДИМАКДОНАЛЬД","HM",null,"ФРАНЦУЗСКИЕЮЖНЫЕТЕРРИТОРИИ","TF",null,null,null,null,"1769","ДО \"Минеральные Воды-Вершина\"  ","357207, Ставропольский край, г. Минеральные Воды, пр-кт 22 Партсъезда,влд. 94/1","Минеральные Воды"]
[null,null,null,"ХОРВАТИЯ","HR",null,"ХЕРДИМАКДОНАЛЬД","HM",null,null,null,null,"1770","ДО \"Минусинск-ул. Абаканская\"  ","662606, Красноярский край, г. Минусинск, ул. Абаканская, д. 48","Минусинск"]
[null,null,null,"ЦЕНТРАЛЬНОАФРИКАНСКАЯРЕСПУБЛИКА","CF",null,"ХОРВАТИЯ","HR",null,null,null,null,"1628","ДО \"Михайловка-улица Обороны\"  ","403343, Волгоградская область, г. Михайловка, ул. Обороны, д. 44/53","Михайловка"]
[null,null,null,"ЧАД","TD",null,"ЦЕНТРАЛЬНОАФРИКАНСКАЯРЕСПУБЛИКА","CF",null,null,null,null,"1740","ДО \"Михайловск-улица Войкова\"  ","356240, Ставропольский край, г. Михайловск, ул. Войкова, д. 454/1","Михайловск"]
[null,null,null,"ЧЕХИЯ","CZ",null,"ЧАД","TD",null,null,null,null,"1620","ДО \"Мичуринск-улица Советская\"  ","393760, Тамбовская область, г. Мичуринск, ул. Советская, д. 323","Мичуринск"]
[null,null,null,"ЧИЛИ","CL",null,"ЧЕХИЯ","CZ",null,null,null,null,"0404","ДО \"НОВОГИРЕЕВО\"  ","111396, г. Москва, пр-кт Свободный, д. 20А","Москва"]
[null,null,null,"ШВЕЙЦАРИЯ","CH",null,"ЧИЛИ","CL",null,null,null,null,"0405","ДО \"ФРУНЗЕНСКИЙ\"  ","119021, г. Москва, пр-кт Комсомольский, д. 24 , стр. 1","Москва"]
[null,null,null,"ШВЕЦИЯ","SE",null,"ШВЕЙЦАРИЯ","CH",null,null,null,null,"0410","ДО \"ПРЕСНЕНСКИЙ ВАЛ\"  ","123022, г. Москва, ул.ПресненскийВал, д.7, стр. 1","Москва"]
[null,null,null,"ШЕННОН(ИРЛАНДИЯ)","XH",null,"ШВЕЦИЯ","SE",null,null,null,null,"0414","ДО \"СОКОЛЬНИКИ\"  ","107113, г. Москва, ул.Русаковская,д.29","Москва"]
[null,null,null,"ШПИЦБЕРГЕНОСТРОВА","SJ",null,"ШЕННОН(ИРЛАНДИЯ)","XH",null,null,null,null,"0417","ДО \"КУЗНЕЦКИЙ МОСТ\"  ","107031, г. Москва, ул. Неглинная,д. 10","Москва"]
[null,null,null,"ШРИ-ЛАНКА","LK",null,"ШПИЦБЕРГЕНОСТРОВА","SJ",null,null,null,null,"0419","ДО \"БАУМАНСКАЯ\"  ","105066, г. Москва, ул. Нижняя Красносельская, д 45/17","Москва"]
[null,null,null,"ШТАТВАЙОМИНГ(США)","XV",null,"ШРИ-ЛАНКА","LK",null,null,null,null,"0420","ДО \"МЕНДЕЛЕЕВСКИЙ\"  ","127030, г. Москва, ул. Новослободская, д. 23","Москва"]
[null,null,null,"ШТАТДЕЛАВЕР(США)","XE",null,"ШТАТВАЙОМИНГ(США)","XV",null,null,null,null,"0422","ДО \"АРБАТСКИЙ\"  ","119019, Москва, ул. Арбат, д. 4,стр. 1","Москва"]
[null,null,null,"ЭКВАДОР","EC",null,"ШТАТДЕЛАВЕР(США)","XE",null,null,null,null,"0423","ДО \"АЛЕКСЕЕВСКИЙ\"  ","129085, г. Москва, пр-т Мира, д. 91, корп. 2","Москва"]
[null,null,null,"ЭКВАТОРИАЛЬНАЯГВИНЕЯ","GQ",null,"ЭКВАДОР","EC",null,null,null,null,"0426","ДО \"ТРЕТЬЯКОВСКИЙ\" ","115035, г.Москва, ул. Большая Ордынка, д.21, стр.2","Москва"]
[null,null,null,"ЭСТОНИЯ","EE",null,"ЭКВАТОРИАЛЬНАЯГВИНЕЯ","GQ",null,null,null,null,"0427","ДО \"ОЛИМПИЙСКИЙ\"  ","129090, г. Москва, пр-кт. Мира, д.42","Москва"]
[null,null,null,"ЭФИОПИЯ","ET",null,"ЭСТОНИЯ","EE",null,null,null,null,"0428","ДО \"КУТУЗОВСКИЙ ПРОСПЕКТ\"  ","121165, г. Москва, Кутузовскийпроспект, дом 30/32","Москва"]
[null,null,null,"ЮЖ.ГЕОРГИЯИЮЖ.САНДВИЧЕВЫО-ВА","GS",null,"ЭФИОПИЯ","ET",null,null,null,null,"0433","ДО \"ВАРШАВСКИЙ\"  ","117556, г. Москва, ш. Варшавское.,д. 76, корп. 1","Москва"]
[null,null,null,"ЮЖНО-АФРИКАНСКАЯРЕСПУБЛИКА","ZA",null,"ЮЖ.ГЕОРГИЯИЮЖ.САНДВИЧЕВЫО-ВА","GS",null,null,null,null,"0436","ДО \"КУЗЬМИНКИ\"  ","109462, г. Москва, ул. Маршала Чуйкова, д. 3","Москва"]
[null,null,null,"ЯМАЙКА","JM",null,"ЮЖНО-АФРИКАНСКАЯРЕСПУБЛИКА","ZA",null,null,null,null,"0437","ДО \"ЛОМОНОСОВСКИЙ\"  ","119261, г. Москва, Ленинский проспект, д. 78","Москва"]
[null,null,null,"ЯПОНИЯ","JP",null,"ЯМАЙКА","JM",null,null,null,null,"0440","ДО \"КУРСКАЯ\"  ","105120, г.Москва, ул. Земляной Вал,д. 41, стр. 1","Москва"]
[null,null,null,"ЛИЦО БЕЗ ГРАЖДАНСТВА","NN",null,"ЯПОНИЯ","JP",null,null,null,null,"0444","ДО \"МАРЬИНО\"  ","109652, г. Москва, ул. Люблинская,д. 165, корп. 1","Москва"]
[null,null,null,null,null,null,"ЛИЦО БЕЗ ГРАЖДАНСТВА","NN",null,null,null,null,"0450","ДО \"БАЛТИЙСКИЙ\"  ","125315, г.Москва, пр-кт Ленинградский, д.74, к. 1","Москва"]
[null,null,null,null,null,null,null,null,null,null,null,null,"0600","ДО \"РЕЧНОЙ ВОКЗАЛ\"  ","125565, г. Москва, ул.Фестивальная,д.13, корп.1","Москва"]
[null,null,null,null,null,null,null,null,null,null,null,null,"0603","ДО \"ШУВАЛОВСКИЙ\"  ","119192, г. Москва, пр-кт Мичуринский, д.7","Москва"]
[null,null,null,null,null,null,null,null,null,null,null,null,"0605","ДО \"МИТИНО\"  ","125430, г. Москва, ул. Митинская, д. 36, корп. 1","Москва"]
[null,null,null,null,null,null,null,null,null,null,null,null,"0610","ДО \"ЮГО-ЗАПАДНАЯ\"  ","119571, г. Москва, пр-кт Вернадского , д.119","Москва"]
[null,null,null,null,null,null,null,null,null,null,null,null,"0612","ДО \"БЕЛЯЕВО\"  ","117437, г. Москва, ул.Профсоюзная ,д.104","Москва"]
[null,null,null,null,null,null,null,null,null,null,null,null,"0616","ДО \"ДМИТРОВСКИЙ\"  ","127015, г. Москва, ул. Бутырская,д.89","Москва"]
[null,null,null,null,null,null,null,null,null,null,null,null,"0617","ДО \"КРЫЛАТСКОЕ\"  ","121609, г. Москва, Осенний бульвар,д. 7, корп. 1","Москва"]
[null,null,null,null,null,null,null,null,null,null,null,null,"0619","ДО \"УНИВЕРСИТЕТ\"  ","119311, г. Москва, пр-кт Ломоносовский, д.25 к.1","Москва"]
[null,null,null,null,null,null,null,null,null,null,null,null,"0621","ДО \"ХОРОШЕВСКИЙ\"  ","123007, г. Москва, ш.Хорошевское, д. 35, корп. 1","Москва"]
[null,null,null,null,null,null,null,null,null,null,null,null,"0623","ДО \"СЕМЕНОВСКИЙ\"  ","105318, г. Москва, ул.Вельяминовская, д. 6, стр. 2","Москва"]
[null,null,null,null,null,null,null,null,null,null,null,null,"0625","ДО \"ЩУКИНСКИЙ\"  ","123182, г. Москва, ул. Авиационная,д. 66","Москва"]
[null,null,null,null,null,null,null,null,null,null,null,null,"0627","ДО \"АЛТУФЬЕВО\"  ","127349 г. Москва, ул. Лескова д. 3Г","Москва"]
[null,null,null,null,null,null,null,null,null,null,null,null,"0628","ДО \"ПРОФСОЮЗНАЯ\"  ","117218, г. Москва, ул. Профсоюзная,д. 13/12","Москва"]
[null,null,null,null,null,null,null,null,null,null,null,null,"0630","ДО \"КОСИНО\"  ","109145, г. Москва, Лермонтовский проспект, д. 10, корп. 1","Москва"]
[null,null,null,null,null,null,null,null,null,null,null,null,"0633","ДО \"ЧЕРТАНОВСКИЙ\"  ","117639, г. Москва, ул. Чертановская, д.1В, корп. 1","Москва"]
[null,null,null,null,null,null,null,null,null,null,null,null,"0635","ДО \"СМОЛЕНСКАЯ\"  ","119121, г. Москва, пл. Смоленская-Сенная, д.27, стр.1","Москва"]
[null,null,null,null,null,null,null,null,null,null,null,null,"0636","ДО \"СХОДНЕНСКИЙ\"  ","125363, г. Москва, б-р Яна Райниса,д. 1","Москва"]
[null,null,null,null,null,null,null,null,null,null,null,null,"0637","ДО \"КОЛОМЕНСКИЙ\"  ","115470, г. Москва, ул. Новинки д.1","Москва"]
[null,null,null,null,null,null,null,null,null,null,null,null,"0638","ДО \"АВТОЗАВОДСКИЙ\"  ","115280, г. Москва, ул. Автозаводская, д. 5","Москва"]
[null,null,null,null,null,null,null,null,null,null,null,null,"0642","ДО \"ЦАРИЦЫНО\"  ","115516, г.Москва, ул.Луганская,д.10","Москва"]
[null,null,null,null,null,null,null,null,null,null,null,null,"0643","ДО \"ОТРАДНОЕ\"  ","127566, г. Москва, ул. Декабристов,д. 17","Москва"]
[null,null,null,null,null,null,null,null,null,null,null,null,"0644","ДО \"БУЛЬВАР ДМИТРИЯ ДОНСКОГО\"  ","117216, г. Москва, б-р Дмитрия Донского,д. 11","Москва"]
[null,null,null,null,null,null,null,null,null,null,null,null,"0645","ДО \"АННИНО\"  ","117405, г. Москва, ш. Варшавское, д. 160","Москва"]
[null,null,null,null,null,null,null,null,null,null,null,null,"0646","ДО \"ТИМИРЯЗЕВСКИЙ\"  ","127434, г. Москва, ш. Дмитровское,д. 15, корпус 1","Москва"]
[null,null,null,null,null,null,null,null,null,null,null,null,"0651","ДО \"ВОЙКОВСКИЙ\"  ","125171, г. Москва, ш. Ленинградское, д. 15","Москва"]
[null,null,null,null,null,null,null,null,null,null,null,null,"0654","ДО \"ПРОЛЕТАРСКИЙ\"  ","109044, г. Москва, 3-й Крутицкий переулок, д. 13","Москва"]
[null,null,null,null,null,null,null,null,null,null,null,null,"0655","ДО \"КИЕВСКОЕ ШОССЕ\"  ","108811, г. Москва, п Московский, ш.Киевское 22-й км, вл.4, стр.1","Москва"]
[null,null,null,null,null,null,null,null,null,null,null,null,"0660","ДО \"КОМСОМОЛЬСКАЯ\"  ","107078, г. Москва, ул. Каланчевская, д.27","Москва"]
[null,null,null,null,null,null,null,null,null,null,null,null,"0661","ДО \"БРАТИСЛАВСКАЯ\"  ","109341, г. Москва, ул. Перерва, д.56/2","Москва"]
[null,null,null,null,null,null,null,null,null,null,null,null,"0663","ДО \"ПАВЕЛЕЦКИЙ\"  ","115054, г. Москва, ул. Валовая, д.6","Москва"]
[null,null,null,null,null,null,null,null,null,null,null,null,"0664","ДО \"СКОБЕЛЕВСКИЙ\"  ","117042, г.Москва, б-р Адмирала Ушакова, д.2","Москва"]
[null,null,null,null,null,null,null,null,null,null,null,null,"0669","ДО \"Щелковский\"","107241, г. Москва, ул. Уральская, д. 1","Москва"]
[null,null,null,null,null,null,null,null,null,null,null,null,"1187","ДО \"РАССКАЗОВКА\"  ","108849, г. Москва, пос. Внуковское,ул. Корнея Чуковского, д. 2","Москва"]
[null,null,null,null,null,null,null,null,null,null,null,null,"1504","ДО \"ЯСЕНЕВО\"  ","117588, г. Москва, пр-кт Новоясеневский, д. 7","Москва"]
[null,null,null,null,null,null,null,null,null,null,null,null,"1512","ДО \"МОЛОДЕЖНЫЙ\"  ","121552, г. Москва, ул. Ярцевская, д. 27, корп. 1","Москва"]
[null,null,null,null,null,null,null,null,null,null,null,null,"1513","ДО \"НЕКРАСОВКА\"  ","111674, г. Москва, ул. Покровская,д. 20","Москва"]
[null,null,null,null,null,null,null,null,null,null,null,null,"1515","ДО \"ПЕРВОМАЙСКИЙ\"  ","105043, г. Москва, ул. 9-я Парковая, д. 23","Москва"]
[null,null,null,null,null,null,null,null,null,null,null,null,"1516","ДО \"ВОРОТЫНСКИЙ\"  ","125466, г. Москва, ул. Воротынская,д. 2","Москва"]
[null,null,null,null,null,null,null,null,null,null,null,null,"1520","ДО \"ДОМОДЕДОВСКИЙ\"  ","115583, г. Москва, ул. Генерала Белова, д. 35","Москва"]
[null,null,null,null,null,null,null,null,null,null,null,null,"1521","ДО \"БАБУШКИНСКИЙ\"  ","129327, г. Москва, ул. Менжинского,д. 23 корп.1","Москва"]
[null,null,null,null,null,null,null,null,null,null,null,null,"1523","ДО \"МАЛАЯ БРОННАЯ\"  ","123104, г. Москва, ул. Малая Бронная д.15 Б","Москва"]
[null,null,null,null,null,null,null,null,null,null,null,null,"1537","ДО \"МАЯКОВСКАЯ\"  ","125375, г. Москва, ул. Тверская, д.28, корп. 1","Москва"]
[null,null,null,null,null,null,null,null,null,null,null,null,"1598","ДОПОЛНИТЕЛЬНЫЙ ОФИС \"АВИАПАРК\"  ","125252, г. Москва, ул. Авиаконструктора Микояна, д. 12","Москва"]
[null,null,null,null,null,null,null,null,null,null,null,null,"1599","ДО \"ПЛОЩАДЬ ИЛЬИЧА\"  ","109544, г. Москва, б-р Энтузиастов,д. 2","Москва"]
[null,null,null,null,null,null,null,null,null,null,null,null,"1609","ДО \"МЕДВЕДКОВСКИЙ\"  ","127282, г. Москва, ул. Грекова, д.3, корп. 3","Москва"]
[null,null,null,null,null,null,null,null,null,null,null,null,"1801","ДО \"УЛ. НАРОДНОГО ОПОЛЧЕНИЯ\"  ","123060, г. Москва, ул. Народного Ополчения, д. 45","Москва"]
[null,null,null,null,null,null,null,null,null,null,null,null,"1800","ДО \"Мурино-бульвар Менделеева\"  ","188677, Ленинградская область, г. Мурино, б-р Менделеева, д. 11, корп.1","Мурино"]
[null,null,null,null,null,null,null,null,null,null,null,null,"0445","ДО \"Мурманск-площадь Пять углов\"  ","183038, Мурманская область, г. Мурманск, пр-кт Ленина, д. 82","Мурманск"]
[null,null,null,null,null,null,null,null,null,null,null,null,"0823","ДО \"Мурманск-проспект Ленина\"  ","183038 г. Мурманск, проспектЛенина, д. 19А","Мурманск"]
[null,null,null,null,null,null,null,null,null,null,null,null,"1066","ДО \"Мурманск-Кольский проспект\"  ","183052, Мурманская область, город Мурманск, проспект Кольский, дом 158","Мурманск"]
[null,null,null,null,null,null,null,null,null,null,null,null,"1189","ДО \"Муром-Вознесенская площадь\"  ","602267, Владимирская область, г. Муром, ул. Московская, д. 47","Муром"]
[null,null,null,null,null,null,null,null,null,null,null,null,"0622","ДО \"МЫТИЩИ\"  ","141006, Московская обл., г. Мытищи,пр-кт Олимпийский, д.19, корп.1","Мытищи"]
[null,null,null,null,null,null,null,null,null,null,null,null,"0665","ДО \"МЫТИЩИ-АЙСБЕРГ\"  ","141008, Московская обл., г. Мытищи,ул. Мира, д. 26А","Мытищи"]
[null,null,null,null,null,null,null,null,null,null,null,null,"0749","ДО \"НАБЕРЕЖНЫЕ ЧЕЛНЫ-БОРОВЕЦКИЙ\" ","Республика Татарстан, г. НабережныеЧелны, просп. Хасана Туфана, д. 29б","Набережные Челны"]
[null,null,null,null,null,null,null,null,null,null,null,null,"0853","ДО \"Набережные Челны-Центральный\"  ","423812, респ. Татарстан, г.Набережные Челны, пр-кт Мира, д.24М","Набережные Челны"]
[null,null,null,null,null,null,null,null,null,null,null,null,"1632","ДО \"НАРО-ФОМИНСК\"  ","143300, Московская область, г. Наро-Фоминск, пл. Свободы, д. 2","Наро-Фоминск"]
[null,null,null,null,null,null,null,null,null,null,null,null,"0877","ДО \"Находка-Северный проспект\"  ","692914, Российская Федерация, Приморский край, г. Находка, проспект Северный, д.2, корпус 1","Находка"]
[null,null,null,null,null,null,null,null,null,null,null,null,"1198","ДО \"Невинномысск-ул. Гагарина\"  ","357100, Ставропольский край, г. Невинномысск, ул. Гагарина, д. 70Б","Невинномысск"]
[null,null,null,null,null,null,null,null,null,null,null,null,"1159","ДО \"Нефтекамск-улица Ленина\"  ","452680, Россия, Республика Башкортостан, г. Нефтекамск, улица Ленина,д. 19Е","Нефтекамск"]
[null,null,null,null,null,null,null,null,null,null,null,null,"1161","ДО \"Нефтеюганск-улица Нефтяников\"  ","628306, Ханты-Мансийский Автономныйокруг-Югра, г. Нефтеюганск, 15 микрорайон, 8б","Нефтеюганск"]
[null,null,null,null,null,null,null,null,null,null,null,null,"0465","ДО \"Нижневартовск-Центральный\"  ","628606, Тюменская обл.,Ханты-Мансийский автономный округ,г. Нижневартовск, пр-т Победы, 11","Нижневартовск"]
[null,null,null,null,null,null,null,null,null,null,null,null,"0708","ДО \"Нижневартовск-Космос\"  ","628611, Ханты-Мансийский автономныйокруг, Югра, г. Нижневартовск, ул.Ленина, д.17а","Нижневартовск"]
[null,null,null,null,null,null,null,null,null,null,null,null,"1149","ДО \"Нижнекамск-проспект Мира\"  ","423571, Республика Татарстан, г. Нижнекамск, пр-кт Мира, д. 61Г","Нижнекамск"]
[null,null,null,null,null,null,null,null,null,null,null,null,"0483","ДО \"Нижний Новгород-Центральный\"  ","603024, Нижегородская область, г. Нижний Новгород, ул. Белинского , д.61, корп.2","Нижний Новгород"]
[null,null,null,null,null,null,null,null,null,null,null,null,"0740","ДО \"Нижний Новгород-Мещерский\"  ","603002, Нижегородская область, г. Нижний Новгород, ул. Фильченкова, д.10","Нижний Новгород"]
[null,null,null,null,null,null,null,null,null,null,null,null,"0790","ДО \"Нижний Новгород-Заречье\"  ","603135, Нижегородская область, г. Нижний Новгород, Ленинский район, просп. Ленина, д. 45","Нижний Новгород"]
[null,null,null,null,null,null,null,null,null,null,null,null,"0831","ДО \"Нижний Новгород-Сормовский\"  ","603003, Нижегородская область, г.Нижний Новгород, Сормовский район, ул. Коминтерна, д. 164, пом. П5.","Нижний Новгород"]
[null,null,null,null,null,null,null,null,null,null,null,null,"0835","ДО \"Нижний Новгород-Горьковский\"  ","603035, Российская Федерация, Нижегородская область, г. Нижний Новгород, Нижегородский район, ул. Горьког","Нижний Новгород"]
[null,null,null,null,null,null,null,null,null,null,null,null,"1117","ДО \"Нижний Новгород-ул.Веденяпина\" ","603004, Нижегородская обл., г. Нижний Новгород, Автозаводский район, пр-кт Ленина, д. 100Д, пом. П8","Нижний Новгород"]
[null,null,null,null,null,null,null,null,null,null,null,null,"0964","ДО \"Нижний Тагил-проспект Ленина\"  ","622034, Свердловская обл., г.Нижний Тагил, пр-кт Ленина, д. 69","Нижний Тагил"]
[null,null,null,null,null,null,null,null,null,null,null,null,"0969","ДО \"Нижний Тагил-Вагоностроительный\"  ","622007, Свердловская обл., г.Нижний Тагил, пр-ктВагоностроителей, д. 13","Нижний Тагил"]
[null,null,null,null,null,null,null,null,null,null,null,null,"1780","ДО \"Новоалтайск-ул. Октябрьская\"  ","658087, Алтайский край, г.Новоалтайск, ул. Октябрьская, д. 13","Новоалтайск"]
[null,null,null,null,null,null,null,null,null,null,null,null,"0693","ДО \"Новокузнецк-пр-кт Металлургов\" ","654007, Кемеровская область –Кузбасс, г. Новокузнецк, проспектМеталлургов, 32","Новокузнецк"]
[null,null,null,null,null,null,null,null,null,null,null,null,"0962","ДО \"Новокузнецк-улица Тольятти\"  ","654080, г. Новокузнецк, ул.Тольятти, д 44","Новокузнецк"]
[null,null,null,null,null,null,null,null,null,null,null,null,"1195","ДО \"Новокуйбышевск-ул. Миронова\"  ","446200, Самарская область, г. Новокуйбышевск, ул. Миронова, д. 3","Новокуйбышевск"]
[null,null,null,null,null,null,null,null,null,null,null,null,"1152","ДО \"Новомосковск-Городская пл\"  ","301650, Тульская область, Новомосковский р-н, г. Новомосковск, ул. Комсомольская/ул. Трудовые резервы, д.","Новомосковск"]
[null,null,null,null,null,null,null,null,null,null,null,null,"0883","ДО \"Новороссийск-улица Толстого\"  ","353905, Краснодарский край, г. Новороссийск, ул. Толстого, д. 2Г","Новороссийск"]
[null,null,null,null,null,null,null,null,null,null,null,null,"1110","ДО \"Новороссийск-Южный парк\"  ","353915, Краснодарский край, г. Новороссийск, просп. Дзержинского, д. 205 А","Новороссийск"]
[null,null,null,null,null,null,null,null,null,null,null,null,"0481","ДО \"Новосибирск-Сибирь\"  ","630004, г. Новосибирск,Железнодорожный район, ул. Ленинад. 52","Новосибирск"]
[null,null,null,null,null,null,null,null,null,null,null,null,"0727","ДО \"Новосибирск-площадь Калинина\"  ","630082, г. Новосибирск, улица ДусиКовальчук, 179/4","Новосибирск"]
[null,null,null,null,null,null,null,null,null,null,null,null,"0797","ДО \"Новосибирск-Горский\"  ","630073, г.Новосибирск, Ленинскийрайон, проспект Карла Маркса, дом55","Новосибирск"]
[null,null,null,null,null,null,null,null,null,null,null,null,"0811","ДО \"Новосибирск-Мичуринский\"  ","630099, г. Новосибирск, ул. Мичурина, д. 23.","Новосибирск"]
[null,null,null,null,null,null,null,null,null,null,null,null,"1099","ДО \"Новосибирск-площадь Ленина\"  ","630099, Российская Федерация, г.Новосибирск, ул. Орджоникидзе, дом23","Новосибирск"]
[null,null,null,null,null,null,null,null,null,null,null,null,"1102","ДО \"Новосибирск-площадь Маркса\"  ","630078, Новосибирская область, г. Новосибирск, пл. Карла Маркса, д. 5.","Новосибирск"]
[null,null,null,null,null,null,null,null,null,null,null,null,"1131","ДО \"Новосибирск-Золотая Нива\"  ","630089, Новосибирская область, г.Новосибирск, ул. Бориса Богаткова, д.201/1","Новосибирск"]
[null,null,null,null,null,null,null,null,null,null,null,null,"1137","ДО \"Новосибирск-Академгородок\"  ","630090, Россия, Новосибирская область, г. Новосибирск, ул. Ильича, д.6","Новосибирск"]
[null,null,null,null,null,null,null,null,null,null,null,null,"1145","ДО \"Новосибирск-улица Кирова\"  ","630102, г. Новосибирск, ул. Кирова,д. 46/1","Новосибирск"]
[null,null,null,null,null,null,null,null,null,null,null,null,"0828","ДО \"Новотроицк-Металлург\"  ","462353 Оренбургская обл., г.Новотроицк, ул. Советская, 52","Новотроицк"]
[null,null,null,null,null,null,null,null,null,null,null,null,"1653","ДО \"Новоуральск-ул. Комсомольская\" ","624132, Свердловская область, г. Новоуральск, ул. Комсомольская, зд. 6А","Новоуральск"]
[null,null,null,null,null,null,null,null,null,null,null,null,"1180","ДО \"Новочебоксарск-Восточный\"  ","429965, Чувашская Республика, г. Новочебоксарск, ул. Советская, д. 15","Новочебоксарск"]
[null,null,null,null,null,null,null,null,null,null,null,null,"0719","ДО \"Новочеркасск-площадь Платова\"  ","346400, Ростовская область,г.Новочеркасск, ул.Московская, 1/пр. Платовский, 90","Новочеркасск"]
[null,null,null,null,null,null,null,null,null,null,null,null,"1689","ДО \"Новошахтинск-пр-кт Ленина\"  ","346918, Ростовская область, г. Новошахтинск, пр-кт Ленина, д. 5а","Новошахтинск"]
[null,null,null,null,null,null,null,null,null,null,null,null,"1528","ДОПОЛНИТЕЛЬНЫЙ ОФИС \"НОГИНСК\"  ","142400, Московская область, г. Ногинск, ул. 3-го Интернационала, дом 62","Ногинск"]
[null,null,null,null,null,null,null,null,null,null,null,null,"1815","ДО \"Нягань-Парковый\"  ","628181, Ханты-Мансийский автономныйокруг-Югра, г. Нягань, мкр. 1-й, д.1","Нягань"]
[null,null,null,null,null,null,null,null,null,null,null,null,"1807","ДО \"Обнинск-проспект Маркса\"  ","249039, Калужская область, г. Обнинск, пр-кт Маркса, д. 50","Обнинск"]
[null,null,null,null,null,null,null,null,null,null,null,null,"0614","ДО \"ОДИНЦОВО\"  ","143005, Московская обл., Одинцовский р-н, г. Одинцово, ш. Можайское ,дом 76А","Одинцово"]
[null,null,null,null,null,null,null,null,null,null,null,null,"1160","ДО \"Октябрьский-пр-кт Ленина\"  ","452614, Республика Башкортостан, г.Октябрьский, проспект Ленина, д. 5","Октябрьский"]
[null,null,null,null,null,null,null,null,null,null,null,null,"0447","ДО \"Омск-Центральный\"  ","644024, Российская Федерация, Омская область, г. Омск, ул. Маршала Жукова угол ул. 10 Лет Октября, д. 25/","Омск"]
[null,null,null,null,null,null,null,null,null,null,null,null,"0720","ДО \"Омск-Парк культуры\"  ","644021, г.Омск, ул. БогданаХмельницкого, 162","Омск"]
[null,null,null,null,null,null,null,null,null,null,null,null,"0743","ДО \"Омск-Левобережный\"  ","644074, г.Омск, ул. 70 лет Октября,13/3","Омск"]
[null,null,null,null,null,null,null,null,null,null,null,null,"0778","ДО \"Омск-Красный путь\"  ","644043, г. Омск, ул. Красный Путь,д. 61","Омск"]
[null,null,null,null,null,null,null,null,null,null,null,null,"0815","ДО \"Омск-проспект Мира\"  ","644029, Омская область, г. Омск, проспект Мира, д. 54","Омск"]
[null,null,null,null,null,null,null,null,null,null,null,null,"0873","ДО \"Омск-проспект Маркса\"  ","644010, г. Омск, проспект Маркса,д. 10","Омск"]
[null,null,null,null,null,null,null,null,null,null,null,null,"1164","ДО \"Орел-Комсомольская площадь\"  ","302026, Орловская область, г. Орел,ул. Комсомольская, д. 78","Орёл"]
[null,null,null,null,null,null,null,null,null,null,null,null,"0461","ДО \"Оренбург-Центральный\"  ","460024, Оренбургская область,г.Оренбург, ул.Маршала Жукова, 26","Оренбург"]
[null,null,null,null,null,null,null,null,null,null,null,null,"0791","ДО \"Оренбург-улица Чкалова\"  ","460058, Оренбургская область, г. Оренбург, ул. Чкалова, дом 35/1","Оренбург"]
[null,null,null,null,null,null,null,null,null,null,null,null,"1119","ДО \"Оренбург-улица Салмышская\"  ","460052, Оренбургская область, г.Оренбург, ул. Салмышская, д.37","Оренбург"]
[null,null,null,null,null,null,null,null,null,null,null,null,"1191","ДО \"ОРЕХОВО-ЗУЕВО\"  ","142600, Московская область, г. Орехово-Зуево, ул. Ленина, д. 53","Орехово-Зуево"]
[null,null,null,null,null,null,null,null,null,null,null,null,"0850","ДО \"Орск-проспект Ленина\"  ","462431, Оренбургская область, г. Орск, пр-кт Ленина, д. 78","Орск"]
[null,null,null,null,null,null,null,null,null,null,null,null,"1614","ДО \"Павлово-Центральный\"  ","606100, Нижегородская область, г. Павлово, ул. Красноармейская, д. 33,стр. 1","Павлово"]
[null,null,null,null,null,null,null,null,null,null,null,null,"1675","ДО \"ПАВЛОВСКИЙ ПОСАД\"  ","142500, Московская область, г. Павловский Посад, ул. Большая Покровская, д. 10","Павловский Посад"]
[null,null,null,null,null,null,null,null,null,null,null,null,"0746","ДО \"Пенза-Центральный\"  ","440000, г. Пенза, ул. Московская, д. 73","Пенза"]
[null,null,null,null,null,null,null,null,null,null,null,null,"1144","ДО  \"Пенза-Сура\"  ","440008, Пензенская область, г. Пенза, ул. Суворова, д. 139","Пенза"]
[null,null,null,null,null,null,null,null,null,null,null,null,"0970","ДО \"Первоуральск-улица Ватутина\"  ","623104, Свердловская область, г.Первоуральск, ул. Ватутина, д. 37","Первоуральск"]
[null,null,null,null,null,null,null,null,null,null,null,null,"0724","ДО \"Пермь-Балатовский\"  ","614066, Пермский край, город Пермь,улица Мира, дом 70","Пермь"]
[null,null,null,null,null,null,null,null,null,null,null,null,"0803","ДО \"Пермь-Кама\"  ","614000, Пермский край, город Пермь,ул. Ленина, дом 66","Пермь"]
[null,null,null,null,null,null,null,null,null,null,null,null,"0834","ДО \"Пермь-Парма\"  ","614051 г. Пермь, ул. Уинская, 9","Пермь"]
[null,null,null,null,null,null,null,null,null,null,null,null,"0845","ДО \"Пермь-Кристалл\"  ","614039, Пермский край, г. Пермь, Комсомольский проспект, 49","Пермь"]
[null,null,null,null,null,null,null,null,null,null,null,null,"0994","ДО \"Пермь-Дягилевский\"  ","614000, г.Пермь, ул.Советская, д.45","Пермь"]
[null,null,null,null,null,null,null,null,null,null,null,null,"1051","ДО \"Пермь-Закамск\"  ","614113, Российская Федерация, Пермский край, г. Пермь, ул. Автозаводская, д. 44а","Пермь"]
[null,null,null,null,null,null,null,null,null,null,null,null,"1706","ДО \"Петергоф-Николаевский\"  ","198510, г. Санкт-Петербург, г. Петергоф, пр-кт Санкт-Петербургский, д.29","Петергоф"]
[null,null,null,null,null,null,null,null,null,null,null,null,"0712","ДО \"Петрозаводск-проспект Ленина\"  ","185035, Россия, Республика Карелия,г. Петрозаводск, пр-т Ленина, д. 26","Петрозаводск"]
[null,null,null,null,null,null,null,null,null,null,null,null,"1073","ДО \"Петрозаводск-улица Ровио\"  ","185026, Российская Федерация,Республика Карелия, г.Петрозаводск, ул. Ровио, д. 18","Петрозаводск"]
[null,null,null,null,null,null,null,null,null,null,null,null,"1819","ДО \"П-Камчатский-Центральный\"  ","683024, Камчатский край, г. Петропавловск-Камчатский, пр-кт 50 лет Октября, д. 24а","Петропавловск-Камчатский"]
[null,null,null,null,null,null,null,null,null,null,null,null,"0624","ДО \"ПОДОЛЬСКИЙ\"  ","142100, Московская область, г. Подольск, ул. Рабочая, д. 4","Подольск"]
[null,null,null,null,null,null,null,null,null,null,null,null,"0687","ДО \"Прокопьевск-улица Шишкина\"  ","653039, Кемеровская область - Кузбасс, город Прокопьевск, улица Шишкина, дом 11","Прокопьевск"]
[null,null,null,null,null,null,null,null,null,null,null,null,"0689","ДО \"Псков-Центральный\"  ","180004, Российская Федерация,Псковская область, г. Псков, ул.Яна Фабрициуса, д. 27, пом. 1005","Псков"]
[null,null,null,null,null,null,null,null,null,null,null,null,"1065","ДО \"Псков-Рижский проспект\"  ","180007, Псковская область, г.Псков,пр-т Рижский, д.16","Псков"]
[null,null,null,null,null,null,null,null,null,null,null,null,"1733","ДО \"Пушкин-улица Ленинградская\"  ","196608, г. Санкт-Петербург, г. Пушкин, ул. Ленинградская, д. 29","Пушкин"]
[null,null,null,null,null,null,null,null,null,null,null,null,"1538","ДО \"ПУШКИНО\"  ","141207, Московская область, г. Пушкино, Московский проспект, д. 9/2","Пушкино"]
[null,null,null,null,null,null,null,null,null,null,null,null,"1172","ДО \"Пятигорск-улица Октябрьская\"  ","357500, Ставропольский край, г. Пятигорск, ул. Октябрьская, д. 1","Пятигорск"]
[null,null,null,null,null,null,null,null,null,null,null,null,"1182","ДО \"РАМЕНСКОЕ\"  ","140108, Московская область, г. Раменское, ул. Михалевича, д. 1а","Раменское"]
[null,null,null,null,null,null,null,null,null,null,null,null,"1795","ДО \"Ревда-улица Горького\"  ","623286, Свердловская область, г. Ревда, ул. Максима Горького, д. 30","Ревда"]
[null,null,null,null,null,null,null,null,null,null,null,null,"1827","ДО \"Ржев-улица Ленина\"  ","172390, Тверская область, г. Ржев,ул. Ленина, д. 7","Ржев"]
[null,null,null,null,null,null,null,null,null,null,null,null,"1604","ДО \"Россошь-проспект Труда\"  ","396658, Воронежская область, г. Россошь, пр-кт Труда, д. 4б","Россошь"]
[null,null,null,null,null,null,null,null,null,null,null,null,"0441","ДО \"Ростов нД-Донской\"  ","344002, Россия, Ростовская область,г. Ростов-на-Дону, ул. Темерницкая, д. 80/31/81","Ростов-на-Дону"]
[null,null,null,null,null,null,null,null,null,null,null,null,"0744","ДО \"Ростов нД-Нахичевань\"  ","344116, г.Ростов-на-Дону, Пролетарский р-н,ул. 20-я линия, д. 4/3/13","Ростов-на-Дону"]
[null,null,null,null,null,null,null,null,null,null,null,null,"0832","ДО \"Ростов нД-ул. Красноармейская\" ","344010 Ростовская областьг.Ростов-на-Дону ул.Красноармейскаяд.170","Ростов-на-Дону"]
[null,null,null,null,null,null,null,null,null,null,null,null,"0837","ДО \"Ростов нД-Западный\"  ","344091, Ростовская область, г. Ростов-на-Дону, пр. Коммунистический,д.27","Ростов-на-Дону"]
[null,null,null,null,null,null,null,null,null,null,null,null,"0868","ДО \"Ростов нД-парк Горького\"  ","344002, Российская Федерация, Ростовская область, г. Ростов-на-Дону, пр. Буденновский, д.42/50","Ростов-на-Дону"]
[null,null,null,null,null,null,null,null,null,null,null,null,"1126","ДО \"Ростов нД-пр. Королева\" ","344113, Ростовская область, г. Ростов-на-Дону, пр-кт Королева, д. 14а","Ростов-на-Дону"]
[null,null,null,null,null,null,null,null,null,null,null,null,"1626","ДО \"Рубцовск-пр-кт Ленина\"  ","658210, Алтайский край, г. Рубцовск, пр-кт Ленина, д. 46","Рубцовск"]
[null,null,null,null,null,null,null,null,null,null,null,null,"1532","ДО \"Рыбинск-Авиационный\"  ","152903, Ярославская область, г. Рыбинск, ул. Кирова, д. 18","Рыбинск"]
[null,null,null,null,null,null,null,null,null,null,null,null,"0748","ДО \"Рязань-Театральная площадь\"  ","390023, г.Рязань, ул.Ленина, д.9","Рязань"]
[null,null,null,null,null,null,null,null,null,null,null,null,"1122","ДО \"Рязань-Первомайский пр-кт\"  ","390013, Рязанская область, г. Рязань, Первомайский пр-кт, д. 39/2","Рязань"]
[null,null,null,null,null,null,null,null,null,null,null,null,"1193","ДО \"Салават-б-р Космонавтов\"  ","453260, Республика Башкортостан, г.Салават, б-р Космонавтов, 13","Салават"]
[null,null,null,null,null,null,null,null,null,null,null,null,"1809","ДО \"Салехард-улица Мира\"  ","629004, Ямало-Ненецкий автономный округ, г. Салехард, ул. Мира, д. 2","Салехард"]
[null,null,null,null,null,null,null,null,null,null,null,null,"0471","ДО \"Самара-Центральный\"  ","443013, г. Самара, ул. Мичурина, 19В","Самара"]
[null,null,null,null,null,null,null,null,null,null,null,null,"0677","ДО \"Самара-Московское шоссе\"  ","443080, Россия, Самарская область,г. Самара, шоссе Московское, д. 47","Самара"]
[null,null,null,null,null,null,null,null,null,null,null,null,"0734","ДО \"Самара-Стара Загора\"  ","443087, Самарская область, г. Самара, пр-кт Кирова, д. 228, ул. Стара-Загора, д. 126","Самара"]
[null,null,null,null,null,null,null,null,null,null,null,null,"0742","ДО \"Самара-улица Победы\"  ","443009, Самарская область, г.Самара, ул. Победы д.101","Самара"]
[null,null,null,null,null,null,null,null,null,null,null,null,"0800","ДО \"Самара-улица Агибалова\"  ","443041,г. Самара, ул. Агибалова, д.76","Самара"]
[null,null,null,null,null,null,null,null,null,null,null,null,"0870","ДО \"Самара-улица Гагарина\"  ","443045, Россия, Самарская область,г. Самара, ул. Гагарина, д. 64","Самара"]
[null,null,null,null,null,null,null,null,null,null,null,null,"0473","ДО \"СПБ-Грибоедовский\"  ","191186, г. Санкт-Петербург,Б.Конюшенная улица, д.19/8. литА.24Н.25Н","Санкт-Петербург"]
[null,null,null,null,null,null,null,null,null,null,null,null,"0475","ДО \"СПБ-Новочеркасский\"  ","195196, г. Санкт-Петербург, Новочеркасский пр-т, 43/17","Санкт-Петербург"]
[null,null,null,null,null,null,null,null,null,null,null,null,"0476","ДО \"СПБ-Кировский\"  ","198097, г. Санкт-Петербург, пр-т Стачек, 47Е","Санкт-Петербург"]
[null,null,null,null,null,null,null,null,null,null,null,null,"0478","ДО \"СПБ-Лиговский проспект\"  ","191040, г. Санкт-Петербург, Лиговский пр-т, 73А","Санкт-Петербург"]
[null,null,null,null,null,null,null,null,null,null,null,null,"0678","ДО \"СПБ-Каменноостровский\"  ","197022, г. Санкт-Петербург, Каменноостровский проспект, д. 41, литераА","Санкт-Петербург"]
[null,null,null,null,null,null,null,null,null,null,null,null,"0679","ДО \"СПБ-Парк Победы\"  ","196070, г. Санкт-Петербург, Московский проспект, дом 192-194, пом. 19Н, лит. А","Санкт-Петербург"]
[null,null,null,null,null,null,null,null,null,null,null,null,"0681","ДО \"СПБ-улица Дыбенко\"  ","193232, г. Санкт-Петербург, пр-кт Большевиков, д. 21литерР","Санкт-Петербург"]
[null,null,null,null,null,null,null,null,null,null,null,null,"0710","ДО \"СПБ-Международный\"  ","192238, город Санкт-Петербург, ул.Бухарестская, д. 74, кор. 3, лит. А","Санкт-Петербург"]
[null,null,null,null,null,null,null,null,null,null,null,null,"0713","ДО \"СПБ-Таврический сад\"  ","191123 г.Санкт-Петербург, ул.Фурштатская, д. 40","Санкт-Петербург"]
[null,null,null,null,null,null,null,null,null,null,null,null,"0715","ДО \"СПБ-Ленинский проспект\"  ","198216, г. Санкт-Петербург, пр-т Ленинский, д. 130/6, литер А","Санкт-Петербург"]
[null,null,null,null,null,null,null,null,null,null,null,null,"0731","ДО \"СПБ-Проспект Большевиков\"  ","193231, Санкт-Петербург, пр-т Большевиков д.2","Санкт-Петербург"]
[null,null,null,null,null,null,null,null,null,null,null,null,"0735","ДО \"СПБ-Ломоносовский\"  ","192171, г. Санкт-Петербург, улица Полярников, дом 6, литера А, помещение 10-Н","Санкт-Петербург"]
[null,null,null,null,null,null,null,null,null,null,null,null,"0774","ДО \"СПБ-Пионерский\"  ","197348, г. Санкт-Петербург, Коломяжский проспект, дом 15, корпус 2, лит. А","Санкт-Петербург"]
[null,null,null,null,null,null,null,null,null,null,null,null,"0789","ДО \"СПБ-Купчино\"  ","192281, Российская Федерация, г.Санкт-Петербург, Дунайскийпроспект, д.31, корп. 1, литер А,","Санкт-Петербург"]
[null,null,null,null,null,null,null,null,null,null,null,null,"0795","ДО \"СПБ-Проспект Просвещения\"  ","194356, Россия, г. Санкт-Петербург,пр. Энгельса, д. 139/21, лит. А","Санкт-Петербург"]
[null,null,null,null,null,null,null,null,null,null,null,null,"0799","ДО \"СПБ-Московский\"  ","196066, г. Санкт-Петербург,Московский пр., д. 193, пом. 14Н,лит. А","Санкт-Петербург"]
[null,null,null,null,null,null,null,null,null,null,null,null,"0819","ДО \"СПБ-Гражданский проспект\"  ","195267, г. Санкт-Петербург,проспект Просвещения, д. 84 корпус1, Литер А, пом. 50Н","Санкт-Петербург"]
[null,null,null,null,null,null,null,null,null,null,null,null,"0866","ДО \"СПБ-Комендантский проспект\"  ","197371, г. Санкт-Петербург, проспект Комендантский, д. 13, корп. 1, лит. А","Санкт-Петербург"]
[null,null,null,null,null,null,null,null,null,null,null,null,"0890","ДО \"СПБ-Василеостровский\"  ","199004, г. Санкт-Петербург, В.О. 7-ая линия, д.54, Лит. А, пом. 3Н","Санкт-Петербург"]
[null,null,null,null,null,null,null,null,null,null,null,null,"0995","ДО \"СПБ-Лесной проспект\"  ","195009 г. Санкт-Петербург, ул.Академика Лебедева, д.31, корп. 2,лит. А","Санкт-Петербург"]
[null,null,null,null,null,null,null,null,null,null,null,null,"1009","ДО \"СПБ-Беговой\"  ","197374, Санкт-Петербург, ул. Савушкина, дом127","Санкт-Петербург"]
[null,null,null,null,null,null,null,null,null,null,null,null,"1056","ДО \"СПБ-Дачный проспект\"  ","197110, Санкт-Петербург, пр-кт Дачный, д.17, к. 3","Санкт-Петербург"]
[null,null,null,null,null,null,null,null,null,null,null,null,"1067","ДО \"СПБ-Академический\"  ","195256, г. Санкт-Петербург, пр-кт Науки, д. 14к1","Санкт-Петербург"]
[null,null,null,null,null,null,null,null,null,null,null,null,"1166","ДО \"СПБ-Площадь Мужества\"  ","194021, г. Санкт-Петербург, просп.Тореза, д. 9, литера А","Санкт-Петербург"]
[null,null,null,null,null,null,null,null,null,null,null,null,"1010","ДО \"Саранск-Ушаковский\"  ","430005, Республика Мордовия, г. Саранск, ул. Коммунистическая, дом 52","Саранск"]
[null,null,null,null,null,null,null,null,null,null,null,null,"1720","ДО \"Сарапул-улица Горького\"  ","427960, Удмуртская Республика, г. Сарапул, ул. Горького, д. 15а, стр.1","Сарапул"]
[null,null,null,null,null,null,null,null,null,null,null,null,"0829","ДО \"Саратов-Мирный переулок\"  ","410012, г. Саратов, ул. им. ВасилияЛюкшина, здание № 5","Саратов"]
[null,null,null,null,null,null,null,null,null,null,null,null,"1108","ДО \"Саратов-пр-кт Строителей\"  ","410041, Саратовская область, г. Саратов, пр-кт Строителей, д. 19","Саратов"]
[null,null,null,null,null,null,null,null,null,null,null,null,"0751","ДО \"Северодвинск-ул. Ломоносова\"  ","164504, Архангельская область, г. Северодвинск, ул. Ломоносова, д. 64","Северодвинск"]
[null,null,null,null,null,null,null,null,null,null,null,null,"1790","ДО \"Североморск-улица Сафонова\"  ","184604, Мурманская область, г. Североморск, ул. Сафонова, д. 13","Североморск"]
[null,null,null,null,null,null,null,null,null,null,null,null,"1760","ДО \"Северск-Коммунистический пр-кт\" ","636000, Томская область, г. Северск, пр-кт Коммунистический, д. 63","Северск"]
[null,null,null,null,null,null,null,null,null,null,null,null,"1526","ДО \"СЕРГИЕВ ПОСАД\"  ","141310, Московская область, г. Сергиев Посад, просп. Красной Армии, д.180","Сергиев Посад"]
[null,null,null,null,null,null,null,null,null,null,null,null,"1190","ДО \"Серов-улица Ленина\"  ","624992, Свердловская область, г. Серов, ул. Ленина, д. 161","Серов"]
[null,null,null,null,null,null,null,null,null,null,null,null,"1531","ДО \"СЕРПУХОВ\"  ","142203, Московская область, г. Серпухов, ул. Ворошилова, д. 127","Серпухов"]
[null,null,null,null,null,null,null,null,null,null,null,null,"8069","ДО \"Сибай-пр-кт Горняков\"  ","453833, Республика Башкортостан, г.Сибай, пр-кт Горняков, д. 22","Сибай"]
[null,null,null,null,null,null,null,null,null,null,null,null,"1695","ДО Славянск-на-Кубани-ул. Ковтюха  ","353560, Краснодарский край, г. Славянск-на-Кубани, ул. Ковтюха, д. 17","Славянск-на-Кубани"]
[null,null,null,null,null,null,null,null,null,null,null,null,"1158","ДО \"Смоленск-Днепровские ворота\"  ","214004, Смоленская область область,г. Смоленск, ул. Николаева, д. 8","Смоленск"]
[null,null,null,null,null,null,null,null,null,null,null,null,"1805","ДО \"Соликамск-площадь Революции\"  ","618554, Пермский край, г. Соликамск, ул. 20-летия Победы, д. 119","Соликамск"]
[null,null,null,null,null,null,null,null,null,null,null,null,"1678","ДО \"СОЛНЕЧНОГОРСК\"  ","141506, Московская область, г. Солнечногорск, ул. Почтовая, стр. 9/2","Солнечногорск"]
[null,null,null,null,null,null,null,null,null,null,null,null,"0758","ДО \"Сосновый Бор-улица Солнечная\"  ","188541, Ленинградская обл., г. Сосновый Бор, ул. Солнечная, д. 12","Сосновый Бор"]
[null,null,null,null,null,null,null,null,null,null,null,null,"0729","ДО \"Сочи-Центральный\"  ","354000, Краснодарский край, г.Сочи, ул. Конституции СССР, д.18","Сочи"]
[null,null,null,null,null,null,null,null,null,null,null,null,"1143","ДО \"Сочи-улица Северная\"  ","354000, Краснодарский край край, г.Сочи, ул. Северная, д. 6","Сочи"]
[null,null,null,null,null,null,null,null,null,null,null,null,"1179","ДО \"Адлер-Молокова\"  ","354340, Краснодарский край, г. Сочи, ул. Молокова, д. 18/78","Сочи"]
[null,null,null,null,null,null,null,null,null,null,null,null,"0779","ДО \"Ставрополь-улица Ленина\"  ","355029, Ставропольский край,  г.Ставрополь, ул.Ленина, д.299","Ставрополь"]
[null,null,null,null,null,null,null,null,null,null,null,null,"1138","ДО \"Ставрополь-Дзержинский\"  ","355035, Ставропольский край, г. Ставрополь, ул. Дзержинского, д. 114","Ставрополь"]
[null,null,null,null,null,null,null,null,null,null,null,null,"1607","ДО \"Ставрополь-парк Победы\"  ","355040, Ставропольский край, г. Ставрополь, ул. 50-лет ВЛКСМ, д. 11, к. 1","Ставрополь"]
[null,null,null,null,null,null,null,null,null,null,null,null,"1148","ДО \"Старый Оскол-улица Шухова\"  ","309512, Белгородская область, г. Старый Оскол, мкр. Жукова, д. 48, помещение 6","Старый Оскол"]
[null,null,null,null,null,null,null,null,null,null,null,null,"0756","ДО \"Стерлитамак-Центральный\"  ","453100, Республика Башкортостан, г.Стерлитамак, ул. Коммунистическая,д. 96","Стерлитамак"]
[null,null,null,null,null,null,null,null,null,null,null,null,"1803","ДО \"СТУПИНО\"  ","142802, Московская область, г. Ступино, ул. Андропова, д. 63","Ступино"]
[null,null,null,null,null,null,null,null,null,null,null,null,"0937","ДО \"Сургут-Центральный\"  ","628406 г. Сургут, ул. Каролинского, д. 13","Сургут"]
[null,null,null,null,null,null,null,null,null,null,null,null,"1094","ДО \"Сургут-проспект Ленина\"  ","628416, Российская Федерация,Ханты-Мансийский Автономный округ -Югра АО, г.Сургут, пр-т Ленина д.38","Сургут"]
[null,null,null,null,null,null,null,null,null,null,null,null,"1011","ДО \"Сызрань-улица Советская\"  ","446001, Самарская область, г. Сызрань, ул. Советская, д. 51","Сызрань"]
[null,null,null,null,null,null,null,null,null,null,null,null,"1637","ДО \"Сызрань-50 лет Октября\"  ","446031, Самарская область, г. Сызрань, ул. 50 лет Октября, д. 54А","Сызрань"]
[null,null,null,null,null,null,null,null,null,null,null,null,"1829","ДО \"Сыктывкар-ул. Коммунистическая\" ","167001, Республика Коми, г. Сыктывкар, ул. Коммунистическая, д. 46","Сыктывкар"]
[null,null,null,null,null,null,null,null,null,null,null,null,"0714","ДО \"Таганрог-площадь Восстания\"  ","347904, Ростовская область, г. Таганрог, ул.Дзержинского/ул.Фрунзе, д.1/100","Таганрог"]
[null,null,null,null,null,null,null,null,null,null,null,null,"1153","ДО \"Тамбов-улица Максима Горького\" ","392000, Тамбовская область, г. Тамбов, ул. Советская/Максима Горького,д. 104/14","Тамбов"]
[null,null,null,null,null,null,null,null,null,null,null,null,"0682","ДО \"Тверь-улица Трехсвятская\"  ","170100, Тверская область, г. Тверь,ул. Трехсвятская, д. 28","Тверь"]
[null,null,null,null,null,null,null,null,null,null,null,null,"1054","ДО \"Тверь-улица Желябова\"  ","170100, Российская Федерация, г. Тверь, ул. Желябова, д. 3","Тверь"]
[null,null,null,null,null,null,null,null,null,null,null,null,"1630","ДО \"Темрюк-улица Ленина\"  ","353500, Краснодарский край, г. Темрюк, ул. Ленина, д. 68","Темрюк"]
[null,null,null,null,null,null,null,null,null,null,null,null,"1694","ДО \"Тимашевск-улица Красная\"  ","352700, Краснодарский край, г. Тимашевск, ул. Красная, д. 106","Тимашевск"]
[null,null,null,null,null,null,null,null,null,null,null,null,"1751","ДО \"Тихвин-улица Карла Маркса\"  ","187553, Ленинградская область, г. Тихвин, ул. Карла Маркса, д. 50","Тихвин"]
[null,null,null,null,null,null,null,null,null,null,null,null,"1641","ДО \"Тихорецк-улица Энгельса\"  ","352120, Краснодарский край, г. Тихорецк, ул. Энгельса, д. 101","Тихорецк"]
[null,null,null,null,null,null,null,null,null,null,null,null,"1184","ДО \"Тобольск-проспект Менделеева\"  ","626158, Тюменская область, г. Тобольск, 9-й микрорайон, д. 1","Тобольск"]
[null,null,null,null,null,null,null,null,null,null,null,null,"0817","ДО \"Тольятти-ул. Революционная\"  ","445026, Самарская обл.,г. Тольятти,Автозаводской р-н, ул.Революционная, д.32","Тольятти"]
[null,null,null,null,null,null,null,null,null,null,null,null,"0847","ДО \"Тольятти-Гагаринский\"  ","445017, г. Тольятти, ул. Гагарина,14","Тольятти"]
[null,null,null,null,null,null,null,null,null,null,null,null,"1168","ДО \"Тольятти- Центральный\"  ","445031, Россия, Самарская область,г. Тольятти, ул. Тополиная, д. 8а","Тольятти"]
[null,null,null,null,null,null,null,null,null,null,null,null,"0439","ДО \"Томск-Красный Экспресс\"  ","634034, Российская Федерация, Томская область, город Томск, ул.Красноармейская, 101а","Томск"]
[null,null,null,null,null,null,null,null,null,null,null,null,"0716","ДО \"Томск-Магистрат\"  ","634009, Томская область, г. Томск,пер. 1905 года, д. 14а","Томск"]
[null,null,null,null,null,null,null,null,null,null,null,null,"1174","ДО \"Томск-Дом Книги\"  ","634061 г. Томск, пр. Комсомольскийд. 53","Томск"]
[null,null,null,null,null,null,null,null,null,null,null,null,"1648","ДО \"Троицк-сквер Памяти\"  ","457100, Челябинская область, г. Троицк, ул. им. Ю.А. Гагарина, д. 41","Троицк"]
[null,null,null,null,null,null,null,null,null,null,null,null,"1752","ДО \"ТРОИЦК\"  ","108842, г. Москва, г. Троицк, пл. Академическая, д. 5","Троицк"]
[null,null,null,null,null,null,null,null,null,null,null,null,"0898","ДО \"Туапсе-Площадь Ленина\"  ","352800, Краснодарский край,Туапсинский район, г. Туапсе, ул.С. Перовской, д. 2, пом. 21, 28-30","Туапсе"]
[null,null,null,null,null,null,null,null,null,null,null,null,"1823","ДО \"Туймазы-проспект Ленина\"  ","452750, Республика Башкортостан, г.Туймазы, пр-кт Ленина, д. 10","Туймазы"]
[null,null,null,null,null,null,null,null,null,null,null,null,"0407","ДО \"Тула-Красноармейский пр-кт\"  ","300034, Тульская область, г. Тула,пр-кт Красноармейский, дом 27","Тула"]
[null,null,null,null,null,null,null,null,null,null,null,null,"1129","ДО \"Тула-проспект Ленина\"  ","300041, Тульская область, г. Тула,просп. Ленина, д. 54а","Тула"]
[null,null,null,null,null,null,null,null,null,null,null,null,"1141","ДО \"Тула-улица Советская\"  ","300041, Тульская область, г. Тула,ул. Советская, д. 10","Тула"]
[null,null,null,null,null,null,null,null,null,null,null,null,"0468","ДО \"Тюмень-улица Республики\"  ","625026, Тюменская область, г. Тюмень, ул. Республики, д. 155","Тюмень"]
[null,null,null,null,null,null,null,null,null,null,null,null,"0674","ДО \"Тюмень-улица Газовиков\"  ","625022, Тюменская обл., г. Тюмень,ул. Газовиков, д. 65","Тюмень"]
[null,null,null,null,null,null,null,null,null,null,null,null,"0675","ДО \"Тюмень-улица Пермякова\"  ","625051, Тюменская обл., г. Тюмень,ул. Пермякова, д. 23а","Тюмень"]
[null,null,null,null,null,null,null,null,null,null,null,null,"0812","ДО \"Тюмень-улица Ленина\"  ","625000, г. Тюмень, ул. Ленина д. 57/2","Тюмень"]
[null,null,null,null,null,null,null,null,null,null,null,null,"0966","ДО \"Тюмень-ул. 50 лет Октября\"  ","625048, Российская Федерация,Тюменская область, городской округТюмень, г. Тюмень, ул. 50 лет","Тюмень"]
[null,null,null,null,null,null,null,null,null,null,null,null,"0996","ДО \"Тюмень-Центральный\"  ","625000 Тюмень ул. 8 марта, д. 2/13","Тюмень"]
[null,null,null,null,null,null,null,null,null,null,null,null,"1156","ДО \"Улан-Удэ-Селенга\"  ","670000, Республика Бурятия, г. Улан-Удэ, ул. Ленина, д. 35","Улан-Удэ"]
[null,null,null,null,null,null,null,null,null,null,null,null,"1833","ДО \"Улан-Удэ-улица Терешковой\"  ","670031, Республика Бурятия, г. Улан-Удэ, ул. Терешковой, д. 2","Улан-Удэ"]
[null,null,null,null,null,null,null,null,null,null,null,null,"0711","ДО \"Ульяновск-улица Гончарова\"  ","432011, Ульяновская область, г. Ульяновск, ул. Гончарова, д. 25","Ульяновск"]
[null,null,null,null,null,null,null,null,null,null,null,null,"1118","ДО \"Ульяновск-Заволжский\"  ","432067, Ульяновская область, г. Ульяновск, Ульяновский пр-т д.6","Ульяновск"]
[null,null,null,null,null,null,null,null,null,null,null,null,"1133","ДО \"Ульяновск-улица Герасимова\"  ","432045, Ульяновская область, г. Ульяновск, ул. Герасимова, д. 10","Ульяновск"]
[null,null,null,null,null,null,null,null,null,null,null,null,"0897","ДО \"Усолье-Сибирское-Центральный\"  ","665462, Иркутская область, г. Усолье-Сибирское, ул. Орджоникидзе, зд.40","Усолье-Сибирское"]
[null,null,null,null,null,null,null,null,null,null,null,null,"1048","ДО \"Уссурийск-улица Пушкина\"  ","692525, Россия, Приморский край, г.Уссурийск, ул. Пушкина д.27","Уссурийск"]
[null,null,null,null,null,null,null,null,null,null,null,null,"1681","ДО \"Усть-Илимск-пр-кт Мира\"  ","Иркутская обл, г Усть-Илимск, пр-кт Мира, д.2","Усть-Илимск"]
[null,null,null,null,null,null,null,null,null,null,null,null,"8002","ДО \"Усть-Лабинск-улица Октябрьская\" ","352330, Краснодарский край, г. Усть-Лабинск, ул. Октябрьская, д. 99","Усть-Лабинск"]
[null,null,null,null,null,null,null,null,null,null,null,null,"0671","ДО \"Уфа-Идель\"  ","450075, Российская Федерация, Республика Башкортостан, г. Уфа, пр-кт.Октября, д. 107а","Уфа"]
[null,null,null,null,null,null,null,null,null,null,null,null,"0810","ДО \"Уфа-Центральный\"  ","450077, Республика Башкортостан, г.Уфа, ул. Ленина, дом 32/1","Уфа"]
[null,null,null,null,null,null,null,null,null,null,null,null,"0826","ДО \"Уфа-Сипайловский\"  ","450099 г. Уфа, ул. Жукова, 29","Уфа"]
[null,null,null,null,null,null,null,null,null,null,null,null,"0844","ДО \"Уфа-Черниковский\"  ","450044, Республика Башкортостан, г.Уфа, ул. Первомайская, д. 24","Уфа"]
[null,null,null,null,null,null,null,null,null,null,null,null,"0959","ДО \"Уфа-проспект Октября\"  ","450009, Республика Башкортостан, г.Уфа, проспект Октября, д.6","Уфа"]
[null,null,null,null,null,null,null,null,null,null,null,null,"1111","ДО \"Уфа-улица Менделеева\"  ","450106, Республика Башкортостан, г.Уфа, ул. Менделеева, д.130","Уфа"]
[null,null,null,null,null,null,null,null,null,null,null,null,"1796","ДО \"Ухта-проспект Ленина\"  ","169313, Республика Коми, г. Ухта, пр-кт Ленина, д. 27","Ухта"]
[null,null,null,null,null,null,null,null,null,null,null,null,"8076","ДО \"ФРЯЗИНО\"  ","141195, Московская область, г. Фрязино, пр-кт Мира, д. 8","Фрязино"]
[null,null,null,null,null,null,null,null,null,null,null,null,"0703","ДО \"Хабаровск-Амур\"  ","680000, г. Хабаровск, ул. Муравьева- Амурского, дом 36","Хабаровск"]
[null,null,null,null,null,null,null,null,null,null,null,null,"0773","ДО \"Хабаровск-Площадь Блюхера\"  ","680030, Хабаровский край, г.  Хабаровск ул. Ленина, 43","Хабаровск"]
[null,null,null,null,null,null,null,null,null,null,null,null,"1019","ДО \"Хабаровск-Площадь Ленина\"  ","680000, Хабаровский край, г. Хабаровск, ул. Карла Маркса, д. 41, пом.1","Хабаровск"]
[null,null,null,null,null,null,null,null,null,null,null,null,"1183","ДО \"Хабаровск-микрорайон Южный\"  ","680051, Хабаровский край, г. Хабаровск, ул. Суворова, д. 32","Хабаровск"]
[null,null,null,null,null,null,null,null,null,null,null,null,"1176","ДО \"Ханты-Мансийск-Югра\"  ","628011, Ханты-Мансийский автономныйокруг-Югра, г. Ханты-Мансийск, ул.Энгельса, дом 3","Ханты-Мансийск"]
[null,null,null,null,null,null,null,null,null,null,null,null,"0608","ДО \"ХИМКИ\"  ","141501, Московская обл, г. Химки,пр-кт Мельникова, д.2Б","Химки"]
[null,null,null,null,null,null,null,null,null,null,null,null,"1724","ДО \"Чайковский-улица Мира\"  ","617760, Пермский край, г. Чайковский, ул. Мира, д. 19","Чайковский"]
[null,null,null,null,null,null,null,null,null,null,null,null,"1797","ДО \"Чапаевск-улица Запорожская\"  ","446103, Самарская область, г. Чапаевск, ул. Запорожская, д. 18А","Чапаевск"]
[null,null,null,null,null,null,null,null,null,null,null,null,"0718","ДО \"Чебоксары-улица К. Маркса\"  ","428000, Российская Федерация, Чувашская республика, г. Чебоксары, улица Карла Маркса, 51","Чебоксары"]
[null,null,null,null,null,null,null,null,null,null,null,null,"0899","ДО \"Чебоксары-Центральный\"  ","428003, Российская Федерация,Чувашская Республика, г. Чебоксары,ул. Ярославская, д. 27","Чебоксары"]
[null,null,null,null,null,null,null,null,null,null,null,null,"0435","ДО \"Челябинск-улица Кирова\"  ","454000, г. Челябинск, ул. Кирова,108","Челябинск"]
[null,null,null,null,null,null,null,null,null,null,null,null,"0821","ДО \"Челябинск-проспект Ленина\"  ","454080, Россия, Челябинская область, г. Челябинск, пр-т Ленина, д. 73-а","Челябинск"]
[null,null,null,null,null,null,null,null,null,null,null,null,"0822","ДО \"Челябинск-Курчатовский\"  ","454014, г.Челябинск, ул.Молодогвардейцев, д.32 А","Челябинск"]
[null,null,null,null,null,null,null,null,null,null,null,null,"0881","ДО \"Челябинск-Энергия\"  ","454048, г.Челябинскул. Доватора, 35","Челябинск"]
[null,null,null,null,null,null,null,null,null,null,null,null,"0968","ДО \"Челябинск-улица Чичерина\"  ","Российская Федерация, Челябинская обл., г. Челябинск, ул. Чичерина, д.38 В","Челябинск"]
[null,null,null,null,null,null,null,null,null,null,null,null,"0974","ДО \"Челябинск-Комсомольский\"  ","454008 г. Челябинск, Комсомольскийпр-т, д. 2а","Челябинск"]
[null,null,null,null,null,null,null,null,null,null,null,null,"0997","ДО \"Челябинск-улица Свободы\"  ","454091, г.Челябинск, ул.Свободы,д.82","Челябинск"]
[null,null,null,null,null,null,null,null,null,null,null,null,"1686","ДО \"Черемхово-ул. Первомайская\"  ","665412, Иркутская область, г. Черемхово, ул. Первомайская, д. 160/Б","Черемхово"]
[null,null,null,null,null,null,null,null,null,null,null,null,"1167","ДО \"Череповец-улица Ленина\"  ","162602, Вологодская область, г. Череповец, ул. Ленина, д. 68","Череповец"]
[null,null,null,null,null,null,null,null,null,null,null,null,"1816","ДО \"Черногорск-улица Юбилейная\"  ","655158, Республика Хакасия, г. Черногорск, ул. Юбилейная, д. 16","Черногорск"]
[null,null,null,null,null,null,null,null,null,null,null,null,"1693","ДО \"Черняховск-улица Ленина\"  ","238150, Калининградская область, г.Черняховск, ул. Ленина, д. 39","Черняховск"]
[null,null,null,null,null,null,null,null,null,null,null,null,"1541","ДО \"ЧЕХОВ\"  ","142300, Московская область, г. Чехов, ул. Московская, вл. 96","Чехов"]
[null,null,null,null,null,null,null,null,null,null,null,null,"1758","ДО \"Чистополь-улица Ленина\"  ","422981, Республика Татарстан, г. Чистополь, ул. Ленина, д. 42Д","Чистополь"]
[null,null,null,null,null,null,null,null,null,null,null,null,"1832","ДО \"Чита-улица Хабаровская\"  ","672000, Забайкальский край, г. Чита, ул. Хабаровская, д. 6","Чита"]
[null,null,null,null,null,null,null,null,null,null,null,null,"1661","ДО \"Шадринск-улица Февральская\"  ","641870, Курганская область, г. Шадринск, ул. Февральская, д. 54","Шадринск"]
[null,null,null,null,null,null,null,null,null,null,null,null,"1150","ДО \"Шахты-площадь Победы\"  ","346500,  Ростовская область, г. Шахты, проспект Победы Революции, д. 126","Шахты"]
[null,null,null,null,null,null,null,null,null,null,null,null,"1781","ДО \"Шуя-улица Ленина\"  ","155900, Ивановская область, г. Шуя,ул. Ленина, д. 7, стр. 1","Шуя"]
[null,null,null,null,null,null,null,null,null,null,null,null,"1629","ДО \"Щекино-улица Советская\"  ","301245, Тульская область, г. Щекино, ул. Советская, д. 12Г","Щекино"]
[null,null,null,null,null,null,null,null,null,null,null,null,"1536","ДО \"ЩЕЛКОВО\"  ","141100, Московская область, г. Щелково, Пролетарский пр-т, д.9","Щелково"]
[null,null,null,null,null,null,null,null,null,null,null,null,"1824","ДО \"ЩЕРБИНКА-УЛ. 40 ЛЕТ ОКТЯБРЯ\"  ","108851, г. Москва, г. Щербинка, ул.40 лет Октября, д. 15/1","Щербинка"]
[null,null,null,null,null,null,null,null,null,null,null,null,"1530","ДО \"ЭЛЕКТРОСТАЛЬ\"  ","144000, Московская область, г. Электросталь, ул. Советская, д. 14","Электросталь"]
[null,null,null,null,null,null,null,null,null,null,null,null,"0747","ДО \"Энгельс-улица Тельмана\"  ","413100, Саратовская область, г. Энгельс, ул. Тельмана, д. 23","Энгельс"]
[null,null,null,null,null,null,null,null,null,null,null,null,"0846","ДО \"Южно-Сахалинск-Океанский\"  ","693020, Сахалинская область, г. Южно-Сахалинск, ул. Ленина, д. 218","Южно-Сахалинск"]
[null,null,null,null,null,null,null,null,null,null,null,null,"0963","ДО \"Юрга-улица Московская\"  ","652050, Кемеровская обл г. Юрга,ул. Московская, д 37","Юрга"]
[null,null,null,null,null,null,null,null,null,null,null,null,"0752","ДО \"Якутск-Центральный\"  ","677000, Республика Саха (Якутия), г. Якутск, пр-кт Ленина, д. 24","Якутск"]
[null,null,null,null,null,null,null,null,null,null,null,null,"0702","ДО \"Ярославль-площадь Юности\"  ","150000, г. Ярославль, ул. Свободы,29","Ярославль"]
[null,null,null,null,null,null,null,null,null,null,null,null,"0730","ДО \"Ярославль-Рождественский\"  ","150000, Ярославская область, г. Ярославль, ул. Свободы, д. 2","Ярославль"]
[null,null,null,null,null,null,null,null,null,null,null,null,"1125","ДО \"Ярославль-Парк Победы\"  ","150045, Ярославская область, г. Ярославль, Ленинградский пр-т, 52 А","Ярославль"]
[null,null,null,null,null,null,null,null,null,null,null,null,"1600","ДО \"Ярославль-пр-кт Московский\"  ","150030, Ярославская область, г. Ярославль, Московский пр-кт, д. 125","Ярославль"]
[null,null,null,null,null,null,null,null,null,null,null,null,"0698","ДО \"Ясный-Горный лен\"  ","462781, Оренбургская обл. г. Ясный,ул. Ленина д. 9","Ясный"]

{"sheet":"Сотрудники на открытие счетов","index":1,"n_rows":105,"n_cols":41,"rows_kept":105,"cut":false,"hidden":false,"merged":[]}
["Фамилия","Имя","Отчество","Дата рождения","Место рождения","Пол","Тип документа","Серия документа","Номер документа","Кем выдан документ","Дата выдачи документа","Дата окончания документа","Мобильный телефон","Страна гражданства","Страна регистрации","Код ДУП","Серия и Номер ДУП","Дата начала действия ДУП","Дата окончания действия ДУП","Тип МК","Номер МК","Дата начала пребывания","Дата окончания пребывания","Адрес регистрации: Код страны","Адрес регистрации: Код региона","Адрес регистрации: Город","Адрес регистрации: Наименование улицы","Адрес регистрации: Номер дома","Адрес регистрации: Номер корпуса/строения","Адрес регистрации: Номер квартиры/комнаты","Фактический Адрес: Код страны","Фактический Адрес: Код региона","Фактический Адрес: Город","Фактический Адрес: Наименование улицы","Фактический Адрес: Номер дома","Фактический Адрес: Номер корпуса/строения","Фактический Адрес: Номер квартиры/комнаты","Город Отделения доставки карты при получении сотрудником карты в Банке","Отделение доставки карт","Код отделения","Табельный номер"]
[null,null,null,null,null,null,null,null,null,null,null,null,null,null,null,null,null,null,null,null,null,null,null,null,null,null,null,null,null,null,null,null,null,null,null,null,null,null,null,{"$f":"IFERROR(VLOOKUP(AM2,Отделения7[отделение]:Отделения7[Мнемоника],2,0),\"\")","v":""}]
[null,null,null,null,null,null,null,null,null,null,null,null,null,null,null,null,null,null,null,null,null,null,null,null,null,null,null,null,null,null,null,null,null,null,null,null,null,null,null,{"$f":"IFERROR(VLOOKUP(AM3,Отделения7[[отделение]:[Мнемоника]],2,0),\"\")","v":""}]
[null,null,null,null,null,null,null,null,null,null,null,null,null,null,null,null,null,null,null,null,null,null,null,null,null,null,null,null,null,null,null,null,null,null,null,null,null,null,null,{"$f":"IFERROR(VLOOKUP(AM4,Отделения7[[отделение]:[Мнемоника]],2,0),\"\")","v":""}]
[null,null,null,null,null,null,null,null,null,null,null,null,null,null,null,null,null,null,null,null,null,null,null,null,null,null,null,null,null,null,null,null,null,null,null,null,null,null,null,{"$f":"IFERROR(VLOOKUP(AM5,Отделения7[[отделение]:[Мнемоника]],2,0),\"\")","v":""}]
[null,null,null,null,null,null,null,null,null,null,null,null,null,null,null,null,null,null,null,null,null,null,null,null,null,null,null,null,null,null,null,null,null,null,null,null,null,null,null,{"$f":"IFERROR(VLOOKUP(AM6,Отделения7[[отделение]:[Мнемоника]],2,0),\"\")","v":""}]
[null,null,null,null,null,null,null,null,null,null,null,null,null,null,null,null,null,null,null,null,null,null,null,null,null,null,null,null,null,null,null,null,null,null,null,null,null,null,null,{"$f":"IFERROR(VLOOKUP(AM7,Отделения7[[отделение]:[Мнемоника]],2,0),\"\")","v":""}]
[null,null,null,null,null,null,null,null,null,null,null,null,null,null,null,null,null,null,null,null,null,null,null,null,null,null,null,null,null,null,null,null,null,null,null,null,null,null,null,{"$f":"IFERROR(VLOOKUP(AM8,Отделения7[[отделение]:[Мнемоника]],2,0),\"\")","v":""}]
[null,null,null,null,null,null,null,null,null,null,null,null,null,null,null,null,null,null,null,null,null,null,null,null,null,null,null,null,null,null,null,null,null,null,null,null,null,null,null,{"$f":"IFERROR(VLOOKUP(AM9,Отделения7[[отделение]:[Мнемоника]],2,0),\"\")","v":""}]
[null,null,null,null,null,null,null,null,null,null,null,null,null,null,null,null,null,null,null,null,null,null,null,null,null,null,null,null,null,null,null,null,null,null,null,null,null,null,null,{"$f":"IFERROR(VLOOKUP(AM10,Отделения7[[отделение]:[Мнемоника]],2,0),\"\")","v":""}]
[null,null,null,null,null,null,null,null,null,null,null,null,null,null,null,null,null,null,null,null,null,null,null,null,null,null,null,null,null,null,null,null,null,null,null,null,null,null,null,{"$f":"IFERROR(VLOOKUP(AM11,Отделения7[[отделение]:[Мнемоника]],2,0),\"\")","v":""}]
[null,null,null,null,null,null,null,null,null,null,null,null,null,null,null,null,null,null,null,null,null,null,null,null,null,null,null,null,null,null,null,null,null,null,null,null,null,null,null,{"$f":"IFERROR(VLOOKUP(AM12,Отделения7[[отделение]:[Мнемоника]],2,0),\"\")","v":""}]
[null,null,null,null,null,null,null,null,null,null,null,null,null,null,null,null,null,null,null,null,null,null,null,null,null,null,null,null,null,null,null,null,null,null,null,null,null,null,null,{"$f":"IFERROR(VLOOKUP(AM13,Отделения7[[отделение]:[Мнемоника]],2,0),\"\")","v":""}]
[null,null,null,null,null,null,null,null,null,null,null,null,null,null,null,null,null,null,null,null,null,null,null,null,null,null,null,null,null,null,null,null,null,null,null,null,null,null,null,{"$f":"IFERROR(VLOOKUP(AM14,Отделения7[[отделение]:[Мнемоника]],2,0),\"\")","v":""}]
[null,null,null,null,null,null,null,null,null,null,null,null,null,null,null,null,null,null,null,null,null,null,null,null,null,null,null,null,null,null,null,null,null,null,null,null,null,null,null,{"$f":"IFERROR(VLOOKUP(AM15,Отделения7[[отделение]:[Мнемоника]],2,0),\"\")","v":""}]
[null,null,null,null,null,null,null,null,null,null,null,null,null,null,null,null,null,null,null,null,null,null,null,null,null,null,null,null,null,null,null,null,null,null,null,null,null,null,null,{"$f":"IFERROR(VLOOKUP(AM16,Отделения7[[отделение]:[Мнемоника]],2,0),\"\")","v":""}]
[null,null,null,null,null,null,null,null,null,null,null,null,null,null,null,null,null,null,null,null,null,null,null,null,null,null,null,null,null,null,null,null,null,null,null,null,null,null,null,{"$f":"IFERROR(VLOOKUP(AM17,Отделения7[[отделение]:[Мнемоника]],2,0),\"\")","v":""}]
[null,null,null,null,null,null,null,null,null,null,null,null,null,null,null,null,null,null,null,null,null,null,null,null,null,null,null,null,null,null,null,null,null,null,null,null,null,null,null,{"$f":"IFERROR(VLOOKUP(AM18,Отделения7[[отделение]:[Мнемоника]],2,0),\"\")","v":""}]
[null,null,null,null,null,null,null,null,null,null,null,null,null,null,null,null,null,null,null,null,null,null,null,null,null,null,null,null,null,null,null,null,null,null,null,null,null,null,null,{"$f":"IFERROR(VLOOKUP(AM19,Отделения7[[отделение]:[Мнемоника]],2,0),\"\")","v":""}]
[null,null,null,null,null,null,null,null,null,null,null,null,null,null,null,null,null,null,null,null,null,null,null,null,null,null,null,null,null,null,null,null,null,null,null,null,null,null,null,{"$f":"IFERROR(VLOOKUP(AM20,Отделения7[[отделение]:[Мнемоника]],2,0),\"\")","v":""}]
[null,null,null,null,null,null,null,null,null,null,null,null,null,null,null,null,null,null,null,null,null,null,null,null,null,null,null,null,null,null,null,null,null,null,null,null,null,null,null,{"$f":"IFERROR(VLOOKUP(AM21,Отделения7[[отделение]:[Мнемоника]],2,0),\"\")","v":""}]
[null,null,null,null,null,null,null,null,null,null,null,null,null,null,null,null,null,null,null,null,null,null,null,null,null,null,null,null,null,null,null,null,null,null,null,null,null,null,null,{"$f":"IFERROR(VLOOKUP(AM22,Отделения7[[отделение]:[Мнемоника]],2,0),\"\")","v":""}]
[null,null,null,null,null,null,null,null,null,null,null,null,null,null,null,null,null,null,null,null,null,null,null,null,null,null,null,null,null,null,null,null,null,null,null,null,null,null,null,{"$f":"IFERROR(VLOOKUP(AM23,Отделения7[[отделение]:[Мнемоника]],2,0),\"\")","v":""}]
[null,null,null,null,null,null,null,null,null,null,null,null,null,null,null,null,null,null,null,null,null,null,null,null,null,null,null,null,null,null,null,null,null,null,null,null,null,null,null,{"$f":"IFERROR(VLOOKUP(AM24,Отделения7[[отделение]:[Мнемоника]],2,0),\"\")","v":""}]
[null,null,null,null,null,null,null,null,null,null,null,null,null,null,null,null,null,null,null,null,null,null,null,null,null,null,null,null,null,null,null,null,null,null,null,null,null,null,null,{"$f":"IFERROR(VLOOKUP(AM25,Отделения7[[отделение]:[Мнемоника]],2,0),\"\")","v":""}]
[null,null,null,null,null,null,null,null,null,null,null,null,null,null,null,null,null,null,null,null,null,null,null,null,null,null,null,null,null,null,null,null,null,null,null,null,null,null,null,{"$f":"IFERROR(VLOOKUP(AM26,Отделения7[[отделение]:[Мнемоника]],2,0),\"\")","v":""}]
[null,null,null,null,null,null,null,null,null,null,null,null,null,null,null,null,null,null,null,null,null,null,null,null,null,null,null,null,null,null,null,null,null,null,null,null,null,null,null,{"$f":"IFERROR(VLOOKUP(AM27,Отделения7[[отделение]:[Мнемоника]],2,0),\"\")","v":""}]
[null,null,null,null,null,null,null,null,null,null,null,null,null,null,null,null,null,null,null,null,null,null,null,null,null,null,null,null,null,null,null,null,null,null,null,null,null,null,null,{"$f":"IFERROR(VLOOKUP(AM28,Отделения7[[отделение]:[Мнемоника]],2,0),\"\")","v":""}]
[null,null,null,null,null,null,null,null,null,null,null,null,null,null,null,null,null,null,null,null,null,null,null,null,null,null,null,null,null,null,null,null,null,null,null,null,null,null,null,{"$f":"IFERROR(VLOOKUP(AM29,Отделения7[[отделение]:[Мнемоника]],2,0),\"\")","v":""}]
[null,null,null,null,null,null,null,null,null,null,null,null,null,null,null,null,null,null,null,null,null,null,null,null,null,null,null,null,null,null,null,null,null,null,null,null,null,null,null,{"$f":"IFERROR(VLOOKUP(AM30,Отделения7[[отделение]:[Мнемоника]],2,0),\"\")","v":""}]
[null,null,null,null,null,null,null,null,null,null,null,null,null,null,null,null,null,null,null,null,null,null,null,null,null,null,null,null,null,null,null,null,null,null,null,null,null,null,null,{"$f":"IFERROR(VLOOKUP(AM31,Отделения7[[отделение]:[Мнемоника]],2,0),\"\")","v":""}]
[null,null,null,null,null,null,null,null,null,null,null,null,null,null,null,null,null,null,null,null,null,null,null,null,null,null,null,null,null,null,null,null,null,null,null,null,null,null,null,{"$f":"IFERROR(VLOOKUP(AM32,Отделения7[[отделение]:[Мнемоника]],2,0),\"\")","v":""}]
[null,null,null,null,null,null,null,null,null,null,null,null,null,null,null,null,null,null,null,null,null,null,null,null,null,null,null,null,null,null,null,null,null,null,null,null,null,null,null,{"$f":"IFERROR(VLOOKUP(AM33,Отделения7[[отделение]:[Мнемоника]],2,0),\"\")","v":""}]
[null,null,null,null,null,null,null,null,null,null,null,null,null,null,null,null,null,null,null,null,null,null,null,null,null,null,null,null,null,null,null,null,null,null,null,null,null,null,null,{"$f":"IFERROR(VLOOKUP(AM34,Отделения7[[отделение]:[Мнемоника]],2,0),\"\")","v":""}]
[null,null,null,null,null,null,null,null,null,null,null,null,null,null,null,null,null,null,null,null,null,null,null,null,null,null,null,null,null,null,null,null,null,null,null,null,null,null,null,{"$f":"IFERROR(VLOOKUP(AM35,Отделения7[[отделение]:[Мнемоника]],2,0),\"\")","v":""}]
[null,null,null,null,null,null,null,null,null,null,null,null,null,null,null,null,null,null,null,null,null,null,null,null,null,null,null,null,null,null,null,null,null,null,null,null,null,null,null,{"$f":"IFERROR(VLOOKUP(AM36,Отделения7[[отделение]:[Мнемоника]],2,0),\"\")","v":""}]
[null,null,null,null,null,null,null,null,null,null,null,null,null,null,null,null,null,null,null,null,null,null,null,null,null,null,null,null,null,null,null,null,null,null,null,null,null,null,null,{"$f":"IFERROR(VLOOKUP(AM37,Отделения7[[отделение]:[Мнемоника]],2,0),\"\")","v":""}]
[null,null,null,null,null,null,null,null,null,null,null,null,null,null,null,null,null,null,null,null,null,null,null,null,null,null,null,null,null,null,null,null,null,null,null,null,null,null,null,{"$f":"IFERROR(VLOOKUP(AM38,Отделения7[[отделение]:[Мнемоника]],2,0),\"\")","v":""}]
[null,null,null,null,null,null,null,null,null,null,null,null,null,null,null,null,null,null,null,null,null,null,null,null,null,null,null,null,null,null,null,null,null,null,null,null,null,null,null,{"$f":"IFERROR(VLOOKUP(AM39,Отделения7[[отделение]:[Мнемоника]],2,0),\"\")","v":""}]
[null,null,null,null,null,null,null,null,null,null,null,null,null,null,null,null,null,null,null,null,null,null,null,null,null,null,null,null,null,null,null,null,null,null,null,null,null,null,null,{"$f":"IFERROR(VLOOKUP(AM40,Отделения7[[отделение]:[Мнемоника]],2,0),\"\")","v":""}]
[null,null,null,null,null,null,null,null,null,null,null,null,null,null,null,null,null,null,null,null,null,null,null,null,null,null,null,null,null,null,null,null,null,null,null,null,null,null,null,{"$f":"IFERROR(VLOOKUP(AM41,Отделения7[[отделение]:[Мнемоника]],2,0),\"\")","v":""}]
[null,null,null,null,null,null,null,null,null,null,null,null,null,null,null,null,null,null,null,null,null,null,null,null,null,null,null,null,null,null,null,null,null,null,null,null,null,null,null,{"$f":"IFERROR(VLOOKUP(AM42,Отделения7[[отделение]:[Мнемоника]],2,0),\"\")","v":""}]
[null,null,null,null,null,null,null,null,null,null,null,null,null,null,null,null,null,null,null,null,null,null,null,null,null,null,null,null,null,null,null,null,null,null,null,null,null,null,null,{"$f":"IFERROR(VLOOKUP(AM43,Отделения7[[отделение]:[Мнемоника]],2,0),\"\")","v":""}]
[null,null,null,null,null,null,null,null,null,null,null,null,null,null,null,null,null,null,null,null,null,null,null,null,null,null,null,null,null,null,null,null,null,null,null,null,null,null,null,{"$f":"IFERROR(VLOOKUP(AM44,Отделения7[[отделение]:[Мнемоника]],2,0),\"\")","v":""}]
[null,null,null,null,null,null,null,null,null,null,null,null,null,null,null,null,null,null,null,null,null,null,null,null,null,null,null,null,null,null,null,null,null,null,null,null,null,null,null,{"$f":"IFERROR(VLOOKUP(AM45,Отделения7[[отделение]:[Мнемоника]],2,0),\"\")","v":""}]
[null,null,null,null,null,null,null,null,null,null,null,null,null,null,null,null,null,null,null,null,null,null,null,null,null,null,null,null,null,null,null,null,null,null,null,null,null,null,null,{"$f":"IFERROR(VLOOKUP(AM46,Отделения7[[отделение]:[Мнемоника]],2,0),\"\")","v":""}]
[null,null,null,null,null,null,null,null,null,null,null,null,null,null,null,null,null,null,null,null,null,null,null,null,null,null,null,null,null,null,null,null,null,null,null,null,null,null,null,{"$f":"IFERROR(VLOOKUP(AM47,Отделения7[[отделение]:[Мнемоника]],2,0),\"\")","v":""}]
[null,null,null,null,null,null,null,null,null,null,null,null,null,null,null,null,null,null,null,null,null,null,null,null,null,null,null,null,null,null,null,null,null,null,null,null,null,null,null,{"$f":"IFERROR(VLOOKUP(AM48,Отделения7[[отделение]:[Мнемоника]],2,0),\"\")","v":""}]
[null,null,null,null,null,null,null,null,null,null,null,null,null,null,null,null,null,null,null,null,null,null,null,null,null,null,null,null,null,null,null,null,null,null,null,null,null,null,null,{"$f":"IFERROR(VLOOKUP(AM49,Отделения7[[отделение]:[Мнемоника]],2,0),\"\")","v":""}]
[null,null,null,null,null,null,null,null,null,null,null,null,null,null,null,null,null,null,null,null,null,null,null,null,null,null,null,null,null,null,null,null,null,null,null,null,null,null,null,{"$f":"IFERROR(VLOOKUP(AM50,Отделения7[[отделение]:[Мнемоника]],2,0),\"\")","v":""}]
[null,null,null,null,null,null,null,null,null,null,null,null,null,null,null,null,null,null,null,null,null,null,null,null,null,null,null,null,null,null,null,null,null,null,null,null,null,null,null,{"$f":"IFERROR(VLOOKUP(AM51,Отделения7[[отделение]:[Мнемоника]],2,0),\"\")","v":""}]
[null,null,null,null,null,null,null,null,null,null,null,null,null,null,null,null,null,null,null,null,null,null,null,null,null,null,null,null,null,null,null,null,null,null,null,null,null,null,null,{"$f":"IFERROR(VLOOKUP(AM52,Отделения7[[отделение]:[Мнемоника]],2,0),\"\")","v":""}]
[null,null,null,null,null,null,null,null,null,null,null,null,null,null,null,null,null,null,null,null,null,null,null,null,null,null,null,null,null,null,null,null,null,null,null,null,null,null,null,{"$f":"IFERROR(VLOOKUP(AM53,Отделения7[[отделение]:[Мнемоника]],2,0),\"\")","v":""}]
[null,null,null,null,null,null,null,null,null,null,null,null,null,null,null,null,null,null,null,null,null,null,null,null,null,null,null,null,null,null,null,null,null,null,null,null,null,null,null,{"$f":"IFERROR(VLOOKUP(AM54,Отделения7[[отделение]:[Мнемоника]],2,0),\"\")","v":""}]
[null,null,null,null,null,null,null,null,null,null,null,null,null,null,null,null,null,null,null,null,null,null,null,null,null,null,null,null,null,null,null,null,null,null,null,null,null,null,null,{"$f":"IFERROR(VLOOKUP(AM55,Отделения7[[отделение]:[Мнемоника]],2,0),\"\")","v":""}]
[null,null,null,null,null,null,null,null,null,null,null,null,null,null,null,null,null,null,null,null,null,null,null,null,null,null,null,null,null,null,null,null,null,null,null,null,null,null,null,{"$f":"IFERROR(VLOOKUP(AM56,Отделения7[[отделение]:[Мнемоника]],2,0),\"\")","v":""}]
[null,null,null,null,null,null,null,null,null,null,null,null,null,null,null,null,null,null,null,null,null,null,null,null,null,null,null,null,null,null,null,null,null,null,null,null,null,null,null,{"$f":"IFERROR(VLOOKUP(AM57,Отделения7[[отделение]:[Мнемоника]],2,0),\"\")","v":""}]
[null,null,null,null,null,null,null,null,null,null,null,null,null,null,null,null,null,null,null,null,null,null,null,null,null,null,null,null,null,null,null,null,null,null,null,null,null,null,null,{"$f":"IFERROR(VLOOKUP(AM58,Отделения7[[отделение]:[Мнемоника]],2,0),\"\")","v":""}]
[null,null,null,null,null,null,null,null,null,null,null,null,null,null,null,null,null,null,null,null,null,null,null,null,null,null,null,null,null,null,null,null,null,null,null,null,null,null,null,{"$f":"IFERROR(VLOOKUP(AM59,Отделения7[[отделение]:[Мнемоника]],2,0),\"\")","v":""}]
[null,null,null,null,null,null,null,null,null,null,null,null,null,null,null,null,null,null,null,null,null,null,null,null,null,null,null,null,null,null,null,null,null,null,null,null,null,null,null,{"$f":"IFERROR(VLOOKUP(AM60,Отделения7[[отделение]:[Мнемоника]],2,0),\"\")","v":""}]
[null,null,null,null,null,null,null,null,null,null,null,null,null,null,null,null,null,null,null,null,null,null,null,null,null,null,null,null,null,null,null,null,null,null,null,null,null,null,null,{"$f":"IFERROR(VLOOKUP(AM61,Отделения7[[отделение]:[Мнемоника]],2,0),\"\")","v":""}]
[null,null,null,null,null,null,null,null,null,null,null,null,null,null,null,null,null,null,null,null,null,null,null,null,null,null,null,null,null,null,null,null,null,null,null,null,null,null,null,{"$f":"IFERROR(VLOOKUP(AM62,Отделения7[[отделение]:[Мнемоника]],2,0),\"\")","v":""}]
[null,null,null,null,null,null,null,null,null,null,null,null,null,null,null,null,null,null,null,null,null,null,null,null,null,null,null,null,null,null,null,null,null,null,null,null,null,null,null,{"$f":"IFERROR(VLOOKUP(AM63,Отделения7[[отделение]:[Мнемоника]],2,0),\"\")","v":""}]
[null,null,null,null,null,null,null,null,null,null,null,null,null,null,null,null,null,null,null,null,null,null,null,null,null,null,null,null,null,null,null,null,null,null,null,null,null,null,null,{"$f":"IFERROR(VLOOKUP(AM64,Отделения7[[отделение]:[Мнемоника]],2,0),\"\")","v":""}]
[null,null,null,null,null,null,null,null,null,null,null,null,null,null,null,null,null,null,null,null,null,null,null,null,null,null,null,null,null,null,null,null,null,null,null,null,null,null,null,{"$f":"IFERROR(VLOOKUP(AM65,Отделения7[[отделение]:[Мнемоника]],2,0),\"\")","v":""}]
[null,null,null,null,null,null,null,null,null,null,null,null,null,null,null,null,null,null,null,null,null,null,null,null,null,null,null,null,null,null,null,null,null,null,null,null,null,null,null,{"$f":"IFERROR(VLOOKUP(AM66,Отделения7[[отделение]:[Мнемоника]],2,0),\"\")","v":""}]
[null,null,null,null,null,null,null,null,null,null,null,null,null,null,null,null,null,null,null,null,null,null,null,null,null,null,null,null,null,null,null,null,null,null,null,null,null,null,null,{"$f":"IFERROR(VLOOKUP(AM67,Отделения7[[отделение]:[Мнемоника]],2,0),\"\")","v":""}]
[null,null,null,null,null,null,null,null,null,null,null,null,null,null,null,null,null,null,null,null,null,null,null,null,null,null,null,null,null,null,null,null,null,null,null,null,null,null,null,{"$f":"IFERROR(VLOOKUP(AM68,Отделения7[[отделение]:[Мнемоника]],2,0),\"\")","v":""}]
[null,null,null,null,null,null,null,null,null,null,null,null,null,null,null,null,null,null,null,null,null,null,null,null,null,null,null,null,null,null,null,null,null,null,null,null,null,null,null,{"$f":"IFERROR(VLOOKUP(AM69,Отделения7[[отделение]:[Мнемоника]],2,0),\"\")","v":""}]
[null,null,null,null,null,null,null,null,null,null,null,null,null,null,null,null,null,null,null,null,null,null,null,null,null,null,null,null,null,null,null,null,null,null,null,null,null,null,null,{"$f":"IFERROR(VLOOKUP(AM70,Отделения7[[отделение]:[Мнемоника]],2,0),\"\")","v":""}]
[null,null,null,null,null,null,null,null,null,null,null,null,null,null,null,null,null,null,null,null,null,null,null,null,null,null,null,null,null,null,null,null,null,null,null,null,null,null,null,{"$f":"IFERROR(VLOOKUP(AM71,Отделения7[[отделение]:[Мнемоника]],2,0),\"\")","v":""}]
[null,null,null,null,null,null,null,null,null,null,null,null,null,null,null,null,null,null,null,null,null,null,null,null,null,null,null,null,null,null,null,null,null,null,null,null,null,null,null,{"$f":"IFERROR(VLOOKUP(AM72,Отделения7[[отделение]:[Мнемоника]],2,0),\"\")","v":""}]
[null,null,null,null,null,null,null,null,null,null,null,null,null,null,null,null,null,null,null,null,null,null,null,null,null,null,null,null,null,null,null,null,null,null,null,null,null,null,null,{"$f":"IFERROR(VLOOKUP(AM73,Отделения7[[отделение]:[Мнемоника]],2,0),\"\")","v":""}]
[null,null,null,null,null,null,null,null,null,null,null,null,null,null,null,null,null,null,null,null,null,null,null,null,null,null,null,null,null,null,null,null,null,null,null,null,null,null,null,{"$f":"IFERROR(VLOOKUP(AM74,Отделения7[[отделение]:[Мнемоника]],2,0),\"\")","v":""}]
[null,null,null,null,null,null,null,null,null,null,null,null,null,null,null,null,null,null,null,null,null,null,null,null,null,null,null,null,null,null,null,null,null,null,null,null,null,null,null,{"$f":"IFERROR(VLOOKUP(AM75,Отделения7[[отделение]:[Мнемоника]],2,0),\"\")","v":""}]
[null,null,null,null,null,null,null,null,null,null,null,null,null,null,null,null,null,null,null,null,null,null,null,null,null,null,null,null,null,null,null,null,null,null,null,null,null,null,null,{"$f":"IFERROR(VLOOKUP(AM76,Отделения7[[отделение]:[Мнемоника]],2,0),\"\")","v":""}]
[null,null,null,null,null,null,null,null,null,null,null,null,null,null,null,null,null,null,null,null,null,null,null,null,null,null,null,null,null,null,null,null,null,null,null,null,null,null,null,{"$f":"IFERROR(VLOOKUP(AM77,Отделения7[[отделение]:[Мнемоника]],2,0),\"\")","v":""}]
[null,null,null,null,null,null,null,null,null,null,null,null,null,null,null,null,null,null,null,null,null,null,null,null,null,null,null,null,null,null,null,null,null,null,null,null,null,null,null,{"$f":"IFERROR(VLOOKUP(AM78,Отделения7[[отделение]:[Мнемоника]],2,0),\"\")","v":""}]
[null,null,null,null,null,null,null,null,null,null,null,null,null,null,null,null,null,null,null,null,null,null,null,null,null,null,null,null,null,null,null,null,null,null,null,null,null,null,null,{"$f":"IFERROR(VLOOKUP(AM79,Отделения7[[отделение]:[Мнемоника]],2,0),\"\")","v":""}]
[null,null,null,null,null,null,null,null,null,null,null,null,null,null,null,null,null,null,null,null,null,null,null,null,null,null,null,null,null,null,null,null,null,null,null,null,null,null,null,{"$f":"IFERROR(VLOOKUP(AM80,Отделения7[[отделение]:[Мнемоника]],2,0),\"\")","v":""}]
[null,null,null,null,null,null,null,null,null,null,null,null,null,null,null,null,null,null,null,null,null,null,null,null,null,null,null,null,null,null,null,null,null,null,null,null,null,null,null,{"$f":"IFERROR(VLOOKUP(AM81,Отделения7[[отделение]:[Мнемоника]],2,0),\"\")","v":""}]
[null,null,null,null,null,null,null,null,null,null,null,null,null,null,null,null,null,null,null,null,null,null,null,null,null,null,null,null,null,null,null,null,null,null,null,null,null,null,null,{"$f":"IFERROR(VLOOKUP(AM82,Отделения7[[отделение]:[Мнемоника]],2,0),\"\")","v":""}]
[null,null,null,null,null,null,null,null,null,null,null,null,null,null,null,null,null,null,null,null,null,null,null,null,null,null,null,null,null,null,null,null,null,null,null,null,null,null,null,{"$f":"IFERROR(VLOOKUP(AM83,Отделения7[[отделение]:[Мнемоника]],2,0),\"\")","v":""}]
[null,null,null,null,null,null,null,null,null,null,null,null,null,null,null,null,null,null,null,null,null,null,null,null,null,null,null,null,null,null,null,null,null,null,null,null,null,null,null,{"$f":"IFERROR(VLOOKUP(AM84,Отделения7[[отделение]:[Мнемоника]],2,0),\"\")","v":""}]
[null,null,null,null,null,null,null,null,null,null,null,null,null,null,null,null,null,null,null,null,null,null,null,null,null,null,null,null,null,null,null,null,null,null,null,null,null,null,null,{"$f":"IFERROR(VLOOKUP(AM85,Отделения7[[отделение]:[Мнемоника]],2,0),\"\")","v":""}]
[null,null,null,null,null,null,null,null,null,null,null,null,null,null,null,null,null,null,null,null,null,null,null,null,null,null,null,null,null,null,null,null,null,null,null,null,null,null,null,{"$f":"IFERROR(VLOOKUP(AM86,Отделения7[[отделение]:[Мнемоника]],2,0),\"\")","v":""}]
[null,null,null,null,null,null,null,null,null,null,null,null,null,null,null,null,null,null,null,null,null,null,null,null,null,null,null,null,null,null,null,null,null,null,null,null,null,null,null,{"$f":"IFERROR(VLOOKUP(AM87,Отделения7[[отделение]:[Мнемоника]],2,0),\"\")","v":""}]
[null,null,null,null,null,null,null,null,null,null,null,null,null,null,null,null,null,null,null,null,null,null,null,null,null,null,null,null,null,null,null,null,null,null,null,null,null,null,null,{"$f":"IFERROR(VLOOKUP(AM88,Отделения7[[отделение]:[Мнемоника]],2,0),\"\")","v":""}]
[null,null,null,null,null,null,null,null,null,null,null,null,null,null,null,null,null,null,null,null,null,null,null,null,null,null,null,null,null,null,null,null,null,null,null,null,null,null,null,{"$f":"IFERROR(VLOOKUP(AM89,Отделения7[[отделение]:[Мнемоника]],2,0),\"\")","v":""}]
[null,null,null,null,null,null,null,null,null,null,null,null,null,null,null,null,null,null,null,null,null,null,null,null,null,null,null,null,null,null,null,null,null,null,null,null,null,null,null,{"$f":"IFERROR(VLOOKUP(AM90,Отделения7[[отделение]:[Мнемоника]],2,0),\"\")","v":""}]
[null,null,null,null,null,null,null,null,null,null,null,null,null,null,null,null,null,null,null,null,null,null,null,null,null,null,null,null,null,null,null,null,null,null,null,null,null,null,null,{"$f":"IFERROR(VLOOKUP(AM91,Отделения7[[отделение]:[Мнемоника]],2,0),\"\")","v":""}]
[null,null,null,null,null,null,null,null,null,null,null,null,null,null,null,null,null,null,null,null,null,null,null,null,null,null,null,null,null,null,null,null,null,null,null,null,null,null,null,{"$f":"IFERROR(VLOOKUP(AM92,Отделения7[[отделение]:[Мнемоника]],2,0),\"\")","v":""}]
[null,null,null,null,null,null,null,null,null,null,null,null,null,null,null,null,null,null,null,null,null,null,null,null,null,null,null,null,null,null,null,null,null,null,null,null,null,null,null,{"$f":"IFERROR(VLOOKUP(AM93,Отделения7[[отделение]:[Мнемоника]],2,0),\"\")","v":""}]
[null,null,null,null,null,null,null,null,null,null,null,null,null,null,null,null,null,null,null,null,null,null,null,null,null,null,null,null,null,null,null,null,null,null,null,null,null,null,null,{"$f":"IFERROR(VLOOKUP(AM94,Отделения7[[отделение]:[Мнемоника]],2,0),\"\")","v":""}]
[null,null,null,null,null,null,null,null,null,null,null,null,null,null,null,null,null,null,null,null,null,null,null,null,null,null,null,null,null,null,null,null,null,null,null,null,null,null,null,{"$f":"IFERROR(VLOOKUP(AM95,Отделения7[[отделение]:[Мнемоника]],2,0),\"\")","v":""}]
[null,null,null,null,null,null,null,null,null,null,null,null,null,null,null,null,null,null,null,null,null,null,null,null,null,null,null,null,null,null,null,null,null,null,null,null,null,null,null,{"$f":"IFERROR(VLOOKUP(AM96,Отделения7[[отделение]:[Мнемоника]],2,0),\"\")","v":""}]
[null,null,null,null,null,null,null,null,null,null,null,null,null,null,null,null,null,null,null,null,null,null,null,null,null,null,null,null,null,null,null,null,null,null,null,null,null,null,null,{"$f":"IFERROR(VLOOKUP(AM97,Отделения7[[отделение]:[Мнемоника]],2,0),\"\")","v":""}]
[null,null,null,null,null,null,null,null,null,null,null,null,null,null,null,null,null,null,null,null,null,null,null,null,null,null,null,null,null,null,null,null,null,null,null,null,null,null,null,{"$f":"IFERROR(VLOOKUP(AM98,Отделения7[[отделение]:[Мнемоника]],2,0),\"\")","v":""}]
[null,null,null,null,null,null,null,null,null,null,null,null,null,null,null,null,null,null,null,null,null,null,null,null,null,null,null,null,null,null,null,null,null,null,null,null,null,null,null,{"$f":"IFERROR(VLOOKUP(AM99,Отделения7[[отделение]:[Мнемоника]],2,0),\"\")","v":""}]
[null,null,null,null,null,null,null,null,null,null,null,null,null,null,null,null,null,null,null,null,null,null,null,null,null,null,null,null,null,null,null,null,null,null,null,null,null,null,null,{"$f":"IFERROR(VLOOKUP(AM100,Отделения7[[отделение]:[Мнемоника]],2,0),\"\")","v":""}]
[null,null,null,null,null,null,null,null,null,null,null,null,null,null,null,null,null,null,null,null,null,null,null,null,null,null,null,null,null,null,null,null,null,null,null,null,null,null,null,{"$f":"IFERROR(VLOOKUP(AM101,Отделения7[[отделение]:[Мнемоника]],2,0),\"\")","v":""}]
[null,null,null,null,null,null,null,null,null,null,null,null,null,null,null,null,null,null,null,null,null,null,null,null,null,null,null,null,null,null,null,null,null,null,null,null,null,null,null,{"$f":"IFERROR(VLOOKUP(AM102,Отделения7[[отделение]:[Мнемоника]],2,0),\"\")","v":""}]
[null,null,null,null,null,null,null,null,null,null,null,null,null,null,null,null,null,null,null,null,null,null,null,null,null,null,null,null,null,null,null,null,null,null,null,null,null,null,null,{"$f":"IFERROR(VLOOKUP(AM103,Отделения7[[отделение]:[Мнемоника]],2,0),\"\")","v":""}]
[null,null,null,null,null,null,null,null,null,null,null,null,null,null,null,null,null,null,null,null,null,null,null,null,null,null,null,null,null,null,null,null,null,null,null,null,null,null,null,{"$f":"IFERROR(VLOOKUP(AM104,Отделения7[[отделение]:[Мнемоника]],2,0),\"\")","v":""}]
[null,null,null,null,null,null,null,null,null,null,null,null,null,null,null,null,null,null,null,null,null,null,null,null,null,null,null,null,null,null,null,null,null,null,null,null,null,null,null,{"$f":"IFERROR(VLOOKUP(AM105,Отделения7[[отделение]:[Мнемоника]],2,0),\"\")","v":""}]

{"sheet":"Информация","index":2,"n_rows":3,"n_cols":1,"rows_kept":3,"cut":false,"hidden":false,"merged":[]}
["Наименование компании"]
["ИНН компании"]
["Зарплатный проект"]

{"sheet":"dictionary_city","index":3,"n_rows":323,"n_cols":1,"rows_kept":323,"cut":false,"hidden":true,"merged":[]}
["Наименование"]
["Москва"]
["Санкт-Петербург"]
["Абакан"]
["Азов"]
["Аксай"]
["Александров"]
["Алексеевка"]
["Алексин"]
["Альметьевск"]
["Анапа"]
["Ангарск"]
["Анжеро-Судженск"]
["Апатиты"]
["Арзамас"]
["Армавир"]
["Арсеньев"]
["Арск"]
["Артем"]
["Архангельск"]
["Асбест"]
["Астрахань"]
["Ачинск"]
["Балаково"]
["БАЛАШИХА"]
["Балашов"]
["Барнаул"]
["Батайск"]
["Белгород"]
["Белебей"]
["Белово"]
["Белогорск"]
["Белорецк"]
["Белореченск"]
["Бердск"]
["Березники"]
["Березовский"]
["Бийск"]
["Биробиджан"]
["Благовещенск"]
["Большой Камень"]
["Бор"]
["Борисоглебск"]
["Боровичи"]
["Братск"]
["Брянск"]
["Бугульма"]
["Буденновск"]
["Бузулук"]
["Великие Луки"]
["Великий Новгород"]
["Верхняя Пышма"]
["Видное"]
["Владивосток"]
["Владикавказ"]
["Владимир"]
["Волгоград"]
["Волгодонск"]
["Волжск"]
["Волжский"]
["Вологда"]
["Волоколамск"]
["Вольск"]
["Воронеж"]
["Воскресенск"]
["Воткинск"]
["Всеволожск"]
["Выборг"]
["Выкса"]
["Вышний Волочек"]
["Вязьма"]
["Гатчина"]
["Геленджик"]
["Георгиевск"]
["Глазов"]
["Горно-Алтайск"]
["ГРОЗНЫЙ"]
["Губкин"]
["Гусь-Хрустальный"]
["Дзержинск"]
["Димитровград"]
["Дмитров"]
["Долгопрудный"]
["Домодедово"]
["Донецк"]
["Донской"]
["Дубна"]
["Егорьевск"]
["Екатеринбург"]
["Елабуга"]
["Елец"]
["Ессентуки"]
["Железногорск"]
["Жуковский"]
["Заречный"]
["Зеленогорск"]
["Зеленодольск"]
["Златоуст"]
["Иваново"]
["Ижевск"]
["Иркутск"]
["Искитим"]
["Истра"]
["Ишим"]
["Йошкар-Ола"]
["Казань"]
["Калининград"]
["Калуга"]
["Каменск-Уральский"]
["Каменск-Шахтинский"]
["Камышин"]
["Канск"]
["Кемерово"]
["Кингисепп"]
["Кинешма"]
["Кириши"]
["Киров"]
["Кирово-Чепецк"]
["Кировск"]
["Киселевск"]
["Кисловодск"]
["Клин"]
["Клинцы"]
["Ковров"]
["Когалым"]
["Коломна"]
["Колпино"]
["Коммунарка"]
["Комсомольск-на-Амуре"]
["Копейск"]
["Королев"]
["Кострома"]
["Котельники"]
["Котлас"]
["Красногорск"]
["Краснодар"]
["Краснокаменск"]
["Краснокамск"]
["Краснотурьинск"]
["Красноярск"]
["Кропоткин"]
["Крымск"]
["Кстово"]
["Кудрово"]
["Кузнецк"]
["Кумертау"]
["Кунгур"]
["Курган"]
["Курск"]
["Курчатов"]
["Кызыл"]
["Лабинск"]
["Лениногорск"]
["Ленинск-Кузнецкий"]
["Лесной"]
["Лесосибирск"]
["Ливны"]
["Липецк"]
["Лиски"]
["Лобня"]
["Лысьва"]
["Лыткарино"]
["Люберцы"]
["Магадан"]
["Магнитогорск"]
["Майкоп"]
["Махачкала"]
["Мегион"]
["Междуреченск"]
["Мелеуз"]
["Миасс"]
["Минеральные Воды"]
["Минусинск"]
["Михайловка"]
["Михайловск"]
["Мичуринск"]
["Московский"]
["Мурино"]
["Мурманск"]
["Муром"]
["Мытищи"]
["Набережные Челны"]
["Назрань"]
["Нальчик"]
["Наро-Фоминск"]
["Находка"]
["Невинномысск"]
["Нерюнгри"]
["Нефтекамск"]
["Нефтеюганск"]
["Нижневартовск"]
["Нижнекамск"]
["Нижний Новгород"]
["Нижний Тагил"]
["Новоалтайск"]
["Новокузнецк"]
["Новокуйбышевск"]
["Новомосковск"]
["Новороссийск"]
["Новосибирск"]
["Новотроицк"]
["Новоуральск"]
["Новочебоксарск"]
["Новочеркасск"]
["Новошахтинск"]
["Новый Уренгой"]
["Ногинск"]
["Ноябрьск"]
["Нягань"]
["Обнинск"]
["Одинцово"]
["Октябрьский"]
["Омск"]
["Орел"]
["Орёл"]
["Оренбург"]
["Орехово-Зуево"]
["Орск"]
["Павлово"]
["Павловский Посад"]
["Пенза"]
["Первоуральск"]
["Пермь"]
["Петергоф"]
["Петрозаводск"]
["Петропавловск-Камчатский"]
["Подольск"]
["Прокопьевск"]
["Псков"]
["Пушкин"]
["Пушкино"]
["Пятигорск"]
["Раменское"]
["Ревда"]
["Реутов"]
["Ржев"]
["Россошь"]
["Ростов-на-Дону"]
["Рубцовск"]
["Рыбинск"]
["Рязань"]
["Салават"]
["Салехард"]
["Сальск"]
["Самара"]
["Саранск"]
["Сарапул"]
["Саратов"]
["Саров"]
["Северодвинск"]
["Североморск"]
["Северск"]
["Сергиев Посад"]
["Серпухов"]
["Сибай"]
["Славянск-на-Кубани"]
["Смоленск"]
["Снежинск"]
["Соликамск"]
["Солнечногорск"]
["Сосновый Бор"]
["Сочи"]
["Ставрополь"]
["Старый Оскол"]
["Стерлитамак"]
["Ступино"]
["Сургут"]
["Сызрань"]
["Сыктывкар"]
["Таганрог"]
["Тамбов"]
["Тверь"]
["Темрюк"]
["Тимашевск"]
["Тихвин"]
["Тихорецк"]
["Тобольск"]
["Тольятти"]
["Томск"]
["Трехгорный"]
["Троицк"]
["Туапсе"]
["Туймазы"]
["Тула"]
["Тюмень"]
["Улан-Удэ"]
["Ульяновск"]
["Усинск"]
["Усолье-Сибирское"]
["Уссурийск"]
["Усть-Илимск"]
["Усть-Лабинск"]
["Уфа"]
["Ухта"]
["Фрязино"]
["Хабаровск"]
["Ханты-Мансийск"]
["Химки"]
["Чайковский"]
["Чапаевск"]
["Чебоксары"]
["Челябинск"]
["Черемхово"]
["Череповец"]
["Черногорск"]
["Черняховск"]
["Чехов"]
["Чистополь"]
["Чита"]
["Шадринск"]
["Шахты"]
["Шуя"]
["Щекино"]
["Щелково"]
["Щербинка"]
["Электросталь"]
["Элиста"]
["Энгельс"]
["Южно-Сахалинск"]
["Юрга"]
["Якутск"]
["Ярославль"]
["Ясный"]

{"sheet":"dictionary_branches_1","index":4,"n_rows":596,"n_cols":7,"rows_kept":596,"cut":false,"hidden":true,"merged":[]}
["Город","отделение","Код","Мнемоника",null,"Абакан","692342, г. Арсеньев, ул. Калининская, д. 24"]
["Абакан","655017, г. Абакан, ул. Щетинкина, д. 63","0739","MOJG",null,"Этот список должен быть осортирован"]
["Азов","346787, г. Азов, ул. Мира, д. 45/64","1821","MAC2"]
["Аксай","346720, г. Аксай, пр-кт Ленина, д. 26","1791","MAH8"]
["Александров","601650, г. Александров, ул. Ленина, д. 22","8107","MAL3"]
["Алексеевка","309857, г. Алексеевка, ул. Мостовая, зд. 90","8078","MAKZ"]
["Алексин","301361, г. Алексин, ул. Мира, 20","1666","MAEB"]
["Альметьевск","423452, г. Альметьевск, ул. Ленина, 29","0953","MOLM"]
["Анапа","353440, г. Анапа, ул. Крымская, д. 172","1186","MAAK"]
["Ангарск","665824, г. Ангарск, квартал 212, д. 15","0886","MOCB"]
["Анжеро-Судженск","652470, г. Анжеро-Судженск, ул. Ленина, д. 22","1656","MADY"]
["Апатиты","184209, г. Апатиты, ул. Ленина, д. 4","1811","MAB5"]
["Арзамас","607228, г. Арзамас, пр-кт Ленина, д. 198","1817","MACM"]
["Армавир","352900, г. Армавир, ул. Ленина, д. 101а","1151","MO80"]
["Арсеньев","692342, г. Арсеньев, ул. Калининская, д. 24","1812","MAB6"]
["Арск","422000, г. Арск, пл. Советская, д. 23","8166","MAOA"]
["Артем","692760, г. Артем,ул. Фрунзе, д. 65","1700","MAFC"]
["Архангельск","163060, г. Архангельск, ул.Воскресенская, д. 108","0876","MOBF"]
["Архангельск","163000, г. Архангельск, ул. Воскресенская, д. 6","1058","MOO5"]
["Асбест","624272, г. Асбест, пр-кт имени В.И. Ленина, д. 15","1617","MACA"]
["Астрахань","414000, г. Астрахань, ул. Кирова, д. 12/2","1534","MO7I"]
["Астрахань","414040, г. Астрахань, пл. Вокзальная, стр. 20б","8158","MAN2"]
["Ачинск","662153, г. Ачинск, ул. 28 квартал, д. 5,пом.30","0686","MOWJ"]
["Балаково","413860, г. Балаково, ул. Трнавская, д. 23","1539","MO8B"]
["БАЛАШИХА","143912, г. Балашиха, ш. Энтузиастов, д.7/1","0620","MOLJ"]
["БАЛАШИХА","143980, г. Балашиха, ул. Пролетарская, д. 2А","1181","MAAA"]
["Балашов","412309, г. Балашов, ул. Ленина, д. 21Б","1608","MABO"]
["Барнаул","656049, г. Барнаул,пр-кт Красноармейский, д. 58 \"Б\"","0813","MOJP"]
["Барнаул","656015, г. Барнаул, пр-т Социалистический, д. 130","0859","MOBD"]
["Барнаул","656038, г. Барнаул, пр-т Ленина, д. 58","0896","MOEQ"]
["Барнаул","656039, г. Барнаул,ул. Антона Петрова, д. 219 Б","1120","MO3X"]
["Барнаул","656057, г. Барнаул,тракт Павловский, д. 251А","1155","MO87"]
["Батайск","346880, г. Батайск, ул. Энгельса, д. 182","1173","MO8T"]
["Белгород","308009, г. Белгород, ул. Попова, д. 12","0957","MOEX"]
["Белгород","308000, г. Белгород, пр-кт Ватутина, д. 9б","1061","MOV0"]
["Белгород","308027, г. Белгород, ул. Щорса, 8","1123","MO61"]
["Белгород","308010, г. Белгород, пр-кт Б. Хмельницкого, д. 164","8117","MAMG"]
["Белебей","452005, г. Белебей, ул. Красная, д. 134","1716","MAFT"]
["Белово","652600, г. Белово, ул. Юбилейная, д. 8","1734","MAGG"]
["Белогорск","676805, г. Белогорск, ул. Кирова, д. 119","1744","MAGR"]
["Белорецк","453509, г. Белорецк, ул. Карла Маркса, д. 75","1745","MAGS"]
["Белореченск","352630, г. Белореченск, ул. Ленина, д. 145","1615","MAB7"]
["Бердск","633010, г. Бердск, ул. Ленина, 41А","0722","MOQG"]
["Березники","618419, г. Березники, ул. Пятилетки, д. 50","1170","MO7O"]
["Березовский","623700, г. Березовский, ул. Восточная, д. 11а","1713","MAFQ"]
["Бийск","659305, г. Бийск, ул. имени Героя Советского Союза Васильева, зд. 26","0777","MOJC"]
["Биробиджан","679016, г. Биробиджан, ул. Шолом-Алейхема, зд. 8","1606","MABK"]
["Благовещенск","675004, г. Благовещенск, ул. Островского, д. 12","1178","MO9L"]
["Большой Камень","692806, г. БольшойКамень, ул. Карла Маркса, д. 13","1671","MAEG"]
["Бор","606440, г. Бор, ул. Ленина, д. 129","1631","MACW"]
["Борисоглебск","397160, г. Борисоглебск, ул. Свободы, зд. 213/ул.Советская, д. 8","1680","MAEP"]
["Боровичи","174411, г. Боровичи, ул. Подбельского, д. 36","1652","MADS"]
["Братск","665708, г. Братск, ул. Кирова, д. 18","1831","MAID"]
["Брянск","241050, г. Брянск, ул. Красноармейская, д. 41","1154","MO85"]
["Брянск","241035, г. Брянск, ул. Комсомольская, д. 12","8178","MAOP"]
["Бугульма","423236, г. Бугульма, ул. Газинура Гафиатуллина, д. 31","1825","MADN"]
["Буденновск","356800, г. Буденновск, ул. Октябрьская, д. 79","1662","MAD6"]
["Бузулук","461040, г. Бузулук, ул. Комсомольская, зд. 81","0958","MOEY"]
["Великие Луки","182113, г. Великие Луки, пр-кт Ленина, д. 39","1175","MO8V"]
["Великий Новгород","173001, г. Великий Новгород, ул. Большая Санкт-Петербургская, 13","1157","MO89"]
["Верхняя Пышма","624090, г. Верхняя Пышма, пр-кт Успенский, д. 20","1194","MAAX"]
["Видное","142703, г. Видное, ул. Школьная, 23","1171","MO7W"]
["Владивосток","690002, г. Владивосток, пр-т Острякова, д. 5Г","0685","MOXN"]
["Владивосток","690048, г. Владивосток ,пр-кт 100 лет Владивостока, д. 51","0893","MOEI"]
["Владивосток","690035, г. Владивосток, ул. Харьковская, д. 8","1128","MO4S"]
["Владивосток","690091, г. Владивосток, ул. Светланская, д. 43","0504","MOVV"]
["Владикавказ","362008, г. Владикавказ, ул. Генерала Плиева, д. 10","1830","MAHF"]
["Владимир","600015, г. Владимир, ул. Ленина, д. 26, 26А","0792","MOVY"]
["Волгоград","400066, г. Волгоград, пр-кт имени В.И. Ленина, д. 2","0805","MOIK"]
["Волгоград","400112, г. Волгоград, пр-кт им. Героев Сталинграда, д. 49","0824","MOKV"]
["Волгоград","400066, г. Волгоград, ул.Комсомольская, д. 10","0861","MOAU"]
["Волгоград","400121, г. Волгоград, ул. Николая Отрады, д. 6","0864","MOAX"]
["Волгоград","400117, г. Волгоград, ул. 8-й Воздушной Армии,д. 47а","1121","MO3Z"]
["Волгоград","400123, г. Волгоград, ул. им. маршала Еременко,д. 124","8143","MANF"]
["Волгодонск","347382, г. Волгодонск, пр-кт Строителей, д. 21","1196","MAAZ"]
["Волжск","425000, г. Волжск, ул. Ленина, д. 56б","1702","MAFE"]
["Волжский","404105, г. Волжский, ул. Мира, д. 74 А","0863","MOVM"]
["Вологда","160000, г. Вологда, ул. Ленина, д. 5","1162","MO95"]
["Волоколамск","143600, г. Волоколамск, ул. Советская, д. 1/1","8001","MAIJ"]
["Вольск","412906, г. Вольск, пл. 10-летия Октября, д. 4/1","1642","MADD"]
["Воронеж","394030, г. Воронеж, ул. Кольцовская, д. 31","0452","MOKF"]
["Воронеж","394006, г. Воронеж, ул. Кирова, д.11","0733","MOJZ"]
["Воронеж","394088, г. Воронеж, ул. Генерала Лизюкова, д. 50","1050","MOL2"]
["Воронеж","394053, г. Воронеж, ул. Загоровского, д. 1","1147","MO6W"]
["Воронеж","394007, г. Воронеж, Ленинский пр-кт, д. 116А","1169","MO7T"]
["Воскресенск","140200, г. Воскресенск, ул. Октябрьская, д. 2","1806","MABP"]
["Воткинск","427433, г. Воткинск, ул. 1 Мая, д. 102","1728","MAGA"]
["Всеволожск","188640, г. Всеволожск, Всеволожский пр-кт, д. 29","1804","MABL"]
["Выборг","188800, г. Выборг, ул. Вокзальная, д. 7","1768","MAHJ"]
["Выкса","607061, г. Выкса, ул. Островского, зд. 33","1658","MAD2"]
["Вышний Волочек","171163, г. Вышний Волочек, пр-кт Казанский, д. 44","1813","MAB8"]
["Вязьма","215110, г. Вязьма, ул. 25 Октября, д. 4","1654","MADV"]
["Гатчина","188300, г. Гатчина, пр-кт 25 Октября, д. 11/13","1754","MAG3"]
["Геленджик","353460, г. Геленджик, ул. Херсонская, д. 23","8034","MAJK"]
["Георгиевск","357821, г. Георгиевск, ул. Салогубова, д. 16","8028","MAJE"]
["Глазов","427620, г. Глазов,ул. Кирова, д. 13","0874","MOGC"]
["Горно-Алтайск","649000, г. Горно-Алтайск, пр-кт Коммунистический, д.27","1616","MAB9"]
["ГРОЗНЫЙ","364024, г. Грозный, ул. им. С. Ш. Лорсанова, д.14","1836","MAMN"]
["Губкин","309181, г. Губкин, ул. Кирова, д. 53","1725","MAF4"]
["Гусь-Хрустальный","601501, г. Гусь-Хрустальный, ул. Калинина, д. 30","1762","MAHB"]
["Дзержинск","606029, г. Дзержинск, ул. Гайдара, д. 61","0753","MOHL"]
["Димитровград","433512, г. Димитровград, пр-кт. Ленина, зд. 39д","1177","MO9I"]
["Дмитров","141800, г. Дмитров, ул. Загорская, д. 24","1739","MAGM"]
["Долгопрудный","141700, г. Долгопрудный, Новый бульвар, д. 2","1525","MO76"]
["Домодедово","142000, г. Домодедово, Каширское шоссе, д. 51","1527","MO86"]
["Донецк","346330, г. Донецк, ул. Максима Горького, д. 67","8067","MAKL"]
["Донской","301764, г. Донской, ул. Октябрьская, д. 59а","1727","MAF9"]
["Дубна","141986, г. Дубна, пр-кт Боголюбова, д. 14А","1818","MACO"]
["Егорьевск","140301, г. Егорьевск, ул. Советская, д. 82А","1669","MAEE"]
["Екатеринбург","620014, г. Екатеринбург, ул. 8 Марта, д. 10/ ул. Малышева, д. 42 (литер А)","0482","MOUR"]
["Екатеринбург","620041, г. Екатеринбург, ул.Уральская д 75","0684","MOYO"]
["Екатеринбург","620144, г. Екатеринбург, ул. 8 марта, д. 194","0818","MOQV"]
["Екатеринбург","620086, г. Екатеринбург ул. Белореченская, д. 12а","0978","MOFP"]
["Екатеринбург","620000, г. Екатеринбург, ул. Кузнецова , д. 2","0981","MOFS"]
["Екатеринбург","620062, г. Екатеринбург, пр-кт Ленина, д. 60","0982","MOFU"]
["Екатеринбург","620012, г. Екатеринбург, ул.Машиностроителей, д. 19","0983","MORM"]
["Екатеринбург","620089, г. Екатеринбург, ул. Родонитовая, д. 4","0984","MORI"]
["Екатеринбург","620000, г. Екатеринбург ул. Сони Морозовой, д. 190","0986","MOFW"]
["Екатеринбург","620000, г. Екатеринбург, ул. Горького, стр. 7-а","0998","MORO"]
["Екатеринбург","620109, г. Екатеринбург, ул. Крауля, 44","1097","MO2P"]
["Екатеринбург","620105, г. Екатеринбург, ул. Вильгельма деГеннина, д. 31","1163","MO96"]
["Елабуга","423603, г. Елабуга, пр-кт Нефтяников, д. 17","1682","MAER"]
["Елец","399770, г. Елец,улица Мира, д. 133","1192","MAAV"]
["Ессентуки","357601, г. Ессентуки, Привокзальная площадь, пом. 1к","1624","MACI"]
["Железногорск","662971, г. Железногорск, ул. Свердлова, д. 21","0880","MOBI"]
["Железногорск","307179, г. Железногорск, ул. Воинов-интернационалистов, д. 6","1672","MAEI"]
["Жуковский","140184, г. Жуковский, ул. Гагарина, д. 24","1529","MO99"]
["Заречный","442963, г. Заречный, ул. Ленина, д. 20А","8015","MAIZ"]
["Зеленогорск","663693, г. Зеленогорск, ул. Ленина, д. 2","8084","MAK7"]
["Зеленодольск","422550, г. Зеленодольск, ул. Ленина, д. 25","1696","MAE8"]
["Златоуст","456228, г. Златоуст, пр. им. Ю.А. Гагарина, 3 м/р-н, д. 14-в","1005","MOD2"]
["Иваново","153000, г. Иваново, пр-кт Ленина, 11","1146","MO6T"]
["Иваново","153038, г. Иваново, пр-кт Строителей, д. 25","8190","MAPC"]
["Ижевск","426008, г. Ижевск, ул. Пушкинская д. 216","0736","MOJT"]
["Ижевск","426004, г. Ижевск, ул. Ленина, д. 21","0804","MODH"]
["Ижевск","426073, г. Ижевск, ул. Молодежная,д. 87","0869","MOIJ"]
["Иркутск","664074, г. Иркутск ул. Лермонтова, д. 63","0741","MOHK"]
["Иркутск","664003, г. Иркутск ул. Ленина д. 25","0865","MOAY"]
["Иркутск","664003, г. Иркутск, ул. Литвинова д. 2","0891","MODV"]
["Иркутск","664022, г. Иркутск, ул. Кожова, д. 20","0991","MORK"]
["Искитим","633209, г. Искитим, ул. Пушкина, д. 40А","1633","MACY"]
["Истра","143500, г. Истра, ул. Ленина, д. 75","8047","MAJX"]
["Ишим","627754, г. Ишим,ул. Карла Маркса, д. 77А","1703","MAFF"]
["Йошкар-Ола","424008, г. Йошкар-Ола, ул. Первомайская, д. 164","1006","MOD3"]
["Йошкар-Ола","424033, г. Йошкар-Ола, ул. Эшкинина, д. 10д","8182","MAOU"]
["Казань","420061, г. Казань, ул. Николая Ершова, д. 29 \"Б\"","0705","MODA"]
["Казань","420107, г. Казань, ул. Островского, д. 103","0825","MOUN"]
["Казань","420126, г. Казань, пр-т Ямашева, д. 82","0843","MOAF"]
["Казань","420110, г. Казань, ул. Рихарда Зорге, д. 75","0848","MOAK"]
["Казань","420080, г. Казань, ул. Декабристовд.129","0885","MOVS"]
["Казань","420100, г. Казань, ул. Закиева, д. 1","1115","MO3S"]
["Калининград","236022, г. Калининград, площадь Победы, д. 4","0455","MOKB"]
["Калининград","236044, г. Калининград, б-р Л.Шевцовой, д. 1А","0732","MOOX"]
["Калининград","236006, г. Калининград, ул Шевченко, д. 11а","0836","MOPZ"]
["Калининград","236041, г. Калининград , ул. Куйбышева, д. 2","1533","MOE0"]
["Калининград","236001, г. Калининград, ул. Генерала Челнокова, д. 11","8164","MAN8"]
["Калуга","248023, г. Калуга, пл. Победы, д. 15","0672","MOC2"]
["Калуга","248001, г. Калуга, ул. Кирова, д. 14","1140","MO6A"]
["Каменск-Уральский","623400, г. Каменск-Уральский, пр-кт Победы, д. 39а","0990","MOFZ"]
["Каменск-Шахтинский","347810, г. Каменск-Шахтинский, пр-кт Карла Маркса,д. 73","1667","MAEC"]
["Камышин","403873, г. Камышин, ул. Пролетарская, д. 101","1657","MADZ"]
["Канск","663604, г. Канск, ул. 40 лет Октября, зд. 62, стр.4","1802","MABF"]
["Кемерово","650991, г. Кемерово, пр-кт Советский, д. 32","0838","MOAA"]
["Кемерово","650003, г. Кемерово, бр. Строителей, д. 28, лит. А","0960","MORU"]
["Кемерово","650066, г. Кемерово, пр-кт Ленина, д. 64а","0999","MONB"]
["Кингисепп","188480, г. Кингисепп, ул. Большая Советская, д.39Б","8123","MAMM"]
["Кинешма","155800, г. Кинешма, ул. им. Ленина, д. 6","1665","MAEA"]
["Кириши","187112, г. Кириши, пр-кт Героев, д. 2","8074","MAKV"]
["Киров","610027, г. Киров,ул. Карла Маркса, д. 99","0763","MOB6"]
["Киров","610045, г. Киров, ул. Маршала И. С. Конева, д. 1","1839","MANY"]
["Кирово-Чепецк","613050, г. Кирово-Чепецк, пр-кт Мира, д. 74","1635","MAC3"]
["Кировск","187342, г. Кировск, ул. Набережная, д. 6","8110","MAL7"]
["Киселевск","652700, г. Киселевск, ул. Ленина, д. 38","1692","MAE4"]
["Кисловодск","357700, г. Кисловодск, ул. Горького, д. 17Б","1612","MABV"]
["Клин","141607, г. Клин, ул. К. Маркса, д. 4","1659","MAD3"]
["Клинцы","243140, г. Клинцы, пр-кт Ленина, д. 21","1197","MAA3"]
["Ковров","601900, г. Ковров, пр-кт Ленина, д. 38","1542","MO9H"]
["Когалым","628484, г. Когалым, ул. Ленинградская, д. 17","1826","MADU"]
["Коломна","140408, г. Коломна, пл. Восстания, д. 7","1622","MACG"]
["Колпино","196655, г. Санкт-Петербург, г. Колпино, ул. Тверская, д. 34, лит. А","1820","MACS"]
["Коммунарка","108801, г. Москва, пос. Коммунарка,ул. Липовый парк, д. 11","1729","MAGB"]
["Комсомольск-на-Амуре","681013, г. Комсомольск-на-Амуре, пр-кт Ленина, д. 13, пом. 1002","0690","MOXI"]
["Копейск","456618, г. Копейск, пр-кт Коммунистический, д. 28","1621","MACF"]
["Королев","141080, г. Королев, пр. Космонавтов, д. 27б","0613","MOTE"]
["Кострома","156000, г. Кострома, ул. Советская, д. 30","1165","MO98"]
["Кострома","156013, г. Кострома, пр-кт Мира, д. 65/51","8181","MAOT"]
["Котельники","140056, г. Котельники, ул. Сосновая, д. 2, корп. 4","8018","MAI4"]
["Котлас","165313, г. Котлас, ул. Невского, д. 20","1634","MACZ"]
["Красногорск","143409, г. Красногорск, ул. Ленина, д. 38Б","0626","MOHG"]
["Краснодар","350000, г. Краснодар, ул Красная, д. 124, литер `Б`","0480","MOKD"]
["Краснодар","350075, г. Краснодар, ул.Селезнева, д.134","0688","MOWI"]
["Краснодар","350015, г. Краснодар, ул. Красная, д. 176/1","0725","MOZY"]
["Краснодар","350049, г. Краснодар, ул. Тургенева, д. 107 лит А","0807","MOIP"]
["Краснодар","350001, г. Краснодар, ул. Ставропольская, д. 184","0808","MOIR"]
["Краснодар","350901, г. Краснодар, ул. 1 Мая, д. 158","1052","MON7"]
["Краснодар","350051, г. Краснодар,ул. Красных Партизан, д. 525","1080","MOW4"]
["Краснокаменск","674676, г. Краснокаменск, пр-кт Шахтеров, д. 4а","1705","MAFI"]
["Краснокамск","617060, г. Краснокамск, пр-кт Мира, д. 6","1623","MACH"]
["Краснотурьинск","624440, г. Краснотурьинск, ул. Ленина, д. 37","1792","MAH9"]
["Красноярск","660017, г. Красноярск, ул. Горького, д. 10","0456","MOKY"]
["Красноярск","660049, г. Красноярск, ул. Мира, д. 10","0776","MORR"]
["Красноярск","660037, г. Красноярск, пр-кт им. газеты \"Красноярский рабочий\", д.35","0862","MOAW"]
["Красноярск","660041, г. Красноярск, ул. Высотная, д.1","0882","MOBZ"]
["Красноярск","660135, г. Красноярск, ул. Взлётная, 18","0887","MOBO"]
["Красноярск","660077, г. Красноярск, просп. им. газеты \"Красноярский рабочий\", д. 199","0889","MOCG"]
["Красноярск","660001, г. Красноярск, ул. Копылова, д. 66","1139","MO5Y"]
["Кропоткин","352380, г. Кропоткин, ул. Красная, д. 96","1714","MAFR"]
["Крымск","353380, г. Крымск, ул. Синева, д. 9Б","1723","MAF2"]
["Кстово","607651, г. Кстово, ул. 40 лет Октября, д. 4","1602","MABB"]
["Кудрово","188693, г. Кудрово, Европейский пр-кт, д. 8","8022","MAI8"]
["Кузнецк","442530, г. Кузнецк, ул. Белинского, д. 127/1","1613","MABW"]
["Кумертау","453300, г. Кумертау, ул. Карла Маркса, д. 11","1685","MAEV"]
["Кунгур","617470, г. Кунгур, ул. Пугачева, д. 25","1676","MAEL"]
["Курган","640002, г. Курган, ул. Гоголя, д. 17/1","0694","MOXC"]
["Курган","640002, г. Курган, ул. Гоголя, д 39Б","0851","MOAQ"]
["Курск","305029, г. Курск, ул. Карла Маркса, д. 59А","1042","MOJ3"]
["Курск","305000, г. Курск,ул. Ленина, д. 31, пом. 1б","1130","MO4U"]
["Курск","305040, г. Курск,ул. Студенческая, д. 3","1543","MAMT"]
["Курчатов","307250, г. Курчатов, ул. Садовая, д. 11А","1793","MAIA"]
["Кызыл","667000, г. Кызыл,ул. Ленина, д. 24","8173","MAOJ"]
["Лабинск","352500, г. Лабинск, ул. Халтурина, д. 18","1794","MAIB"]
["Лениногорск","423250, г. Лениногорск, пр-кт 50 лет Победы, зд.11А","1822","MAC7"]
["Ленинск-Кузнецкий","652500, г. Ленинск-Кузнецкий, проспект Кирова, д.49","1188","MAAN"]
["Лесной","624205, г. Лесной, ул. Ленина, д. 64","8114","MAMB"]
["Лесосибирск","662547, г. Лесосибирск, 5-й микрорайон, д. 26","1810","MAB4"]
["Ливны","303850, г. Ливны, ул. Максима Горького, д. 2","1619","MACC"]
["Липецк","398043, г. Липецк, ул. Космонавтов, д. 16/1","0726","MOYM"]
["Липецк","398059, г. Липецк, ул. Барышева д. 7","0798","MOZM"]
["Липецк","398024, г. Липецк, пр-кт Победы,д. 20","0841","MOLS"]
["Липецк","398046, г. Липецк, ул. Им. Генерала Меркулова, д. 10А, пом.1","1127","MO4O"]
["Липецк","398027, г. Липецк, ул. Героя России Эдуарда Белана, д. 10а","8191","MAPD"]
["Лиски","397901, г. Лиски, ул. Коммунистическая, д. 36","8019","MAI5"]
["Лобня","141730, г. Лобня, ул. Ленина, д. 16","1639","MADA"]
["Лысьва","618900, г. Лысьва, ул. Мира, д. 11","1715","MAFS"]
["Лыткарино","140080, г. Лыткарино, ул. Парковая, стр. 2","8113","MAMA"]
["Люберцы","140000, г. Люберцы, Октябрьский пр-кт, д.151/9","0639","MOQL"]
["Магадан","685000, г. Магадан, пр-кт Карла Маркса, д. 36/20","1638","MAC9"]
["Магнитогорск","455000, г. Магнитогорск, пр-кт Ленина, д. 51","0961","MOFA"]
["Магнитогорск","455037, г. Магнитогорск, пр-т Ленина, д. 90","0989","MOFY"]
["Магнитогорск","455045, г. Магнитогорск, пр. Карла Маркса, д.179а","1132","MO4Y"]
["Майкоп","385000, г. Майкоп, ул. Жуковского, д. 20А/ ул. Советская, д. 199","1814","MACD"]
["Махачкала","367026, г. Махачкала, пр-кт Имама Шамиля, д. 36К","1808","MABX"]
["Мегион","628681, г. Мегион, ул.Нефтеразведочная, д. 2","0884","MOMN"]
["Междуреченск","652870, г. Междуреченск, Коммунистический пр-кт,д. 18","1636","MAC4"]
["Мелеуз","453856, г. Мелеуз, ул. Ленина, д. 133","1673","MAD7"]
["Миасс","456300, г. Миасс, пр. Автозаводцев, д. 61 Б","0696","MOXB"]
["Минеральные Воды","357207, г. Минеральные Воды, пр-кт 22 Партсъезда,влд. 94/1","1769","MAHK"]
["Минусинск","662606, г. Минусинск, ул. Абаканская, д. 48","1770","MAHL"]
["Михайловка","403343, г. Михайловка, ул. Обороны, д. 44/53","1628","MACT"]
["Михайловск","356240, г. Михайловск, ул. Войкова, д. 454/1","1740","MAGN"]
["Мичуринск","393760, г. Мичуринск, ул. Советская, д. 323","1620","MACE"]
["Москва","111396, г. Москва, пр-кт Свободный, д. 20А","0404","MOOG"]
["Москва","119021, г. Москва, пр-кт Комсомольский, д. 24 , стр. 1","0405","MOMS"]
["Москва","123022, г. Москва, ул.ПресненскийВал, д. 7, стр. 1","0410","MOPV"]
["Москва","107113, г. Москва, ул.Русаковская, д. 29","0414","MOSK"]
["Москва","107031, г. Москва, ул. Неглинная, д. 10","0417","MOKN"]
["Москва","105066, г. Москва, ул. Нижняя Красносельская, д. 45/17","0419","MOKR"]
["Москва","127030, г. Москва, ул. Новослободская, д. 23","0420","MONV"]
["Москва","119019, г. Москва, ул. Арбат, д. 4, стр. 1","0422","MOAB"]
["Москва","129085, г. Москва, пр-т Мира, д. 91, корп. 2","0423","MOAL"]
["Москва","115035, г. Москва, ул. Большая Ордынка, д. 21, стр. 2","0426","MOTR"]
["Москва","129090, г. Москва, пр-кт. Мира, д. 42","0427","MOOL"]
["Москва","121165, г. Москва, Кутузовский пр-кт, д. 30/32","0428","MOKS"]
["Москва","115191, г. Москва, ул.Большая Тульская, д.2","0430","MOBT"]
["Москва","117556, г. Москва, ш. Варшавское., д. 76, корп. 1","0433","MOWR"]
["Москва","109462, г. Москва, ул. Маршала Чуйкова, д. 3","0436","MOKU"]
["Москва","119421, г. Москва, Ленинский проспект, д. 99","0437","MOLE"]
["Москва","105120, г. Москва, ул. Земляной Вал, д. 41, стр. 1","0440","MOLY"]
["Москва","109652, г. Москва, ул. Люблинская, д. 165, корп. 1","0444","MOMQ"]
["Москва","125315, г. Москва, пр-кт Ленинградский, д. 74, к. 1","0450","MOBA"]
["Москва","125565, г. Москва, ул.Фестивальная, д. 13, корп.1","0600","MODI"]
["Москва","119192, г. Москва, пр-кт Мичуринский, д.7","0603","MOSH"]
["Москва","125430, г. Москва, ул. Митинская, д. 36, корп. 1","0605","MOMT"]
["Москва","119571, г. Москва, пр-кт Вернадского , д.119","0610","MOES"]
["Москва","117437, г. Москва, ул. Профсоюзная, д. 104","0612","MOLV"]
["Москва","127015, г. Москва, ул. Бутырская, д. 89","0616","MOMW"]
["Москва","121609, г. Москва, Осенний бульвар, д. 7, корп. 1","0617","MORW"]
["Москва","119311, г. Москва, пр-кт Ломоносовский, д. 25 к.1","0619","MOGY"]
["Москва","123007, г. Москва, ш. Хорошевское, д. 35, корп. 1","0621","MOXR"]
["Москва","105318, г. Москва, ул.Вельяминовская, д. 6, стр. 2","0623","MOMZ"]
["Москва","123182, г. Москва, ул. Авиационная, д. 66","0625","MOTJ"]
["Москва","127349, г. Москва, ул. Лескова, д. 3Г","0627","MOHH"]
["Москва","117218, г. Москва, ул. Профсоюзная, д. 13/12","0628","MOYB"]
["Москва","109145, г. Москва, Лермонтовский пр-кт, д. 10, корп. 1","0630","MOJI"]
["Москва","124683, г. Москва, Зеленоград, корп. 1824","0631","MOJW"]
["Москва","117639, г. Москва, ул. Чертановская, д.1В, корп. 1","0633","MOZT"]
["Москва","119121, г. Москва, пл. Смоленская-Сенная, д. 27, стр.1","0635","MOYH"]
["Москва","125363, г. Москва, б-р Яна Райниса, д. 1","0636","MOYY"]
["Москва","115470, г. Москва, пр-кт Андропова, д. 21","0637","MOQH"]
["Москва","115280, г. Москва, ул. Автозаводская, д. 5","0638","MOQI"]
["Москва","115516, г.Москва, ул.Луганская, д.10","0642","MOXE"]
["Москва","127566, г. Москва, ул. Декабристов, д. 17","0643","MOWD"]
["Москва","117216, г. Москва, б-р Дмитрия Донского, д. 11","0644","MOWF"]
["Москва","117519, г. Москва, ул. Красного Маяка, д. 2Б","0645","MOXJ"]
["Москва","127434, г. Москва, ш. Дмитровское, д. 15, корпус 1","0646","MOWK"]
["Москва","125171, г. Москва, ш. Ленинградское, д. 15","0651","MOA7"]
["Москва","109044, г. Москва, 3-й Крутицкий переулок, д. 13","0654","MOJ8"]
["Москва","108811, г. Москва, п Московский, ш.Киевское 22-й км, вл.4, стр.1","0655","MON4"]
["Москва","107078, г. Москва, ул. Каланчевская, д. 27","0660","MOT3"]
["Москва","109341, г. Москва, ул. Перерва, д. 43, корп. 1","0661","MOT7"]
["Москва","115054, г. Москва, ул. Валовая, д. 6","0663","MOW2"]
["Москва","117042, г. Москва, улица Венёвская, д. 6","0664","MOE1"]
["Москва","107241, г. Москва, ул. Уральская, д. 1","0669","MOY5"]
["Москва","108849, г. Москва, пос. Внуковское,ул. Корнея Чуковского, д. 2","1187","MAAL"]
["Москва","121552, г. Москва, ул. Ярцевская, д. 27, корп. 1","1512","MO52"]
["Москва","111674, г. Москва, ул. Покровская,д. 20","1513","MO3Y"]
["Москва","105043, г. Москва, ул. 9-я Парковая, д. 23","1515","MO4B"]
["Москва","125466, г. Москва, ул. Воротынская,д. 2","1516","MO4C"]
["Москва","143082, Московская область, Одинцовский р-н, д. Барвиха, д. 114","1518","MO4H"]
["Москва","115583, г. Москва, ул. Генерала Белова, д. 35","1520","MO4L"]
["Москва","129327, г. Москва, ул. Менжинского, д. 23 корп.1","1521","MO4M"]
["Москва","123104, г. Москва, ул. Малая Бронная д.15 Б","1523","MO5D"]
["Москва","125375, г. Москва, ул. Тверская, д.28, корп. 1","1537","MO7Y"]
["Москва","125252, г. Москва, ул. Авиаконструктора Микояна, д. 12","1598","MO23"]
["Москва","109544, г. Москва, б-р Энтузиастов,д. 2","1599","MO2L"]
["Москва","127282, г. Москва, ул. Грекова, д.3, корп. 3","1609","MABQ"]
["Москва","123060, г. Москва, ул. Народного Ополчения, д. 45","1801","MABD"]
["Москва","123112, г. Москва, Пресненская наб., д. 2","1838","MANP"]
["Москва","109386, г. Москва, ул. Совхозная, д. 39","8124","MAMO"]
["Москва","115432, г. Москва, пр-кт Андропова, д.18, корп.6","0658","MOT0"]
["Москва","117588, г. Москва, пр-кт Новоясеневский, д. 7","1504","MO2O"]
["Московский","108811, г. Москва, г. Московский, ул. Никитина, д. 2","8094","MALK"]
["Мурино","188677, г. Мурино, б-р Менделеева, д. 11, корп.1","1800","MAA6"]
["Мурманск","183038, г. Мурманск, пр-кт Ленина, д. 82","0445","MOMO"]
["Мурманск","183038, г. Мурманск, пр-кт Ленина, д. 19А","0823","MOMU"]
["Мурманск","183052, г. Мурманск, пр-кт Кольский, д. 158","1066","MOP8"]
["Муром","602267, г. Муром, ул. Московская, д. 47","1189","MAAQ"]
["Мытищи","141006, г. Мытищи, пр-кт Олимпийский, д.19, корп.1","0622","MOMX"]
["Мытищи","141008, г. Мытищи,ул. Мира, д. 26А","0665","MOX2"]
["Набережные Челны","423831, г. Набережные Челны, просп. Хасана Туфана, д. 29б","0749","MONH"]
["Набережные Челны","423812, г. Набережные Челны, пр-кт Мира, д.24М","0853","MONC"]
["Набережные Челны","423803, г. Набережные Челны, Набережночелнинскийпр-кт, д. 7","8104","MALY"]
["Назрань","386102, г. Назрань, ул. Московская, д. 28","8131","MAMY"]
["Нальчик","360051, г. Нальчик, пр-кт Шогенцукова, д. 21","8121","MAMK"]
["Наро-Фоминск","143300, г. Наро-Фоминск, пл. Свободы, д. 2","1632","MACX"]
["Находка","692914, г. Находка, пр-кт Северный, д.2, корпус 1","0877","MONR"]
["Невинномысск","357100, г. Невинномысск, ул. Гагарина, д. 70Б","1198","MAA5"]
["Нерюнгри","678967, г. Нерюнгри, пр-кт Ленина, д. 6","8003","MAIL"]
["Нефтекамск","452680, г. Нефтекамск, улица Ленина,д. 19Е","1159","MO92"]
["Нефтеюганск","628306, г. Нефтеюганск, 15 микрорайон, 8б","1161","MO94"]
["Нижневартовск","628606, г. Нижневартовск, пр-т Победы, д. 11","0465","MOMI"]
["Нижневартовск","628611, г. Нижневартовск, ул.Ленина, д. 17а","0708","MODE"]
["Нижнекамск","423571, г. Нижнекамск, пр-кт Мира, д. 61Г","1149","MO75"]
["Нижний Новгород","603024, г. Нижний Новгород, ул. Белинского , д.61, корп.2","0483","MONN"]
["Нижний Новгород","603002, г. Нижний Новгород, ул. Фильченкова, д.10","0740","MOHQ"]
["Нижний Новгород","603135, г. Нижний Новгород, пр-кт Ленина, д. 45","0790","MONA"]
["Нижний Новгород","603003, г. Нижний Новгород, ул. Коминтерна, д. 164, пом. П5.","0831","MOSM"]
["Нижний Новгород","603035, г. Нижний Новгород, ул. Горького Максима, д. 140","0835","MOGO"]
["Нижний Новгород","603004, г. Нижний Новгород, пр-кт Ленина, д. 100Д, пом. П8","1117","MO3U"]
["Нижний Тагил","622034, г. Нижний Тагил, пр-кт Ленина, д. 61","0964","MONT"]
["Нижний Тагил","622007, г. Нижний Тагил, пр-кт Вагоностроителей, д. 13","0969","MOFH"]
["Новоалтайск","658087, г. Новоалтайск, ул. Октябрьская, д. 13","1780","MAHV"]
["Новокузнецк","654007, г. Новокузнецк, пр-кт Металлургов, д. 32","0693","MOXF"]
["Новокузнецк","654080, г. Новокузнецк, ул.Тольятти, д 44","0962","MOFC"]
["Новокузнецк","654007, г. Новокузнецк, пр-кт Н. С. Ермакова, зд.9А","8170","MAOG"]
["Новокуйбышевск","446200, г. Новокуйбышевск, ул. Миронова, д. 3","1195","MAAY"]
["Новомосковск","301650, г. Новомосковск, ул. Комсомольская/ул. Трудовые резервы, д.21/34, пом. 1-4, 6-11","1152","MO81"]
["Новороссийск","353905, г. Новороссийск, ул. Толстого, д. 2Г","0883","MOCA"]
["Новороссийск","353915, г. Новороссийск, пр-кт Дзержинского, д. 205 А","1110","MO53"]
["Новосибирск","630004, г. Новосибирск, ул. Ленина, д. 52","0481","MOSV"]
["Новосибирск","630082, г. Новосибирск, улица ДусиКовальчук, д. 179/4","0727","MOYJ"]
["Новосибирск","630073, г. Новосибирск, пр-кт Карла Маркса, д. 55","0797","MONQ"]
["Новосибирск","630099, г. Новосибирск, ул. Мичурина, д. 23.","0811","MOJN"]
["Новосибирск","630099, г. Новосибирск, ул. Орджоникидзе, д. 23","1099","MO2X"]
["Новосибирск","630078, г. Новосибирск, пл. Карла Маркса, д. 5.","1102","MO36"]
["Новосибирск","630089, г. Новосибирск, ул. Бориса Богаткова, д.201/1","1131","MO4V"]
["Новосибирск","630090, г. Новосибирск, ул. Ильича, д.6","1137","MO5V"]
["Новосибирск","630102, г. Новосибирск, ул. Кирова,д. 46/1","1145","MO6N"]
["Новосибирск","630054, г. Новосибирск, ул. Титова, зд. 22а","1837","MAM8"]
["Новотроицк","462353, г. Новотроицк, ул. Советская, д. 52","0828","MONO"]
["Новоуральск","624132, г. Новоуральск, ул. Комсомольская, зд. 6А","1653","MADT"]
["Новочебоксарск","429965, г. Новочебоксарск, ул. Советская, д. 15","1180","MO9W"]
["Новочеркасск","346400, г.Новочеркасск, ул.Московская, 1/пр. Платовский, д. 90","0719","MOWT"]
["Новошахтинск","346918, г. Новошахтинск, пр-кт Ленина, д. 5а","1689","MAEZ"]
["Новый Уренгой","629303, г. Новый Уренгой, мкр. Мирный, д. 6, корп. 2","8103","MALX"]
["Ногинск","142400, г. Ногинск, ул. 3-го Интернационала, д. 62","1528","MO7N"]
["Ноябрьск","629807, г. Ноябрьск, пр-кт Мира, д. 56","8097","MALR"]
["Нягань","628181, г. Нягань, мкр. 1-й, д.1","1815","MACJ"]
["Обнинск","249039, г. Обнинск, пр-кт Маркса, д. 50","1807","MABT"]
["Одинцово","143005, г. Одинцово, ш. Можайское, д. 76А","0614","MOOD"]
["Октябрьский","452614, г. Октябрьский, пр-кт Ленина, д. 5","1160","MO93"]
["Омск","644024, г. Омск, ул. Маршала Жукова угол ул. 10 Лет Октября, д. 25","0447","MOKJ"]
["Омск","644021, г. Омск, ул. Богдана Хмельницкого, д. 162","0720","MOWP"]
["Омск","644074, г. Омск, ул. 70 лет Октября, д. 13/3","0743","MOOJ"]
["Омск","644043, г. Омск, ул. Красный Путь, д. 61","0778","MOUK"]
["Омск","644029, г. Омск, пр-кт Мира, д. 54","0815","MOJR"]
["Омск","644010, г. Омск, пр-кт Маркса,д. 10","0873","MOOU"]
["Омск","644020, г. Омск, пр-кт Карла Маркса, д. 84","8159","MAN3"]
["Орел","302030, г. Орел,ул. Московская, д. 28","8183","MAOX"]
["Орёл","302026, г. Орел,ул. Комсомольская, д. 78","1164","MO97"]
["Оренбург","460024, г. Оренбург, ул.Маршала Жукова, д. 26","0461","MORE"]
["Оренбург","460058, г. Оренбург, ул. Чкалова, д. 35/1","0791","MOOP"]
["Оренбург","460052, г. Оренбург, ул. Салмышская, д.37","1119","MO3W"]
["Орехово-Зуево","142600, г. Орехово-Зуево, ул. Ленина, д. 53","1191","MAAS"]
["Орск","462431, г. Орск, пр-кт Ленина, д. 78","0850","MOOS"]
["Павлово","606100, г. Павлово, ул. Красноармейская, д. 33,стр. 1","1614","MAB3"]
["Павловский Посад","142500, г. Павловский Посад, ул. Большая Покровская, д. 10","1675","MAEK"]
["Пенза","440000, г. Пенза, ул. Московская, д. 73","0746","MOZB"]
["Пенза","440008, г. Пенза, ул. Суворова, д. 139","1144","MO6L"]
["Пенза","440062, г. Пенза, пр-кт Строителей, д. 40","8125","MAMQ"]
["Первоуральск","623104, г. Первоуральск, ул. Ватутина, д. 37","0970","MOFI"]
["Пермь","614066, г. Пермь,улица Мира, д. 70","0724","MOGB"]
["Пермь","614000, г. Пермь,ул. Ленина, д. 66","0803","MODG"]
["Пермь","614077, г. Пермь, бульвар Гагарина, д. 67","0834","MOPA"]
["Пермь","614039, г. Пермь, Комсомольский пр-кт, 49","0845","MOAH"]
["Пермь","614000, г. Пермь, ул.Советская, д.45","0994","MOGE"]
["Пермь","614113, г. Пермь, ул. Автозаводская, д. 44а","1051","MOL9"]
["Петергоф","198510, г. Санкт-Петербург, г. Петергоф, пр-кт Санкт-Петербургский, д.29","1706","MAFJ"]
["Петрозаводск","185035, г. Петрозаводск, пр-т Ленина, д. 26","0712","MOWX"]
["Петрозаводск","185014, г. Петрозаводск, ш. Лососинское, д. 26","1073","MOM4"]
["Петропавловск-Камчатский","683024, г. Петропавловск-Камчатский, пр-кт 50 лет Октября, д. 24а","1819","MACR"]
["Подольск","142100, г. Подольск, ул. Рабочая, д. 4","0624","MOLX"]
["Подольск","142118, г. Подольск, ул. Академика Доллежаля, д. 3, стр. 2","8175","MAOL"]
["Прокопьевск","653039, г. Прокопьевск, ул. Шишкина, д. 11","0687","MOXM"]
["Псков","180004, г. Псков, ул.Яна Фабрициуса, д. 27, пом. 1005","0689","MOXL"]
["Псков","180007, г. Псков, пр-т Рижский, д.16","1065","MOP7"]
["Пушкин","196608, г. Санкт-Петербург, г. Пушкин, ул. Ленинградская, д. 29","1733","MAGF"]
["Пушкино","141207, г. Пушкино, Московский проспект, д. 9/2","1538","MO8L"]
["Пятигорск","357500, г. Пятигорск, ул. Октябрьская, д. 1","1172","MO8S"]
["Раменское","140108, г. Раменское, ул. Михалевича, д. 1а","1182","MAAC"]
["Ревда","623286, г. Ревда, ул. Максима Горького, д. 30","1795","MAIC"]
["Реутов","143965, г. Реутов, ш. Носовихинское , д. 7","0648","MOXT"]
["Ржев","172390, г. Ржев,ул. Ленина, д. 7","1827","MADX"]
["Россошь","396658, г. Россошь, пр-кт Труда, д. 4б","1604","MABI"]
["Ростов-на-Дону","344002, г. Ростов-на-Дону, ул. Темерницкая, д. 80/31/81","0441","MORT"]
["Ростов-на-Дону","344116, г. Ростов-на-Дону, Пролетарский р-н,ул. 20-я линия, д. 4/3/13","0744","MOHT"]
["Ростов-на-Дону","344010, г. Ростов-на-Дону, ул.Красноармейская, д. 170","0832","MOYU"]
["Ростов-на-Дону","344091, г. Ростов-на-Дону, пр. Коммунистический, д.27","0837","MOSD"]
["Ростов-на-Дону","344092, г. Ростов-На-Дону, пр-кт Космонавтов,д. 15","0857","MORD"]
["Ростов-на-Дону","344002, г. Ростов-на-Дону, пр. Буденновский, д.42/50","0868","MOBU"]
["Ростов-на-Дону","344113, г. Ростов-на-Дону, пр-кт Королева, д. 14а","1126","MO4G"]
["Рубцовск","658210, г. Рубцовск, пр-кт Ленина, д. 46","1626","MACP"]
["Рыбинск","152903, г. Рыбинск, ул. Кирова, д. 18","1532","MOD1"]
["Рязань","390023, г. Рязань, ул.Ленина, д. 9","0748","MOHO"]
["Рязань","390013, г. Рязань, Первомайский пр-кт, д. 39/2","1122","MO4D"]
["Салават","453260, г. Салават, б-р Космонавтов, д. 13","1193","MAAW"]
["Салехард","629004, г. Салехард, ул. Мира, д. 2","1809","MAB2"]
["Сальск","347630, г. Сальск, ул. Пушкина, д. 15","8085","MAK9"]
["Самара","443013, г. Самара, ул. Мичурина, д. 19В","0471","MOS1"]
["Самара","443080, г. Самара, шоссе Московское, д. 47","0677","MOA0"]
["Самара","443087, г. Самара, пр-кт Кирова, д. 228, ул. Стара-Загора, д. 126","0734","MOJY"]
["Самара","443009, г. Самара, ул. Победы, д. 101","0742","MOUJ"]
["Самара","443041, г. Самара, ул. Агибалова, д.76","0800","MOCS"]
["Самара","443045, г. Самара, ул. Гагарина, д. 64","0870","MOAZ"]
["Санкт-Петербург","191186, г. Санкт-Петербург, Б.Конюшенная улица, д. 19/8. литА.24Н.25Н","0473","MOSP"]
["Санкт-Петербург","195196, г. Санкт-Петербург, Новочеркасский пр-т, д. 43/17","0475","MOSZ"]
["Санкт-Петербург","198097, г. Санкт-Петербург, пр-т Стачек, д. 47Е","0476","MOKK"]
["Санкт-Петербург","191040, г. Санкт-Петербург, Лиговский пр-т, д. 73А","0478","MOLI"]
["Санкт-Петербург","197022, г. Санкт-Петербург, Каменноостровский пр-кт, д. 41, литера А","0678","MOA3"]
["Санкт-Петербург","196105, г. Санкт-Петербург, Московский пр-кт, д. 172, лит. А","0679","MOA1"]
["Санкт-Петербург","193168, г. Санкт-Петербург, проспект Большевиков, д. 17, литера Ч","0681","MOXU"]
["Санкт-Петербург","192238, г. Санкт-Петербург, ул.Бухарестская, д. 74, кор. 3, лит. А","0710","MOQO"]
["Санкт-Петербург","191123, г. Санкт-Петербург, ул.Фурштатская, д. 40","0713","MOWW"]
["Санкт-Петербург","198216, г. Санкт-Петербург, пр-т Ленинский, д. 130/6, литер А","0715","MOWV"]
["Санкт-Петербург","193231, г. Санкт-Петербург, пр-т Большевиков д.2","0731","MOQA"]
["Санкт-Петербург","192131, г. Санкт-Петербург, ул. Ивановская, д. 6, литера А","0735","MOJX"]
["Санкт-Петербург","197348, г. Санкт-Петербург, Коломяжский пр-кт, д. 15, корпус 2, лит. А","0774","MOPW"]
["Санкт-Петербург","196233, г. Санкт-Петербург, пр-кт Витебский, д. 101, корп. 1, стр.1","0789","MOPQ"]
["Санкт-Петербург","194356, г. Санкт-Петербург, пр-кт Энгельса, д. 139/21, лит. А","0795","MOPH"]
["Санкт-Петербург","196066, г. Санкт-Петербург, Московский пр., д. 193, пом. 14Н,лит. А","0799","MOSE"]
["Санкт-Петербург","195267, г. Санкт-Петербург,пр-кт Просвещения, д. 84 корпус1, Литер А, пом. 50Н","0819","MOQW"]
["Санкт-Петербург","197371, г. Санкт-Петербург, пр-кт Комендантский, д. 13, корп. 1, лит. А","0866","MOPP"]
["Санкт-Петербург","199004, г. Санкт-Петербург, В.О. 7-ая линия, д.54, Лит. А, пом. 3Н","0890","MOCV"]
["Санкт-Петербург","195009, г. Санкт-Петербург, ул.Академика Лебедева, д.31, корп. 2,лит. А","0995","MOGF"]
["Санкт-Петербург","197374, г. Санкт-Петербург, ул. Савушкина, д. 127","1009","MOD8"]
["Санкт-Петербург","197110, г. Санкт-Петербург, пр-кт Дачный, д.17, к. 3","1056","MOO3"]
["Санкт-Петербург","195256, г. Санкт-Петербург, пр-кт Науки, д. 14к1","1067","MOQ3"]
["Санкт-Петербург","194021, г. Санкт-Петербург, просп.Тореза, д. 9, литера А","1166","MO7G"]
["Санкт-Петербург","192177, г. Санкт-Петербург, ул. Караваевская, д. 24, корп. 1, лит. А","8155","MANW"]
["Саранск","430005, г. Саранск, ул. Коммунистическая, д. 52","1010","MOD9"]
["Саранск","430027, г. Саранск, ул. Гагарина, д. 99Е","8184","MAO3"]
["Сарапул","427960, г. Сарапул, ул. Горького, д. 15а, стр.1","1720","MAFX"]
["Саратов","410012, г. Саратов, ул. им. Василия Люкшина, здание № 5","0829","MOIL"]
["Саратов","410041, г. Саратов, пр-кт Строителей, д. 19","1108","MO44"]
["Саратов","410012, г. Саратов, ул. Московская, д. 66","0772","MOTZ"]
["Саров","607183, г. Саров, ул. Московская, д. 3, стр. 1","8177","MAON"]
["Северодвинск","164504, г. Северодвинск, ул. Ломоносова, д. 64","0751","MOHS"]
["Североморск","184604, г. Североморск, ул. Сафонова, д. 13","1790","MAH7"]
["Северск","636000, г. Северск, пр-кт Коммунистический, д. 63","1760","MAG9"]
["Сергиев Посад","141310, г. Сергиев Посад, пр-кт Красной Армии, д.180","1526","MO83"]
["Серпухов","142203, г. Серпухов, ул. Ворошилова, д. 127","1531","MOC1"]
["Сибай","453833, г. Сибай, пр-кт Горняков, д. 22","8069","MAKN"]
["Славянск-на-Кубани","353560, г. Славянск-на-Кубани, ул. Ковтюха, д. 17","1695","MAE7"]
["Смоленск","214004, г. Смоленск, ул. Николаева, д. 8","1158","MO90"]
["Смоленск","214036, г. Смоленск, ул. Петра Алексеева, д. 1а","8187","MAO7"]
["Снежинск","456770, г. Снежинск, ул. Свердлова, д. 36","8106","MAL2"]
["Соликамск","618554, г. Соликамск, ул. 20-летия Победы, д. 119","1805","MABM"]
["Солнечногорск","141506, г. Солнечногорск, ул. Почтовая, стр. 9/2","1678","MAEN"]
["Сосновый Бор","188541, г. Сосновый Бор, ул. Солнечная, д. 12","0758","MOHR"]
["Сочи","354000, г. Сочи, ул. Конституции СССР, д.18","0729","MOYD"]
["Сочи","354000, г. Сочи, ул. Северная, д. 6","1143","MO6K"]
["Сочи","354340, г. Сочи, ул. Молокова, д. 18/78","1179","MO9M"]
["Сочи","354200, г. Сочи, ул. Калараша, д. 111А, корп. 1","8189","MAPB"]
["Ставрополь","355029, г. Ставрополь, ул.Ленина, д. 299","0779","MOTH"]
["Ставрополь","355035, г. Ставрополь, ул. Дзержинского, д. 114","1138","MO5X"]
["Ставрополь","355040, г. Ставрополь, ул. 50-лет ВЛКСМ, д. 11, к. 1","1607","MABN"]
["Старый Оскол","309512, г. Старый Оскол, мкр. Жукова, д. 48, помещение 6","1148","MO6Y"]
["Стерлитамак","453100, г. Стерлитамак, ул. Коммунистическая, д. 96","0756","MOLW"]
["Ступино","142802, г. Ступино, ул. Андропова, д. 63","1803","MABH"]
["Сургут","628406, г. Сургут, ул. Каролинского, д. 13","0937","MOSU"]
["Сургут","628416, г. Сургут, пр-т Ленина д.38","1094","MO2G"]
["Сызрань","446001, г. Сызрань, ул. Советская, д. 51","1011","MOE2"]
["Сызрань","446031, г. Сызрань, ул. 50 лет Октября, д. 54А","1637","MAC8"]
["Сыктывкар","167001, г. Сыктывкар, ул. Коммунистическая, д. 46","1829","MAEH"]
["Таганрог","347904, г. Таганрог, ул. Дзержинского/ул.Фрунзе, д.1/100","0714","MOQK"]
["Таганрог","347922, г. Таганрог, пер. 1-й Крепостной, д. 17","8108","MAL5"]
["Тамбов","392000, г. Тамбов, ул. Советская/Максима Горького,д. 104/14","1153","MO84"]
["Тверь","170100, г. Тверь, ул. Трехсвятская, д. 28","0682","MOXS"]
["Тверь","170100, г. Тверь, ул. Желябова, д. 3","1054","MON9"]
["Темрюк","353500, г. Темрюк, ул. Ленина, д. 68","1630","MACV"]
["Тимашевск","352700, г. Тимашевск, ул. Красная, д. 106","1694","MAE6"]
["Тихвин","187553, г. Тихвин, ул. Карла Маркса, д. 50","1751","MAGY"]
["Тихорецк","352120, г. Тихорецк, ул. Энгельса, д. 101","1641","MADC"]
["Тобольск","626158, г. Тобольск, 9-й микрорайон, д. 1","1184","MAAH"]
["Тольятти","445026, г. Тольятти, ул.Революционная, д.32","0817","MOQT"]
["Тольятти","445021, г. Тольятти, ул. Ленинградская, зд. 68В","0847","MOAJ"]
["Тольятти","445031, г. Тольятти, ул. Тополиная, д. 8а","1168","MO7J"]
["Томск","634034, г. Томск, ул.Красноармейская, д. 101а","0439","MOFT"]
["Томск","634009, г. Томск,пер. 1905 года, д. 14а","0716","MOWU"]
["Томск","634061, г. Томск, пр-кт Комсомольский, д. 53","1174","MO8U"]
["Томск","634049, г. Томск,тракт Иркутский, д. 26","8157","MANZ"]
["Трехгорный","456080, г. Трехгорный, ул. Мира, д. 12","8171","MAOH"]
["Троицк","457100, г. Троицк, ул. им. Ю.А. Гагарина, д. 41","1648","MADM"]
["Троицк","108842, г. Москва, г. Троицк, пл. Академическая, д. 5","1752","MAGZ"]
["Туапсе","352800, г. Туапсе, ул.С. Перовской, д. 2, пом. 21, 28-30","0898","MOTG"]
["Туймазы","452750, г.Туймазы, пр-кт Ленина, д. 10","1823","MADE"]
["Тула","300034, г. Тула, пр-кт Красноармейский, д. 27","0407","MOCK"]
["Тула","300041, г. Тула,просп. Ленина, д. 54а","1129","MO4T"]
["Тула","300041, г. Тула,ул. Советская, д. 10","1141","MO6B"]
["Тюмень","625026, г. Тюмень, ул. Республики, д. 155","0468","MOTM"]
["Тюмень","625051, г. Тюмень,ул. Пермякова, д. 23а","0675","MOB5"]
["Тюмень","625000, г. Тюмень, ул. Ленина д. 57/2","0812","MOJO"]
["Тюмень","625048, г. Тюмень, ул. 50 лет","0966","MOTN"]
["Тюмень","625000, г. Тюмень ул. 8 марта, д. 2/13","0996","MOGG"]
["Тюмень","625022, г. Тюмень,ул. Газовиков, д. 65/4","0674","MOB8"]
["Улан-Удэ","670000, г. Улан-Удэ, ул. Ленина, д. 35","1156","MO88"]
["Улан-Удэ","670031, г. Улан-Удэ, ул. Терешковой, д. 2","1833","MAKB"]
["Ульяновск","432011, г. Ульяновск, ул. Гончарова, д. 25","0711","MOWZ"]
["Ульяновск","432067, г. Ульяновск, Ульяновский пр-т, д.6","1118","MO3V"]
["Ульяновск","432045, г. Ульяновск, ул. Герасимова, д. 10","1133","MO5C"]
["Усинск","169710, г. Усинск,ул. Нефтяников, д. 50","8079","MAK2"]
["Усолье-Сибирское","665462, г. Усолье-Сибирское, ул. Орджоникидзе, зд.40","0897","MOER"]
["Уссурийск","692525, г. Уссурийск, ул. Пушкина д.27","1048","MOK5"]
["Усть-Илимск","666683, г. Усть-Илимск, пр-кт Мира, д. 2","1681","MAEQ"]
["Усть-Лабинск","352330, г. Усть-Лабинск, ул. Октябрьская, д. 99","8002","MAIK"]
["Уфа","450075, г. Уфа, пр-кт.Октября, д. 107а","0671","MOC3"]
["Уфа","450077, г. Уфа, ул. Ленина, д. 32/1","0810","MOJM"]
["Уфа","450099, г. Уфа, ул. Жукова, д. 29","0826","MOPR"]
["Уфа","450044, г. Уфа, ул. Первомайская, д. 24","0844","MOAG"]
["Уфа","450009, г. Уфа, пр-кт Октября, д.6","0959","MOEZ"]
["Уфа","450106, г. Уфа, ул. Менделеева, д.130","1111","MO55"]
["Уфа","450039, г. Уфа, ул. Транспортная, д. 46","8122","MAML"]
["Ухта","169313, г. Ухта, пр-кт Ленина, д. 27","1796","MAIE"]
["Фрязино","141195, г. Фрязино, пр-кт Мира, д. 8","8076","MAKX"]
["Хабаровск","680000, г. Хабаровск, ул. Муравьева- Амурского, д. 36","0703","MOCW"]
["Хабаровск","680030, г. Хабаровск ул. Ленина, д. 43","0773","MOHP"]
["Хабаровск","680051, г. Хабаровск, ул. Суворова, д. 32","1183","MAAE"]
["Ханты-Мансийск","628011, г. Ханты-Мансийск, ул.Энгельса, д. 3","1176","MO8Z"]
["Химки","141501, г. Химки,пр-кт Мельникова, д.2Б","0608","MOHI"]
["Чайковский","617760, г. Чайковский, ул. Мира, д. 19","1724","MAF3"]
["Чапаевск","446103, г. Чапаевск, ул. Запорожская, д. 18А","1797","MAIF"]
["Чебоксары","428000, г. Чебоксары, улица Карла Маркса, д. 51","0718","MOWQ"]
["Чебоксары","428003, г. Чебоксары,ул. Ярославская, д. 27","0899","MOEU"]
["Челябинск","454000, г. Челябинск, ул. Кирова, д. 108","0435","MOCH"]
["Челябинск","454080, г. Челябинск, пр-т Ленина, д. 73-а","0821","MOQS"]
["Челябинск","454014, г.Челябинск, ул.Молодогвардейцев, д.32 А","0822","MOEV"]
["Челябинск","454048, г. Челябинск, ул. Доватора, 35","0881","MOBW"]
["Челябинск","454003, г. Челябинск, ул. Чичерина, д.38 В","0968","MOFG"]
["Челябинск","454008, г. Челябинск, Комсомольский пр-т, д. 2а","0974","MOFM"]
["Челябинск","454091, г. Челябинск, ул.Свободы,д.82","0997","MOLO"]
["Черемхово","665412, г. Черемхово, ул. Первомайская, д. 160/Б","1686","MAEW"]
["Череповец","162602, г. Череповец, ул. Ленина, д. 68","1167","MO7H"]
["Черногорск","655158, г. Черногорск, ул. Юбилейная, д. 16","1816","MACK"]
["Черняховск","238150, г.Черняховск, ул. Ленина, д. 39","1693","MAE5"]
["Чехов","142300, г. Чехов, ул. Московская, вл. 96","1541","MO8N"]
["Чистополь","422981, г. Чистополь, ул. Ленина, д. 42Д","1758","MAG7"]
["Чита","672000, г. Чита, ул. Хабаровская, д. 6","1832","MAJ9"]
["Шадринск","641870, г. Шадринск, ул. Февральская, д. 54","1661","MAD5"]
["Шахты","346500, г. Шахты, пр-кт Победы Революции, д. 126","1150","MO78"]
["Шуя","155900, г. Шуя,ул. Ленина, д. 7, стр. 1","1781","MAHW"]
["Щекино","301245, г. Щекино, ул. Советская, д. 12Г","1629","MACU"]
["Щелково","141100, г. Щелково, Пролетарский пр-т, д.9","1536","MO7X"]
["Щербинка","108851, г. Москва, г. Щербинка, ул.40 лет Октября, д. 15/1","1824","MADF"]
["Электросталь","144000, г. Электросталь, ул. Советская, д. 14","1530","MO7P"]
["Элиста","358000, г. Элиста, ул. В. И. Ленина, д. 230","8105","MALZ"]
["Энгельс","413100, г. Энгельс, ул. Тельмана, д. 23","0747","MONF"]
["Южно-Сахалинск","693020, г. Южно-Сахалинск, ул. Ленина, д. 218","0846","MOAI"]
["Южно-Сахалинск","693008, г. Южно-Сахалинск, ул. Ленина, д. 287",8186,"MAO5"]
["Юрга","652050, г. Юрга, ул. Московская, д. 34А","0963","MOFD"]
["Якутск","677000, г. Якутск, пр-кт Ленина, д. 24","0752","MOHY"]
["Якутск","677000, г. Якутск, ул. Дзержинского, д. 27, корп. 1","8188","MAPA"]
["Ярославль","150000, г. Ярославль, ул. Свободы, д. 29","0702","MOCU"]
["Ярославль","150000, г. Ярославль, ул. Свободы, д. 2","0730","MOYC"]
["Ярославль","150045, г. Ярославль, Ленинградский пр-т, 52 А","1125","MO4F"]
["Ярославль","150030, г. Ярославль, Московский пр-кт, д. 125","1600","MAA4"]
["Ясный","462781, г. Ясный,ул. Ленина д. 9","0698","MOXA"]